Workbook

Sheet Data_Selection
A1: Forecast of the State Population by Age and Sex
A2: Washington State Office of Financial Management, Forecasting and Research Division
A3: November 2023
A5: Instructions
A6: 1. Select the ages you want to sum by clicking one or more cells below. Selected ages will be highlighted in yellow.
A7: 2. When you are done selecting the ages, press the "Sum Selected" button to update the output table on the right.
A8: 3. The "Clear Selected" button will clear the selection so you can start over.
A9: 4. Alternatively, you can press one of the predefined age ranges buttons.
B12: Single Year of Age | O12: Sum of Selected Ages
B13: 0 | C13: 1 | D13: 2 | E13: 3 | F13: 4 | G13: 5 | H13: 6 | I13: 7 | J13: 8 | K13: 9 | O13: Year | P13: Male | Q13: Female | R13: Total
B14: 10 | C14: 11 | D14: 12 | E14: 13 | F14: 14 | G14: 15 | H14: 16 | I14: 17 | J14: 18 | K14: 19 | O14: 1970 | P14: =SUM(MaleT!D2:CK2) -> 1695780 | Q14: =SUM(FemaleT!D2:CK2) -> 1717464 | R14: =P14+Q14 -> 3413244
B15: 20 | C15: 21 | D15: 22 | E15: 23 | F15: 24 | G15: 25 | H15: 26 | I15: 27 | J15: 28 | K15: 29 | O15: 1971 | P15: =SUM(MaleT!D3:CK3) -> 1705753 | Q15: =SUM(FemaleT!D3:CK3) -> 1730546 | R15: =P15+Q15 -> 3436299
B16: 30 | C16: 31 | D16: 32 | E16: 33 | F16: 34 | G16: 35 | H16: 36 | I16: 37 | J16: 38 | K16: 39 | O16: 1972 | P16: =SUM(MaleT!D4:CK4) -> 1700422 | Q16: =SUM(FemaleT!D4:CK4) -> 1729877 | R16: 3430299
B17: 40 | C17: 41 | D17: 42 | E17: 43 | F17: 44 | G17: 45 | H17: 46 | I17: 47 | J17: 48 | K17: 49 | O17: 1973 | P17: =SUM(MaleT!D5:CK5) -> 1705858 | Q17: =SUM(FemaleT!D5:CK5) -> 1738441 | R17: 3444299
B18: 50 | C18: 51 | D18: 52 | E18: 53 | F18: 54 | G18: 55 | H18: 56 | I18: 57 | J18: 58 | K18: 59 | O18: 1974 | P18: =SUM(MaleT!D6:CK6) -> 1737929 | Q18: =SUM(FemaleT!D6:CK6) -> 1770771 | R18: 3508700
B19: 60 | C19: 61 | D19: 62 | E19: 63 | F19: 64 | G19: 65 | H19: 66 | I19: 67 | J19: 68 | K19: 69 | O19: 1975 | P19: =SUM(MaleT!D7:CK7) -> 1771400 | Q19: =SUM(FemaleT!D7:CK7) -> 1796501 | R19: 3567901
B20: 70 | C20: 71 | D20: 72 | E20: 73 | F20: 74 | G20: 75 | H20: 76 | I20: 77 | J20: 78 | K20: 79 | O20: 1976 | P20: =SUM(MaleT!D8:CK8) -> 1804908 | Q20: =SUM(FemaleT!D8:CK8) -> 1829996 | R20: 3634904
B21: 80 | C21: 81 | D21: 82 | E21: 83 | F21: 84 | G21: 85 | O21: 1977 | P21: =SUM(MaleT!D9:CK9) -> 1845492 | Q21: =SUM(FemaleT!D9:CK9) -> 1869908 | R21: 3715400
O22: 1978 | P22: =SUM(MaleT!D10:CK10) -> 1906879 | Q22: =SUM(FemaleT!D10:CK10) -> 1929320 | R22: 3836199
O23: 1979 | P23: =SUM(MaleT!D11:CK11) -> 1980247 | Q23: =SUM(FemaleT!D11:CK11) -> 1998952 | R23: 3979199
O24: 1980 | P24: =SUM(MaleT!D12:CK12) -> 2052307 | Q24: =SUM(FemaleT!D12:CK12) -> 2079849 | R24: 4132156
O25: 1981 | P25: =SUM(MaleT!D13:CK13) -> 2100339 | Q25: =SUM(FemaleT!D13:CK13) -> 2128939 | R25: 4229278
O26: 1982 | P26: =SUM(MaleT!D14:CK14) -> 2123652 | Q26: =SUM(FemaleT!D14:CK14) -> 2152897 | R26: 4276549
O27: 1983 | P27: =SUM(MaleT!D15:CK15) -> 2137652 | Q27: =SUM(FemaleT!D15:CK15) -> 2169595 | R27: 4307247
O28: 1984 | P28: =SUM(MaleT!D16:CK16) -> 2160795 | Q28: =SUM(FemaleT!D16:CK16) -> 2193272 | R28: 4354067
O29: 1985 | P29: =SUM(MaleT!D17:CK17) -> 2191239 | Q29: =SUM(FemaleT!D17:CK17) -> 2224546 | R29: 4415785
O30: 1986 | P30: =SUM(MaleT!D18:CK18) -> 2213929 | Q30: =SUM(FemaleT!D18:CK18) -> 2248283 | R30: 4462212
O31: 1987 | P31: =SUM(MaleT!D19:CK19) -> 2245848 | Q31: =SUM(FemaleT!D19:CK19) -> 2281250 | R31: 4527098
O32: 1988 | P32: =SUM(MaleT!D20:CK20) -> 2290269 | Q32: =SUM(FemaleT!D20:CK20) -> 2326617 | R32: 4616886
O33: 1989 | P33: =SUM(MaleT!D21:CK21) -> 2345169 | Q33: =SUM(FemaleT!D21:CK21) -> 2382908 | R33: 4728077
O34: 1990 | P34: =SUM(MaleT!D22:CK22) -> 2413712 | Q34: =SUM(FemaleT!D22:CK22) -> 2452951 | R34: 4866663
O35: 1991 | P35: =SUM(MaleT!D23:CK23) -> 2481125 | Q35: =SUM(FemaleT!D23:CK23) -> 2519228 | R35: 5000353
O36: 1992 | P36: =SUM(MaleT!D24:CK24) -> 2527251 | Q36: =SUM(FemaleT!D24:CK24) -> 2563887 | R36: 5091138
O37: 1993 | P37: =SUM(MaleT!D25:CK25) -> 2576398 | Q37: =SUM(FemaleT!D25:CK25) -> 2611611 | R37: 5188009
O38: 1994 | P38: =SUM(MaleT!D26:CK26) -> 2628868 | Q38: =SUM(FemaleT!D26:CK26) -> 2662709 | R38: 5291577
O39: 1995 | P39: =SUM(MaleT!D27:CK27) -> 2682045 | Q39: =SUM(FemaleT!D27:CK27) -> 2714524 | R39: 5396569
O40: 1996 | P40: =SUM(MaleT!D28:CK28) -> 2726046 | Q40: =SUM(FemaleT!D28:CK28) -> 2757057 | R40: 5483103
O41: 1997 | P41: =SUM(MaleT!D29:CK29) -> 2774769 | Q41: =SUM(FemaleT!D29:CK29) -> 2804371 | R41: 5579140
O42: 1998 | P42: =SUM(MaleT!D30:CK30) -> 2828606 | Q42: =SUM(FemaleT!D30:CK30) -> 2856853 | R42: 5685459
O43: 1999 | P43: =SUM(MaleT!D31:CK31) -> 2882655 | Q43: =SUM(FemaleT!D31:CK31) -> 2909559 | R43: 5792214
O44: 2000 | P44: =SUM(MaleT!D32:CK32) -> 2934306 | Q44: =SUM(FemaleT!D32:CK32) -> 2959837 | R44: 5894143
O45: 2001 | P45: =SUM(MaleT!D33:CK33) -> 2972495 | Q45: =SUM(FemaleT!D33:CK33) -> 2997957 | R45: 5970452
O46: 2002 | P46: =SUM(MaleT!D34:CK34) -> 3017126 | Q46: =SUM(FemaleT!D34:CK34) -> 3042572 | R46: 6059698
O47: 2003 | P47: =SUM(MaleT!D35:CK35) -> 3050787 | Q47: =SUM(FemaleT!D35:CK35) -> 3076130 | R47: 6126917
O48: 2004 | P48: =SUM(MaleT!D36:CK36) -> 3091616 | Q48: =SUM(FemaleT!D36:CK36) -> 3116916 | R48: 6208532
O49: 2005 | P49: =SUM(MaleT!D37:CK37) -> 3136757 | Q49: =SUM(FemaleT!D37:CK37) -> 3162040 | R49: 6298797
O50: 2006 | P50: =SUM(MaleT!D38:CK38) -> 3197405 | Q50: =SUM(FemaleT!D38:CK38) -> 3222814 | R50: 6420219
O51: 2007 | P51: =SUM(MaleT!D39:CK39) -> 3249840 | Q51: =SUM(FemaleT!D39:CK39) -> 3275281 | R51: 6525121
O52: 2008 | P52: =SUM(MaleT!D40:CK40) -> 3291416 | Q52: =SUM(FemaleT!D40:CK40) -> 3316818 | R52: 6608234
O53: 2009 | P53: =SUM(MaleT!D41:CK41) -> 3323492 | Q53: =SUM(FemaleT!D41:CK41) -> 3348771 | R53: 6672263
O54: 2010 | P54: =SUM(MaleT!D42:CK42) -> 3349707 | Q54: =SUM(FemaleT!D42:CK42) -> 3374833 | R54: 6724540
O55: 2011 | P55: =SUM(MaleT!D43:CK43) -> 3379097 | Q55: =SUM(FemaleT!D43:CK43) -> 3402380 | R55: 6781477
O56: 2012 | P56: =SUM(MaleT!D44:CK44) -> 3406794 | Q56: =SUM(FemaleT!D44:CK44) -> 3428455 | R56: 6835249
O57: 2013 | P57: =SUM(MaleT!D45:CK45) -> 3444680 | Q57: =SUM(FemaleT!D45:CK45) -> 3464765 | R57: 6909445
O58: 2014 | P58: =SUM(MaleT!D46:CK46) -> 3493333 | Q58: =SUM(FemaleT!D46:CK46) -> 3511876 | R58: 7005209
O59: 2015 | P59: =SUM(MaleT!D47:CK47) -> 3544706 | Q59: =SUM(FemaleT!D47:CK47) -> 3561914 | R59: 7106620
O60: 2016 | P60: =SUM(MaleT!D48:CK48) -> 3610690 | Q60: =SUM(FemaleT!D48:CK48) -> 3626529 | R60: 7237219
O61: 2017 | P61: =SUM(MaleT!D49:CK49) -> 3664537 | Q61: =SUM(FemaleT!D49:CK49) -> 3679536 | R61: 7344073
O62: 2018 | P62: =SUM(MaleT!D50:CK50) -> 3724593 | Q62: =SUM(FemaleT!D50:CK50) -> 3738886 | R62: 7463479
O63: 2019 | P63: =SUM(MaleT!D51:CK51) -> 3783977 | Q63: =SUM(FemaleT!D51:CK51) -> 3797841 | R63: 7581818
O64: 2020 | P64: =SUM(MaleT!D52:CK52) -> 3844286 | Q64: =SUM(FemaleT!D52:CK52) -> 3862024 | R64: 7706310
O65: 2021 | P65: =SUM(MaleT!D53:CK53) -> 3874348 | Q65: =SUM(FemaleT!D53:CK53) -> 3892627 | R65: 7766975
O66: 2022 | P66: =SUM(MaleT!D54:CK54) -> 3922811 | Q66: =SUM(FemaleT!D54:CK54) -> 3941589 | R66: 7864400
O67: 2023 | P67: =SUM(MaleT!D55:CK55) -> 3965794 | Q67: =SUM(FemaleT!D55:CK55) -> 3985356 | R67: 7951150
O68: 2024 | P68: =SUM(MaleT!D56:CK56) -> 4005600 | Q68: =SUM(FemaleT!D56:CK56) -> 4026144 | R68: 8031744
O69: 2025 | P69: =SUM(MaleT!D57:CK57) -> 4039187 | Q69: =SUM(FemaleT!D57:CK57) -> 4060842 | R69: 8100029
O70: 2026 | P70: =SUM(MaleT!D58:CK58) -> 4074231 | Q70: =SUM(FemaleT!D58:CK58) -> 4096910 | R70: 8171141
O71: 2027 | P71: =SUM(MaleT!D59:CK59) -> 4111980 | Q71: =SUM(FemaleT!D59:CK59) -> 4135538 | R71: 8247518
O72: 2028 | P72: =SUM(MaleT!D60:CK60) -> 4150006 | Q72: =SUM(FemaleT!D60:CK60) -> 4174330 | R72: 8324336
O73: 2029 | P73: =SUM(MaleT!D61:CK61) -> 4187704 | Q73: =SUM(FemaleT!D61:CK61) -> 4212672 | R73: 8400376
O74: 2030 | P74: =SUM(MaleT!D62:CK62) -> 4225101 | Q74: =SUM(FemaleT!D62:CK62) -> 4250533 | R74: 8475634
O75: 2031 | P75: =SUM(MaleT!D63:CK63) -> 4262222 | Q75: =SUM(FemaleT!D63:CK63) -> 4287920 | R75: 8550142
O76: 2032 | P76: =SUM(MaleT!D64:CK64) -> 4299058 | Q76: =SUM(FemaleT!D64:CK64) -> 4324833 | R76: 8623891
O77: 2033 | P77: =SUM(MaleT!D65:CK65) -> 4335658 | Q77: =SUM(FemaleT!D65:CK65) -> 4361248 | R77: 8696906
O78: 2034 | P78: =SUM(MaleT!D66:CK66) -> 4372043 | Q78: =SUM(FemaleT!D66:CK66) -> 4397181 | R78: 8769224
O79: 2035 | P79: =SUM(MaleT!D67:CK67) -> 4408228 | Q79: =SUM(FemaleT!D67:CK67) -> 4432633 | R79: =P79+Q79 -> 8840861
O80: 2036 | P80: =SUM(MaleT!D68:CK68) -> 4444241 | Q80: =SUM(FemaleT!D68:CK68) -> 4467633 | R80: 8911874
O81: 2037 | P81: =SUM(MaleT!D69:CK69) -> 4480139 | Q81: =SUM(FemaleT!D69:CK69) -> 4502256 | R81: 8982395
O82: 2038 | P82: =SUM(MaleT!D70:CK70) -> 4515993 | Q82: =SUM(FemaleT!D70:CK70) -> 4536570 | R82: 9052563
O83: 2039 | P83: =SUM(MaleT!D71:CK71) -> 4551828 | Q83: =SUM(FemaleT!D71:CK71) -> 4570617 | R83: 9122445
O84: 2040 | P84: =SUM(MaleT!D72:CK72) -> 4587624 | Q84: =SUM(FemaleT!D72:CK72) -> 4604400 | R84: 9192024
O85: =O84+1 -> 2041 | P85: =SUM(MaleT!D73:CK73) -> 4623310 | Q85: =SUM(FemaleT!D73:CK73) -> 4637869 | R85: 9261179
O86: =O85+1 -> 2042 | P86: =SUM(MaleT!D74:CK74) -> 4658826 | Q86: =SUM(FemaleT!D74:CK74) -> 4670971 | R86: 9329797
O87: 2043 | P87: =SUM(MaleT!D75:CK75) -> 4694223 | Q87: =SUM(FemaleT!D75:CK75) -> 4703775 | R87: 9397998
O88: 2044 | P88: =SUM(MaleT!D76:CK76) -> 4729528 | Q88: =SUM(FemaleT!D76:CK76) -> 4736332 | R88: 9465860
O89: 2045 | P89: =SUM(MaleT!D77:CK77) -> 4764749 | Q89: =SUM(FemaleT!D77:CK77) -> 4768686 | R89: 9533435
O90: 2046 | P90: =SUM(MaleT!D78:CK78) -> 4799854 | Q90: =SUM(FemaleT!D78:CK78) -> 4800824 | R90: 9600678
O91: 2047 | P91: =SUM(MaleT!D79:CK79) -> 4834832 | Q91: =SUM(FemaleT!D79:CK79) -> 4832771 | R91: 9667603
O92: 2048 | P92: =SUM(MaleT!D80:CK80) -> 4869705 | Q92: =SUM(FemaleT!D80:CK80) -> 4864555 | R92: 9734260
O93: 2049 | P93: =SUM(MaleT!D81:CK81) -> 4904487 | Q93: =SUM(FemaleT!D81:CK81) -> 4896222 | R93: 9800709
O94: =O93+1 -> 2050 | P94: =SUM(MaleT!D82:CK82) -> 4939235 | Q94: =SUM(FemaleT!D82:CK82) -> 4927825 | R94: 9867060

Sheet MaleT (hidden)
A1: Sex | B1: Year | C1: Label | D1: Age_0 | E1: Age_1 | F1: Age_2 | G1: Age_3 | H1: Age_4 | I1: Age_5 | J1: Age_6 | K1: Age_7 | L1: Age_8 | M1: Age_9 | N1: Age_10 | O1: Age_11 | P1: Age_12 | Q1: Age_13 | R1: Age_14 | S1: Age_15 | T1: Age_16 | U1: Age_17 | V1: Age_18 | W1: Age_19 | X1: Age_20 | Y1: Age_21 | Z1: Age_22 | AA1: Age_23 | AB1: Age_24 | AC1: Age_25 | AD1: Age_26 | AE1: Age_27 | AF1: Age_28 | AG1: Age_29 | AH1: Age_30 | AI1: Age_31 | AJ1: Age_32 | AK1: Age_33 | AL1: Age_34 | AM1: Age_35 | AN1: Age_36 | AO1: Age_37 | AP1: Age_38 | AQ1: Age_39 | AR1: Age_40 | AS1: Age_41 | AT1: Age_42 | AU1: Age_43 | AV1: Age_44 | AW1: Age_45 | AX1: Age_46 | AY1: Age_47 | AZ1: Age_48 | BA1: Age_49 | BB1: Age_50 | BC1: Age_51 | BD1: Age_52 | BE1: Age_53 | BF1: Age_54 | BG1: Age_55 | BH1: Age_56 | BI1: Age_57 | BJ1: Age_58 | BK1: Age_59 | BL1: Age_60 | BM1: Age_61 | BN1: Age_62 | BO1: Age_63 | BP1: Age_64 | BQ1: Age_65 | BR1: Age_66 | BS1: Age_67 | BT1: Age_68 | BU1: Age_69 | BV1: Age_70 | BW1: Age_71 | BX1: Age_72 | BY1: Age_73 | BZ1: Age_74 | CA1: Age_75 | CB1: Age_76 | CC1: Age_77 | CD1: Age_78 | CE1: Age_79 | CF1: Age_80 | CG1: Age_81 | CH1: Age_82 | CI1: Age_83 | CJ1: Age_84 | CK1: Age_85
A2: M | B2: 1970 | C2: Male 1970 | D2: 29781 | E2: 29163 | F2: 27428 | G2: 27951 | H2: 28867 | I2: 30702 | J2: 33023 | K2: 34271 | L2: 34628 | M2: 35650 | N2: 36529 | O2: 35227 | P2: 36162 | Q2: 35477 | R2: 35317 | S2: 34849 | T2: 33986 | U2: 34674 | V2: 32612 | W2: 33032 | X2: 32700 | Y2: 30583 | Z2: 30895 | AA2: 30961 | AB2: 23797 | AC2: 25072 | AD2: 26032 | AE2: 25801 | AF2: 22896 | AG2: 21152 | AH2: 20962 | AI2: 20100 | AJ2: 19464 | AK2: 18529 | AL2: 18481 | AM2: 18282 | AN2: 17802 | AO2: 17957 | AP2: 17909 | AQ2: 18686 | AR2: 19637 | AS2: 18602 | AT2: 19212 | AU2: 18679 | AV2: 19336 | AW2: 19871 | AX2: 19673 | AY2: 19741 | AZ2: 20944 | BA2: 19993 | BB2: 20354 | BC2: 19044 | BD2: 18749 | BE2: 17948 | BF2: 18007 | BG2: 17671 | BH2: 17184 | BI2: 16467 | BJ2: 16168 | BK2: 15375 | BL2: 15481 | BM2: 14103 | BN2: 13368 | BO2: 12501 | BP2: 12031 | BQ2: 11364 | BR2: 10730 | BS2: 10164 | BT2: 8926 | BU2: 8953 | BV2: 8719 | BW2: 7526 | BX2: 7119 | BY2: 6852 | BZ2: 6361 | CA2: 6005 | CB2: 5606 | CC2: 5276 | CD2: 4761 | CE2: 4212 | CF2: 4266 | CG2: 3654 | CH2: 3125 | CI2: 2743 | CJ2: 2335 | CK2: 9554
A3: M | B3: 1971 | C3: Male 1971 | D3: 30028 | E3: 29733 | F3: 29115 | G3: 27376 | H3: 27894 | I3: 28806 | J3: 30636 | K3: 32957 | L3: 34205 | M3: 34563 | N3: 35583 | O3: 36460 | P3: 35152 | Q3: 36081 | R3: 35389 | S3: 35222 | T3: 34748 | U3: 33875 | V3: 34548 | W3: 32479 | X3: 32891 | Y3: 32558 | Z3: 30441 | AA3: 30750 | AB3: 30811 | AC3: 23652 | AD3: 24916 | AE3: 25873 | AF3: 25641 | AG3: 22742 | AH3: 20996 | AI3: 20801 | AJ3: 19935 | AK3: 19297 | AL3: 18363 | AM3: 18318 | AN3: 18122 | AO3: 17640 | AP3: 17794 | AQ3: 17746 | AR3: 18522 | AS3: 19473 | AT3: 18444 | AU3: 19053 | AV3: 18521 | AW3: 19172 | AX3: 19697 | AY3: 19494 | AZ3: 19558 | BA3: 20746 | BB3: 19792 | BC3: 20137 | BD3: 18828 | BE3: 18519 | BF3: 17708 | BG3: 17748 | BH3: 17396 | BI3: 16891 | BJ3: 16160 | BK3: 15842 | BL3: 15045 | BM3: 15132 | BN3: 13767 | BO3: 13025 | BP3: 12157 | BQ3: 11685 | BR3: 11009 | BS3: 10365 | BT3: 9790 | BU3: 8572 | BV3: 8582 | BW3: 8329 | BX3: 7162 | BY3: 6745 | BZ3: 6457 | CA3: 5998 | CB3: 5628 | CC3: 5218 | CD3: 4879 | CE3: 4372 | CF3: 3875 | CG3: 3895 | CH3: 3308 | CI3: 2804 | CJ3: 2440 | CK3: 9676
A4: M | B4: 1972 | C4: Male 1972 | D4: 26604 | E4: 29938 | F4: 29630 | G4: 28989 | H4: 27222 | I4: 27721 | J4: 28606 | K4: 30426 | L4: 32743 | M4: 33988 | N4: 34341 | O4: 35355 | P4: 36222 | Q4: 34905 | R4: 35815 | S4: 35105 | T4: 34922 | U4: 34431 | V4: 33533 | W4: 34189 | X4: 32104 | Y4: 32510 | Z4: 32169 | AA4: 30043 | AB4: 30329 | AC4: 30371 | AD4: 23182 | AE4: 24432 | AF4: 25368 | AG4: 25135 | AH4: 22224 | AI4: 20465 | AJ4: 20250 | AK4: 19381 | AL4: 18748 | AM4: 17836 | AN4: 17807 | AO4: 17616 | AP4: 17146 | AQ4: 17309 | AR4: 17290 | AS4: 18095 | AT4: 19072 | AU4: 18074 | AV4: 18698 | AW4: 18189 | AX4: 18839 | AY4: 19368 | AZ4: 19182 | BA4: 19257 | BB4: 20440 | BC4: 19496 | BD4: 19842 | BE4: 18541 | BF4: 18217 | BG4: 17400 | BH4: 17422 | BI4: 17052 | BJ4: 16529 | BK4: 15788 | BL4: 15473 | BM4: 14697 | BN4: 14779 | BO4: 13427 | BP4: 12684 | BQ4: 11838 | BR4: 11339 | BS4: 10656 | BT4: 10007 | BU4: 9424 | BV4: 8248 | BW4: 8217 | BX4: 7942 | BY4: 6800 | BZ4: 6367 | CA4: 6127 | CB4: 5614 | CC4: 5229 | CD4: 4817 | CE4: 4472 | CF4: 4055 | CG4: 3532 | CH4: 3519 | CI4: 2963 | CJ4: 2490 | CK4: 9805
A5: M | B5: 1973 | C5: Male 1973 | D5: 23739 | E5: 26568 | F5: 29900 | G5: 29591 | H5: 28949 | I5: 27184 | J5: 27682 | K5: 28568 | L5: 30390 | M5: 32707 | N5: 33952 | O5: 34301 | P5: 35311 | Q5: 36170 | R5: 34848 | S5: 35752 | T5: 35038 | U5: 34845 | V5: 34343 | W5: 33437 | X5: 34085 | Y5: 32003 | Z5: 32407 | AA5: 32066 | AB5: 29942 | AC5: 30230 | AD5: 30259 | AE5: 23086 | AF5: 24335 | AG5: 25271 | AH5: 25037 | AI5: 22127 | AJ5: 20368 | AK5: 20151 | AL5: 19284 | AM5: 18652 | AN5: 17741 | AO5: 17709 | AP5: 17516 | AQ5: 17044 | AR5: 17206 | AS5: 17185 | AT5: 17986 | AU5: 18956 | AV5: 17958 | AW5: 18572 | AX5: 18059 | AY5: 18697 | AZ5: 19215 | BA5: 19020 | BB5: 19084 | BC5: 20242 | BD5: 19291 | BE5: 19614 | BF5: 18308 | BG5: 17968 | BH5: 17142 | BI5: 17140 | BJ5: 16750 | BK5: 16209 | BL5: 15462 | BM5: 15132 | BN5: 14350 | BO5: 14402 | BP5: 13059 | BQ5: 12338 | BR5: 11460 | BS5: 10944 | BT5: 10256 | BU5: 9601 | BV5: 9051 | BW5: 7874 | BX5: 7815 | BY5: 7519 | BZ5: 6405 | CA5: 6047 | CB5: 5718 | CC5: 5207 | CD5: 4818 | CE5: 4408 | CF5: 4184 | CG5: 3689 | CH5: 3187 | CI5: 3148 | CJ5: 2627 | CK5: 9967
A6: M | B6: 1974 | C6: Male 1974 | D6: 24207 | E6: 24113 | F6: 27003 | G6: 30408 | H6: 30111 | I6: 29460 | J6: 27651 | K6: 28147 | L6: 29053 | M6: 30888 | N6: 33226 | O6: 34470 | P6: 34801 | Q6: 35802 | R6: 36647 | S6: 35286 | T6: 36179 | U6: 35410 | V6: 35241 | W6: 34799 | X6: 33949 | Y6: 34679 | Z6: 32526 | AA6: 32902 | AB6: 32558 | AC6: 30399 | AD6: 30723 | AE6: 30789 | AF6: 23519 | AG6: 24820 | AH6: 25801 | AI6: 25588 | AJ6: 22684 | AK6: 20858 | AL6: 20590 | AM6: 19557 | AN6: 18872 | AO6: 17927 | AP6: 17891 | AQ6: 17693 | AR6: 17267 | AS6: 17424 | AT6: 17416 | AU6: 18222 | AV6: 19198 | AW6: 18138 | AX6: 18729 | AY6: 18192 | AZ6: 18815 | BA6: 19304 | BB6: 19073 | BC6: 19081 | BD6: 20207 | BE6: 19231 | BF6: 19521 | BG6: 18202 | BH6: 17850 | BI6: 17010 | BJ6: 16983 | BK6: 16569 | BL6: 16002 | BM6: 15233 | BN6: 14882 | BO6: 14087 | BP6: 14109 | BQ6: 12798 | BR6: 12022 | BS6: 11130 | BT6: 10598 | BU6: 9899 | BV6: 9262 | BW6: 8666 | BX6: 7509 | BY6: 7422 | BZ6: 7104 | CA6: 6109 | CB6: 5651 | CC6: 5311 | CD6: 4807 | CE6: 4415 | CF6: 4169 | CG6: 3809 | CH6: 3332 | CI6: 2855 | CJ6: 2794 | CK6: 10295
A7: M | B7: 1975 | C7: Male 1975 | D7: 25285 | E7: 24523 | F7: 24440 | G7: 27385 | H7: 30852 | I7: 30552 | J7: 29882 | K7: 28036 | L7: 28545 | M7: 29449 | N7: 31296 | O7: 33651 | P7: 34892 | Q7: 35210 | R7: 36204 | S7: 37041 | T7: 35648 | U7: 36514 | V7: 35767 | W7: 35658 | X7: 35271 | Y7: 34470 | Z7: 35178 | AA7: 32966 | AB7: 33346 | AC7: 32999 | AD7: 30834 | AE7: 31191 | AF7: 31285 | AG7: 23920 | AH7: 25264 | AI7: 26283 | AJ7: 26135 | AK7: 23147 | AL7: 21245 | AM7: 20838 | AN7: 19755 | AO7: 19045 | AP7: 18088 | AQ7: 18048 | AR7: 17892 | AS7: 17457 | AT7: 17628 | AU7: 17616 | AV7: 18427 | AW7: 19372 | AX7: 18279 | AY7: 18857 | AZ7: 18300 | BA7: 18900 | BB7: 19363 | BC7: 19089 | BD7: 19076 | BE7: 20182 | BF7: 19190 | BG7: 19464 | BH7: 18141 | BI7: 17783 | BJ7: 16937 | BK7: 16898 | BL7: 16462 | BM7: 15875 | BN7: 15094 | BO7: 14728 | BP7: 13922 | BQ7: 13979 | BR7: 12602 | BS7: 11799 | BT7: 10891 | BU7: 10338 | BV7: 9676 | BW7: 9000 | BX7: 8389 | BY7: 7241 | BZ7: 7121 | CA7: 6891 | CB7: 5801 | CC7: 5333 | CD7: 4981 | CE7: 4477 | CF7: 4256 | CG7: 3836 | CH7: 3478 | CI7: 3016 | CJ7: 2561 | CK7: 10664
A8: M | B8: 1976 | C8: Male 1976 | D8: 25989 | E8: 25664 | F8: 24904 | G8: 24836 | H8: 27842 | I8: 31370 | J8: 31052 | K8: 30360 | L8: 28489 | M8: 28991 | N8: 29895 | O8: 31751 | P8: 34118 | Q8: 35353 | R8: 35649 | S8: 36635 | T8: 37459 | U8: 36004 | V8: 36905 | W8: 36214 | X8: 36172 | Y8: 35853 | Z8: 35003 | AA8: 35686 | AB8: 33443 | AC8: 33826 | AD8: 33507 | AE8: 31345 | AF8: 31745 | AG8: 31876 | AH8: 24394 | AI8: 25791 | AJ8: 26911 | AK8: 26731 | AL8: 23627 | AM8: 21530 | AN8: 21072 | AO8: 19954 | AP8: 19233 | AQ8: 18262 | AR8: 18274 | AS8: 18111 | AT8: 17682 | AU8: 17849 | AV8: 17832 | AW8: 18606 | AX8: 19530 | AY8: 18410 | AZ8: 18972 | BA8: 18382 | BB8: 18952 | BC8: 19361 | BD8: 19059 | BE8: 19020 | BF8: 20093 | BG8: 19086 | BH8: 19344 | BI8: 18009 | BJ8: 17631 | BK8: 16767 | BL8: 16695 | BM8: 16233 | BN8: 15626 | BO8: 14830 | BP8: 14442 | BQ8: 13686 | BR8: 13623 | BS8: 12242 | BT8: 11430 | BU8: 10519 | BV8: 10002 | BW8: 9283 | BX8: 8604 | BY8: 7987 | BZ8: 6859 | CA8: 6819 | CB8: 6449 | CC8: 5397 | CD8: 4931 | CE8: 4574 | CF8: 4280 | CG8: 3873 | CH8: 3465 | CI8: 3116 | CJ8: 2679 | CK8: 10853
A9: M | B9: 1977 | C9: Male 1977 | D9: 27386 | E9: 26457 | F9: 26143 | G9: 25388 | H9: 25333 | I9: 28401 | J9: 31983 | K9: 31644 | L9: 30945 | M9: 29018 | N9: 29512 | O9: 30412 | P9: 32276 | Q9: 34657 | R9: 35883 | S9: 36160 | T9: 37134 | U9: 37914 | V9: 36475 | W9: 37469 | X9: 36850 | Y9: 36896 | Z9: 36525 | AA9: 35619 | AB9: 36314 | AC9: 34038 | AD9: 34460 | AE9: 34179 | AF9: 32018 | AG9: 32467 | AH9: 32639 | AI9: 25006 | AJ9: 26532 | AK9: 27651 | AL9: 27400 | AM9: 24014 | AN9: 21827 | AO9: 21334 | AP9: 20200 | AQ9: 19466 | AR9: 18546 | AS9: 18554 | AT9: 18406 | AU9: 17964 | AV9: 18127 | AW9: 18060 | AX9: 18812 | AY9: 19725 | AZ9: 18573 | BA9: 19105 | BB9: 18477 | BC9: 18989 | BD9: 19370 | BE9: 19042 | BF9: 18973 | BG9: 20024 | BH9: 19009 | BI9: 19247 | BJ9: 17896 | BK9: 17497 | BL9: 16607 | BM9: 16503 | BN9: 16020 | BO9: 15395 | BP9: 14585 | BQ9: 14244 | BR9: 13375 | BS9: 13274 | BT9: 11895 | BU9: 11074 | BV9: 10207 | BW9: 9628 | BX9: 8904 | BY9: 8221 | BZ9: 7594 | CA9: 6586 | CB9: 6407 | CC9: 6023 | CD9: 5012 | CE9: 4552 | CF9: 4409 | CG9: 3908 | CH9: 3511 | CI9: 3117 | CJ9: 2780 | CK9: 11240
A10: M | B10: 1978 | C10: Male 1978 | D10: 28699 | E10: 28218 | F10: 27288 | G10: 26997 | H10: 26238 | I10: 26183 | J10: 29330 | K10: 33002 | L10: 32660 | M10: 31904 | N10: 29887 | O10: 30365 | P10: 31256 | Q10: 33131 | R10: 35534 | S10: 36753 | T10: 36996 | U10: 37909 | V10: 38769 | W10: 37437 | X10: 38601 | Y10: 38112 | Z10: 38085 | AA10: 37629 | AB10: 36699 | AC10: 37415 | AD10: 35134 | AE10: 35643 | AF10: 35425 | AG10: 33253 | AH10: 33785 | AI10: 34028 | AJ10: 26220 | AK10: 27769 | AL10: 28825 | AM10: 28175 | AN10: 24595 | AO10: 22307 | AP10: 21801 | AQ10: 20640 | AR10: 20002 | AS10: 19051 | AT10: 19093 | AU10: 18933 | AV10: 18473 | AW10: 18561 | AX10: 18447 | AY10: 19187 | AZ10: 20087 | BA10: 18864 | BB10: 19355 | BC10: 18631 | BD10: 19107 | BE10: 19458 | BF10: 19091 | BG10: 19005 | BH10: 20049 | BI10: 19018 | BJ10: 19232 | BK10: 17857 | BL10: 17419 | BM10: 16493 | BN10: 16363 | BO10: 15857 | BP10: 15209 | BQ10: 14459 | BR10: 13975 | BS10: 13082 | BT10: 12945 | BU10: 11564 | BV10: 10759 | BW10: 9840 | BX10: 9246 | BY10: 8517 | BZ10: 7825 | CA10: 7282 | CB10: 6185 | CC10: 5981 | CD10: 5589 | CE10: 4621 | CF10: 4389 | CG10: 4014 | CH10: 3533 | CI10: 3147 | CJ10: 2771 | CK10: 11616
A11: M | B11: 1979 | C11: Male 1979 | D11: 30452 | E11: 29714 | F11: 29249 | G11: 28327 | H11: 28051 | I11: 27264 | J11: 27178 | K11: 30414 | L11: 34232 | M11: 33833 | N11: 33012 | O11: 30889 | P11: 31343 | Q11: 32220 | R11: 34107 | S11: 36539 | T11: 37746 | U11: 37898 | V11: 38911 | W11: 39967 | X11: 38762 | Y11: 40145 | Z11: 39550 | AA11: 39433 | AB11: 38962 | AC11: 38001 | AD11: 38826 | AE11: 36543 | AF11: 37160 | AG11: 37019 | AH11: 34827 | AI11: 35461 | AJ11: 35955 | AK11: 27643 | AL11: 29147 | AM11: 29782 | AN11: 28976 | AO11: 25234 | AP11: 22885 | AQ11: 22362 | AR11: 21311 | AS11: 20647 | AT11: 19705 | AU11: 19745 | AV11: 19572 | AW11: 19004 | AX11: 19041 | AY11: 18893 | AZ11: 19619 | BA11: 20481 | BB11: 19177 | BC11: 19574 | BD11: 18801 | BE11: 19248 | BF11: 19559 | BG11: 19174 | BH11: 19082 | BI11: 20119 | BJ11: 19059 | BK11: 19251 | BL11: 17830 | BM11: 17350 | BN11: 16401 | BO11: 16244 | BP11: 15714 | BQ11: 15126 | BR11: 14228 | BS11: 13710 | BT11: 12797 | BU11: 12624 | BV11: 11245 | BW11: 10403 | BX11: 9480 | BY11: 8874 | BZ11: 8136 | CA11: 7504 | CB11: 6858 | CC11: 5791 | CD11: 5570 | CE11: 5170 | CF11: 4475 | CG11: 4006 | CH11: 3641 | CI11: 3177 | CJ11: 2808 | CK11: 12004
A12: M | B12: 1980 | C12: Male 1980 | D12: 34538 | E12: 31726 | F12: 30538 | G12: 30386 | H12: 29491 | I12: 29116 | J12: 28347 | K12: 28747 | L12: 30658 | M12: 34574 | N12: 34907 | O12: 33518 | P12: 31779 | Q12: 32002 | R12: 32954 | S12: 35154 | T12: 37107 | U12: 38037 | V12: 38144 | W12: 40890 | X12: 41225 | Y12: 40765 | Z12: 41470 | AA12: 41481 | AB12: 41317 | AC12: 41016 | AD12: 39902 | AE12: 40328 | AF12: 37423 | AG12: 38584 | AH12: 38022 | AI12: 36543 | AJ12: 37950 | AK12: 37409 | AL12: 28829 | AM12: 29427 | AN12: 29925 | AO12: 29407 | AP12: 25316 | AQ12: 24640 | AR12: 23281 | AS12: 22422 | AT12: 21685 | AU12: 20679 | AV12: 20383 | AW12: 20001 | AX12: 19139 | AY12: 19237 | AZ12: 18687 | BA12: 20341 | BB12: 20261 | BC12: 19166 | BD12: 19732 | BE12: 18918 | BF12: 19376 | BG12: 19766 | BH12: 19485 | BI12: 19276 | BJ12: 20181 | BK12: 19615 | BL12: 18498 | BM12: 17967 | BN12: 17435 | BO12: 16412 | BP12: 16228 | BQ12: 15656 | BR12: 14790 | BS12: 13964 | BT12: 13525 | BU12: 12360 | BV12: 11365 | BW12: 10802 | BX12: 9960 | BY12: 8949 | BZ12: 8399 | CA12: 7487 | CB12: 6853 | CC12: 6197 | CD12: 5290 | CE12: 5172 | CF12: 4338 | CG12: 3845 | CH12: 3332 | CI12: 2972 | CJ12: 2619 | CK12: 12669
A13: M | B13: 1981 | C13: Male 1981 | D13: 34669 | E13: 35241 | F13: 32442 | G13: 31224 | H13: 31042 | I13: 30065 | J13: 29628 | K13: 28813 | L13: 29219 | M13: 31176 | N13: 35169 | O13: 35514 | P13: 34075 | Q13: 32274 | R13: 32503 | S13: 33474 | T13: 35731 | U13: 37720 | V13: 38690 | W13: 38819 | X13: 41611 | Y13: 41960 | Z13: 41520 | AA13: 42299 | AB13: 42355 | AC13: 42201 | AD13: 41878 | AE13: 40709 | AF13: 41085 | AG13: 38067 | AH13: 39180 | AI13: 38558 | AJ13: 37021 | AK13: 38416 | AL13: 37895 | AM13: 29258 | AN13: 29920 | AO13: 30442 | AP13: 29884 | AQ13: 25690 | AR13: 24918 | AS13: 23450 | AT13: 22502 | AU13: 21718 | AV13: 20693 | AW13: 20428 | AX13: 20095 | AY13: 19266 | AZ13: 19360 | BA13: 18783 | BB13: 20420 | BC13: 20306 | BD13: 19184 | BE13: 19724 | BF13: 18889 | BG13: 19329 | BH13: 19699 | BI13: 19405 | BJ13: 19178 | BK13: 20049 | BL13: 19450 | BM13: 18306 | BN13: 17743 | BO13: 17186 | BP13: 16161 | BQ13: 15968 | BR13: 15400 | BS13: 14522 | BT13: 13677 | BU13: 13183 | BV13: 11976 | BW13: 10933 | BX13: 10328 | BY13: 9476 | BZ13: 8485 | CA13: 7944 | CB13: 7061 | CC13: 6436 | CD13: 5785 | CE13: 4904 | CF13: 4759 | CG13: 3959 | CH13: 3480 | CI13: 2988 | CJ13: 2639 | CK13: 12757
A14: M | B14: 1982 | C14: Male 1982 | D14: 35596 | E14: 34673 | F14: 35328 | G14: 32531 | H14: 31311 | I14: 31119 | J14: 30133 | K14: 29690 | L14: 28875 | M14: 29283 | N14: 31247 | O14: 35251 | P14: 35591 | Q14: 34140 | R14: 32331 | S14: 32554 | T14: 33524 | U14: 35780 | V14: 37771 | W14: 38742 | X14: 38869 | Y14: 41664 | Z14: 42014 | AA14: 41582 | AB14: 42369 | AC14: 42426 | AD14: 42268 | AE14: 41942 | AF14: 40761 | AG14: 41130 | AH14: 38099 | AI14: 39206 | AJ14: 38578 | AK14: 37034 | AL14: 38434 | AM14: 37919 | AN14: 29282 | AO14: 29945 | AP14: 30460 | AQ14: 29896 | AR14: 25682 | AS14: 24892 | AT14: 23408 | AU14: 22451 | AV14: 21661 | AW14: 20637 | AX14: 20375 | AY14: 20041 | AZ14: 19208 | BA14: 19289 | BB14: 18705 | BC14: 20320 | BD14: 20192 | BE14: 19063 | BF14: 19582 | BG14: 18739 | BH14: 19158 | BI14: 19508 | BJ14: 19197 | BK14: 18949 | BL14: 19778 | BM14: 19156 | BN14: 18000 | BO14: 17421 | BP14: 16851 | BQ14: 15828 | BR14: 15620 | BS14: 15035 | BT14: 14144 | BU14: 13272 | BV14: 12739 | BW14: 11514 | BX14: 10460 | BY14: 9838 | BZ14: 8991 | CA14: 8021 | CB14: 7480 | CC14: 6617 | CD14: 5999 | CE14: 5359 | CF14: 4513 | CG14: 4346 | CH14: 3587 | CI14: 3124 | CJ14: 2658 | CK14: 12896
A15: M | B15: 1983 | C15: Male 1983 | D15: 35200 | E15: 35401 | F15: 34568 | G15: 35232 | H15: 32450 | I15: 31235 | J15: 31045 | K15: 30078 | L15: 29645 | M15: 28842 | N15: 29259 | O15: 31236 | P15: 35249 | Q15: 35587 | R15: 34130 | S15: 32313 | T15: 32529 | U15: 33471 | V15: 35694 | W15: 37603 | X15: 38487 | Y15: 38431 | Z15: 41142 | AA15: 41434 | AB15: 40983 | AC15: 41734 | AD15: 41783 | AE15: 41697 | AF15: 41434 | AG15: 40345 | AH15: 40789 | AI15: 37847 | AJ15: 38996 | AK15: 38400 | AL15: 36892 | AM15: 38313 | AN15: 37821 | AO15: 29216 | AP15: 29885 | AQ15: 30408 | AR15: 29857 | AS15: 25649 | AT15: 24856 | AU15: 23372 | AV15: 22411 | AW15: 21617 | AX15: 20587 | AY15: 20319 | AZ15: 19976 | BA15: 19136 | BB15: 19212 | BC15: 18620 | BD15: 20219 | BE15: 20078 | BF15: 18944 | BG15: 19445 | BH15: 18596 | BI15: 19000 | BJ15: 19334 | BK15: 19015 | BL15: 18748 | BM15: 19549 | BN15: 18915 | BO15: 17754 | BP15: 17161 | BQ15: 16579 | BR15: 15553 | BS15: 15317 | BT15: 14704 | BU15: 13785 | BV15: 12881 | BW15: 12304 | BX15: 11060 | BY15: 9998 | BZ15: 9361 | CA15: 8519 | CB15: 7565 | CC15: 7021 | CD15: 6177 | CE15: 5568 | CF15: 4940 | CG15: 4130 | CH15: 3944 | CI15: 3227 | CJ15: 2784 | CK15: 13061
A16: M | B16: 1984 | C16: Male 1984 | D16: 34911 | E16: 35237 | F16: 35522 | G16: 34694 | H16: 35361 | I16: 32556 | J16: 31327 | K16: 31131 | L16: 30162 | M16: 29731 | N16: 28928 | O16: 29348 | P16: 31324 | Q16: 35339 | R16: 35673 | S16: 34207 | T16: 32384 | U16: 32597 | V16: 33541 | W16: 35769 | X16: 37680 | Y16: 38567 | Z16: 38512 | AA16: 41238 | AB16: 41540 | AC16: 41090 | AD16: 41839 | AE16: 41885 | AF16: 41785 | AG16: 41510 | AH16: 40407 | AI16: 40842 | AJ16: 37889 | AK16: 39032 | AL16: 38440 | AM16: 36940 | AN16: 38374 | AO16: 37882 | AP16: 29255 | AQ16: 29917 | AR16: 30415 | AS16: 29836 | AT16: 25609 | AU16: 24804 | AV16: 23314 | AW16: 22357 | AX16: 21568 | AY16: 20541 | AZ16: 20266 | BA16: 19912 | BB16: 19064 | BC16: 19123 | BD16: 18521 | BE16: 20097 | BF16: 19939 | BG16: 18799 | BH16: 19279 | BI16: 18420 | BJ16: 18802 | BK16: 19108 | BL16: 18763 | BM16: 18470 | BN16: 19226 | BO16: 18575 | BP16: 17412 | BQ16: 16811 | BR16: 16222 | BS16: 15188 | BT16: 14922 | BU16: 14273 | BV16: 13321 | BW16: 12385 | BX16: 11771 | BY16: 10535 | BZ16: 9486 | CA16: 8849 | CB16: 8022 | CC16: 7091 | CD16: 6546 | CE16: 5723 | CF16: 5124 | CG16: 4511 | CH16: 3743 | CI16: 3541 | CJ16: 2871 | CK16: 13274
A17: M | B17: 1985 | C17: Male 1985 | D17: 35149 | E17: 35144 | F17: 35553 | G17: 35846 | H17: 35002 | I17: 35644 | J17: 32791 | K17: 31538 | L17: 31341 | M17: 30372 | N17: 29942 | O17: 29136 | P17: 29549 | Q17: 31522 | R17: 35560 | S17: 35894 | T17: 34423 | U17: 32587 | V17: 32808 | W17: 33763 | X17: 36004 | Y17: 37931 | Z17: 38833 | AA17: 38800 | AB17: 41565 | AC17: 41875 | AD17: 41414 | AE17: 42156 | AF17: 42176 | AG17: 42049 | AH17: 41741 | AI17: 40610 | AJ17: 41029 | AK17: 38049 | AL17: 39209 | AM17: 38642 | AN17: 37161 | AO17: 38609 | AP17: 38096 | AQ17: 29402 | AR17: 30020 | AS17: 30466 | AT17: 29835 | AU17: 25583 | AV17: 24766 | AW17: 23290 | AX17: 22352 | AY17: 21576 | AZ17: 20542 | BA17: 20250 | BB17: 19881 | BC17: 19014 | BD17: 19058 | BE17: 18441 | BF17: 19990 | BG17: 19817 | BH17: 18668 | BI17: 19128 | BJ17: 18259 | BK17: 18612 | BL17: 18883 | BM17: 18510 | BN17: 18189 | BO17: 18903 | BP17: 18242 | BQ17: 17082 | BR17: 16477 | BS17: 15870 | BT17: 14823 | BU17: 14505 | BV17: 13808 | BW17: 12814 | BX17: 11851 | BY17: 11212 | BZ17: 9998 | CA17: 8972 | CB17: 8340 | CC17: 7526 | CD17: 6616 | CE17: 6069 | CF17: 5270 | CG17: 4682 | CH17: 4089 | CI17: 3363 | CJ17: 3152 | CK17: 13530
A18: M | B18: 1986 | C18: Male 1986 | D18: 35492 | E18: 35169 | F18: 35246 | G18: 35664 | H18: 35959 | I18: 35100 | J18: 35736 | K18: 32869 | L18: 31615 | M18: 31419 | N18: 30449 | O18: 30021 | P18: 29208 | Q18: 29613 | R18: 31586 | S18: 35627 | T18: 35959 | U18: 34482 | V18: 32642 | W18: 32863 | X18: 33817 | Y18: 36063 | Z18: 37994 | AA18: 38905 | AB18: 38880 | AC18: 41652 | AD18: 41960 | AE18: 41495 | AF18: 42226 | AG18: 42237 | AH18: 42098 | AI18: 41781 | AJ18: 40642 | AK18: 41054 | AL18: 38077 | AM18: 39246 | AN18: 38688 | AO18: 37205 | AP18: 38645 | AQ18: 38120 | AR18: 29401 | AS18: 29995 | AT18: 30416 | AU18: 29772 | AV18: 25520 | AW18: 24704 | AX18: 23234 | AY18: 22298 | AZ18: 21517 | BA18: 20473 | BB18: 20170 | BC18: 19788 | BD18: 18913 | BE18: 18943 | BF18: 18314 | BG18: 19837 | BH18: 19648 | BI18: 18493 | BJ18: 18931 | BK18: 18046 | BL18: 18369 | BM18: 18606 | BN18: 18209 | BO18: 17868 | BP18: 18545 | BQ18: 17876 | BR18: 16720 | BS18: 16098 | BT18: 15468 | BU18: 14396 | BV18: 14028 | BW18: 13287 | BX18: 12272 | BY18: 11301 | BZ18: 10651 | CA18: 9463 | CB18: 8460 | CC18: 7828 | CD18: 7027 | CE18: 6140 | CF18: 5596 | CG18: 4823 | CH18: 4252 | CI18: 3681 | CJ18: 3000 | CK18: 14048
A19: M | B19: 1987 | C19: Male 1987 | D19: 35139 | E19: 35771 | F19: 35523 | G19: 35605 | H19: 36015 | I19: 36279 | J19: 35382 | K19: 36005 | L19: 33116 | M19: 31860 | N19: 31668 | O19: 30693 | P19: 30250 | Q19: 29414 | R19: 29821 | S19: 31806 | T19: 35882 | U19: 36215 | V19: 34737 | W19: 32889 | X19: 33110 | Y19: 34073 | Z19: 36346 | AA19: 38318 | AB19: 39254 | AC19: 39236 | AD19: 42026 | AE19: 42322 | AF19: 41824 | AG19: 42531 | AH19: 42507 | AI19: 42341 | AJ19: 42003 | AK19: 40841 | AL19: 41269 | AM19: 38307 | AN19: 39517 | AO19: 38962 | AP19: 37449 | AQ19: 38869 | AR19: 38279 | AS19: 29465 | AT19: 30005 | AU19: 30394 | AV19: 29736 | AW19: 25503 | AX19: 24712 | AY19: 23258 | AZ19: 22314 | BA19: 21515 | BB19: 20453 | BC19: 20130 | BD19: 19732 | BE19: 18842 | BF19: 18854 | BG19: 18214 | BH19: 19712 | BI19: 19509 | BJ19: 18343 | BK19: 18754 | BL19: 17848 | BM19: 18137 | BN19: 18340 | BO19: 17920 | BP19: 17565 | BQ19: 18213 | BR19: 17542 | BS19: 16378 | BT19: 15732 | BU19: 15058 | BV19: 13947 | BW19: 13514 | BX19: 12735 | BY19: 11711 | BZ19: 10746 | CA19: 10097 | CB19: 8941 | CC19: 7959 | CD19: 7325 | CE19: 6536 | CF19: 5672 | CG19: 5131 | CH19: 4388 | CI19: 3835 | CJ19: 3291 | CK19: 14388
A20: M | B20: 1988 | C20: Male 1988 | D20: 36214 | E20: 35728 | F20: 36448 | G20: 36193 | H20: 36251 | I20: 36606 | J20: 36816 | K20: 35872 | L20: 36503 | M20: 33586 | N20: 32322 | O20: 32131 | P20: 31122 | Q20: 30647 | R20: 29800 | S20: 30215 | T20: 32243 | U20: 36376 | V20: 36733 | W20: 35250 | X20: 33373 | Y20: 33602 | Z20: 34598 | AA20: 36951 | AB20: 38991 | AC20: 39954 | AD20: 39924 | AE20: 42734 | AF20: 42983 | AG20: 42422 | AH20: 43076 | AI20: 43003 | AJ20: 42800 | AK20: 42430 | AL20: 41280 | AM20: 41777 | AN20: 38840 | AO20: 40082 | AP20: 39485 | AQ20: 37906 | AR20: 39228 | AS20: 38503 | AT20: 29544 | AU20: 30032 | AV20: 30399 | AW20: 29779 | AX20: 25592 | AY20: 24838 | AZ20: 23372 | BA20: 22397 | BB20: 21571 | BC20: 20475 | BD20: 20130 | BE20: 19709 | BF20: 18798 | BG20: 18795 | BH20: 18141 | BI20: 19618 | BJ20: 19398 | BK20: 18213 | BL20: 18589 | BM20: 17658 | BN20: 17909 | BO20: 18077 | BP20: 17646 | BQ20: 17283 | BR20: 17911 | BS20: 17222 | BT20: 16041 | BU20: 15339 | BV20: 14602 | BW20: 13436 | BX20: 12944 | BY20: 12140 | BZ20: 11127 | CA20: 10185 | CB20: 9542 | CC20: 8414 | CD20: 7448 | CE20: 6811 | CF20: 6034 | CG20: 5195 | CH20: 4662 | CI20: 3952 | CJ20: 3423 | CK20: 14880
A21: M | B21: 1989 | C21: Male 1989 | D21: 37071 | E21: 37066 | F21: 36641 | G21: 37373 | H21: 37074 | I21: 37048 | J21: 37333 | K21: 37498 | L21: 36537 | M21: 37198 | N21: 34240 | O21: 32955 | P21: 32733 | Q21: 31671 | R21: 31191 | S21: 30334 | T21: 30778 | U21: 32849 | V21: 37088 | W21: 37474 | X21: 35959 | Y21: 34053 | Z21: 34312 | AA21: 35388 | AB21: 37839 | AC21: 39942 | AD21: 40912 | AE21: 40845 | AF21: 43650 | AG21: 43828 | AH21: 43173 | AI21: 43772 | AJ21: 43649 | AK21: 43405 | AL21: 43063 | AM21: 41985 | AN21: 42579 | AO21: 39609 | AP21: 40829 | AQ21: 40154 | AR21: 38404 | AS21: 39568 | AT21: 38678 | AU21: 29610 | AV21: 30074 | AW21: 30497 | AX21: 29958 | AY21: 25805 | AZ21: 25041 | BA21: 23531 | BB21: 22517 | BC21: 21650 | BD21: 20522 | BE21: 20150 | BF21: 19705 | BG21: 18779 | BH21: 18759 | BI21: 18095 | BJ21: 19551 | BK21: 19303 | BL21: 18092 | BM21: 18429 | BN21: 17472 | BO21: 17687 | BP21: 17838 | BQ21: 17402 | BR21: 17043 | BS21: 17633 | BT21: 16916 | BU21: 15679 | BV21: 14906 | BW21: 14088 | BX21: 12887 | BY21: 12354 | BZ21: 11554 | CA21: 10569 | CB21: 9652 | CC21: 9008 | CD21: 7897 | CE21: 6945 | CF21: 6305 | CG21: 5543 | CH21: 4734 | CI21: 4212 | CJ21: 3541 | CK21: 15488
A22: M | B22: 1990 | C22: Male 1990 | D22: 39650 | E22: 38137 | F22: 37771 | G22: 37566 | H22: 38408 | I22: 38295 | J22: 37929 | K22: 38393 | L22: 36418 | M22: 38701 | N22: 37820 | O22: 35022 | P22: 34076 | Q22: 33344 | R22: 32446 | S22: 32422 | T22: 31407 | U22: 32290 | V22: 32990 | W22: 38091 | X22: 38101 | Y22: 36919 | Z22: 35393 | AA22: 35279 | AB22: 37297 | AC22: 39249 | AD22: 40875 | AE22: 42362 | AF22: 41196 | AG22: 45213 | AH22: 44392 | AI22: 43871 | AJ22: 44845 | AK22: 44010 | AL22: 45547 | AM22: 44777 | AN22: 43109 | AO22: 43180 | AP22: 39718 | AQ22: 41833 | AR22: 40007 | AS22: 38869 | AT22: 39737 | AU22: 39200 | AV22: 30502 | AW22: 30703 | AX22: 30278 | AY22: 30480 | AZ22: 25317 | BA22: 25590 | BB22: 23735 | BC22: 22702 | BD22: 21714 | BE22: 20391 | BF22: 20372 | BG22: 19807 | BH22: 18546 | BI22: 18553 | BJ22: 17916 | BK22: 19486 | BL22: 18681 | BM22: 18071 | BN22: 18214 | BO22: 17697 | BP22: 17569 | BQ22: 17872 | BR22: 17380 | BS22: 16867 | BT22: 17162 | BU22: 16597 | BV22: 15004 | BW22: 14347 | BX22: 13429 | BY22: 12427 | BZ22: 11760 | CA22: 11190 | CB22: 10106 | CC22: 9276 | CD22: 8481 | CE22: 7548 | CF22: 6554 | CG22: 5889 | CH22: 5169 | CI22: 4494 | CJ22: 3760 | CK22: 15921
A23: M | B23: 1991 | C23: Male 1991 | D23: 39924 | E23: 38601 | F23: 38273 | G23: 38080 | H23: 38907 | I23: 38859 | J23: 38600 | K23: 39218 | L23: 37502 | M23: 39633 | N23: 38881 | O23: 36188 | P23: 35311 | Q23: 34587 | R23: 33870 | S23: 33834 | T23: 32908 | U23: 33742 | V23: 34290 | W23: 38821 | X23: 38817 | Y23: 37521 | Z23: 36009 | AA23: 35899 | AB23: 37676 | AC23: 39585 | AD23: 40872 | AE23: 42323 | AF23: 41613 | AG23: 45591 | AH23: 45058 | AI23: 44249 | AJ23: 44993 | AK23: 44143 | AL23: 45684 | AM23: 45387 | AN23: 43884 | AO23: 44020 | AP23: 40926 | AQ23: 42885 | AR23: 41400 | AS23: 40043 | AT23: 41034 | AU23: 40406 | AV23: 32436 | AW23: 32690 | AX23: 32029 | AY23: 32213 | AZ23: 27309 | BA23: 27378 | BB23: 25804 | BC23: 24616 | BD23: 23773 | BE23: 22537 | BF23: 21531 | BG23: 21067 | BH23: 19895 | BI23: 19839 | BJ23: 18865 | BK23: 20079 | BL23: 19241 | BM23: 18554 | BN23: 18611 | BO23: 17985 | BP23: 17790 | BQ23: 18033 | BR23: 17423 | BS23: 16943 | BT23: 17171 | BU23: 16683 | BV23: 15188 | BW23: 14500 | BX23: 13624 | BY23: 12637 | BZ23: 12005 | CA23: 11473 | CB23: 10422 | CC23: 9576 | CD23: 8878 | CE23: 7906 | CF23: 6911 | CG23: 6193 | CH23: 5457 | CI23: 4742 | CJ23: 4015 | CK23: 17056
A24: M | B24: 1992 | C24: Male 1992 | D24: 39847 | E24: 38731 | F24: 38444 | G24: 38266 | H24: 39071 | I24: 39087 | J24: 38939 | K24: 39706 | L24: 38264 | M24: 40225 | N24: 39609 | O24: 37044 | P24: 36245 | Q24: 35534 | R24: 35006 | S24: 34958 | T24: 34128 | U24: 34908 | V24: 35297 | W24: 39217 | X24: 39199 | Y24: 37800 | Z24: 36315 | AA24: 36210 | AB24: 37729 | AC24: 39579 | AD24: 40513 | AE24: 41916 | AF24: 41671 | AG24: 45575 | AH24: 45335 | AI24: 44244 | AJ24: 44752 | AK24: 43893 | AL24: 45424 | AM24: 45606 | AN24: 44282 | AO24: 44480 | AP24: 41783 | AQ24: 43569 | AR24: 42439 | AS24: 40873 | AT24: 41981 | AU24: 41265 | AV24: 34096 | AW24: 34402 | AX24: 33509 | AY24: 33674 | AZ24: 29072 | BA24: 28936 | BB24: 27656 | BC24: 26324 | BD24: 25633 | BE24: 24494 | BF24: 22508 | BG24: 22150 | BH24: 21077 | BI24: 20957 | BJ24: 19654 | BK24: 20500 | BL24: 19636 | BM24: 18877 | BN24: 18848 | BO24: 18118 | BP24: 17857 | BQ24: 18039 | BR24: 17314 | BS24: 16872 | BT24: 17030 | BU24: 16625 | BV24: 15241 | BW24: 14527 | BX24: 13702 | BY24: 12738 | BZ24: 12147 | CA24: 11657 | CB24: 10649 | CC24: 9793 | CD24: 9199 | CE24: 8198 | CF24: 7209 | CG24: 6444 | CH24: 5698 | CI24: 4949 | CJ24: 4236 | CK24: 18047
A25: M | B25: 1993 | C25: Male 1993 | D25: 39826 | E25: 38910 | F25: 38664 | G25: 38499 | H25: 39283 | I25: 39364 | J25: 39325 | K25: 40242 | L25: 39072 | M25: 40865 | N25: 40383 | O25: 37944 | P25: 37220 | Q25: 36523 | R25: 36182 | S25: 36122 | T25: 35387 | U25: 36112 | V25: 36344 | W25: 39660 | X25: 39629 | Y25: 38125 | Z25: 36666 | AA25: 36565 | AB25: 37829 | AC25: 39623 | AD25: 40208 | AE25: 41563 | AF25: 41780 | AG25: 45617 | AH25: 45669 | AI25: 44294 | AJ25: 44568 | AK25: 43700 | AL25: 45223 | AM25: 45881 | AN25: 44734 | AO25: 44995 | AP25: 42689 | AQ25: 44305 | AR25: 43527 | AS25: 41752 | AT25: 42976 | AU25: 42174 | AV25: 35792 | AW25: 36150 | AX25: 35026 | AY25: 35171 | AZ25: 30865 | BA25: 30524 | BB25: 29537 | BC25: 28059 | BD25: 27519 | BE25: 26476 | BF25: 23509 | BG25: 23256 | BH25: 22280 | BI25: 22098 | BJ25: 20465 | BK25: 20945 | BL25: 20055 | BM25: 19223 | BN25: 19108 | BO25: 18274 | BP25: 17946 | BQ25: 18067 | BR25: 17228 | BS25: 16823 | BT25: 16912 | BU25: 16589 | BV25: 15312 | BW25: 14572 | BX25: 13797 | BY25: 12855 | BZ25: 12303 | CA25: 11855 | CB25: 10889 | CC25: 10023 | CD25: 9531 | CE25: 8498 | CF25: 7516 | CG25: 6703 | CH25: 5946 | CI25: 5162 | CJ25: 4462 | CK25: 19058
A26: M | B26: 1994 | C26: Male 1994 | D26: 39855 | E26: 39140 | F26: 38934 | G26: 38783 | H26: 39547 | I26: 39692 | J26: 39763 | K26: 40830 | L26: 39930 | M26: 41558 | N26: 41210 | O26: 38892 | P26: 38244 | Q26: 37558 | R26: 37404 | S26: 37332 | T26: 36691 | U26: 37363 | V26: 37439 | W26: 40156 | X26: 40111 | Y26: 38500 | Z26: 37064 | AA26: 36967 | AB26: 37979 | AC26: 39719 | AD26: 39955 | AE26: 41265 | AF26: 41945 | AG26: 45718 | AH26: 46062 | AI26: 44403 | AJ26: 44442 | AK26: 43564 | AL26: 45082 | AM26: 46216 | AN26: 45244 | AO26: 45569 | AP26: 43651 | AQ26: 45099 | AR26: 44672 | AS26: 42684 | AT26: 44027 | AU26: 43137 | AV26: 37534 | AW26: 37943 | AX26: 36586 | AY26: 36713 | AZ26: 32696 | BA26: 32150 | BB26: 31454 | BC26: 29828 | BD26: 29439 | BE26: 28490 | BF26: 24540 | BG26: 24391 | BH26: 23512 | BI26: 23266 | BJ26: 21302 | BK26: 21417 | BL26: 20499 | BM26: 19594 | BN26: 19393 | BO26: 18453 | BP26: 18058 | BQ26: 18119 | BR26: 17165 | BS26: 16796 | BT26: 16816 | BU26: 16574 | BV26: 15404 | BW26: 14637 | BX26: 13910 | BY26: 12989 | BZ26: 12475 | CA26: 12068 | CB26: 11143 | CC26: 10265 | CD26: 9874 | CE26: 8809 | CF26: 7831 | CG26: 6970 | CH26: 6201 | CI26: 5382 | CJ26: 4694 | CK26: 20092
A27: M | B27: 1995 | C27: Male 1995 | D27: 39898 | E27: 39380 | F27: 39214 | G27: 39077 | H27: 39821 | I27: 40030 | J27: 40211 | K27: 41429 | L27: 40800 | M27: 42262 | N27: 42048 | O27: 39851 | P27: 39278 | Q27: 38604 | R27: 38636 | S27: 38552 | T27: 38005 | U27: 38624 | V27: 38543 | W27: 40661 | X27: 40603 | Y27: 38885 | Z27: 37472 | AA27: 37380 | AB27: 38139 | AC27: 39825 | AD27: 39712 | AE27: 40978 | AF27: 42120 | AG27: 45832 | AH27: 46467 | AI27: 44523 | AJ27: 44328 | AK27: 43439 | AL27: 44952 | AM27: 46563 | AN27: 45765 | AO27: 46154 | AP27: 44624 | AQ27: 45904 | AR27: 45829 | AS27: 43629 | AT27: 45090 | AU27: 44111 | AV27: 39286 | AW27: 39748 | AX27: 38158 | AY27: 38265 | AZ27: 34536 | BA27: 33786 | BB27: 33380 | BC27: 31607 | BD27: 31367 | BE27: 30513 | BF27: 25578 | BG27: 25533 | BH27: 24750 | BI27: 24441 | BJ27: 22144 | BK27: 21895 | BL27: 20949 | BM27: 19970 | BN27: 19683 | BO27: 18637 | BP27: 18176 | BQ27: 18176 | BR27: 17106 | BS27: 16773 | BT27: 16725 | BU27: 16563 | BV27: 15500 | BW27: 14705 | BX27: 14026 | BY27: 13126 | BZ27: 12651 | CA27: 12284 | CB27: 11399 | CC27: 10509 | CD27: 10221 | CE27: 9123 | CF27: 8149 | CG27: 7239 | CH27: 6458 | CI27: 5603 | CJ27: 4927 | CK27: 21132
A28: M | B28: 1996 | C28: Male 1996 | D28: 39806 | E28: 39487 | F28: 39361 | G28: 39238 | H28: 39960 | I28: 40233 | J28: 40522 | K28: 41887 | L28: 41529 | M28: 42822 | N28: 42742 | O28: 40673 | P28: 40177 | Q28: 39516 | R28: 39735 | S28: 39639 | T28: 39188 | U28: 39752 | V28: 39515 | W28: 41029 | X28: 40957 | Y28: 39138 | Z28: 37753 | AA28: 37665 | AB28: 38170 | AC28: 39796 | AD28: 39337 | AE28: 40553 | AF28: 42153 | AG28: 45790 | AH28: 46714 | AI28: 44493 | AJ28: 44065 | AK28: 43168 | AL28: 44671 | AM28: 46753 | AN28: 46132 | AO28: 46583 | AP28: 45444 | AQ28: 46553 | AR28: 46828 | AS28: 44423 | AT28: 45998 | AU28: 44934 | AV28: 40902 | AW28: 41413 | AX28: 39596 | AY28: 39684 | AZ28: 36256 | BA28: 35303 | BB28: 35189 | BC28: 33274 | BD28: 33185 | BE28: 32427 | BF28: 26527 | BG28: 26587 | BH28: 25902 | BI28: 25531 | BJ28: 22910 | BK28: 22297 | BL28: 21327 | BM28: 20278 | BN28: 19906 | BO28: 18758 | BP28: 18232 | BQ28: 18171 | BR28: 16989 | BS28: 16693 | BT28: 16577 | BU28: 16496 | BV28: 15543 | BW28: 14724 | BX28: 14095 | BY28: 13218 | BZ28: 12784 | CA28: 12459 | CB28: 11617 | CC28: 10718 | CD28: 10532 | CE28: 9405 | CF28: 8439 | CG28: 7483 | CH28: 6693 | CI28: 5804 | CJ28: 5142 | CK28: 22098
A29: M | B29: 1997 | C29: Male 1997 | D29: 39779 | E29: 39664 | F29: 39579 | G29: 39469 | H29: 40170 | I29: 40507 | J29: 40905 | K29: 42418 | L29: 42330 | M29: 43456 | N29: 43510 | O29: 41565 | P29: 41144 | Q29: 40496 | R29: 40901 | S29: 40793 | T29: 40436 | U29: 40946 | V29: 40553 | W29: 41469 | X29: 41383 | Y29: 39460 | Z29: 38101 | AA29: 38018 | AB29: 38269 | AC29: 39840 | AD29: 39033 | AE29: 40204 | AF29: 42262 | AG29: 45831 | AH29: 47045 | AI29: 44544 | AJ29: 43882 | AK29: 42976 | AL29: 44471 | AM29: 47026 | AN29: 46580 | AO29: 47093 | AP29: 46343 | AQ29: 47283 | AR29: 47907 | AS29: 45295 | AT29: 46985 | AU29: 45835 | AV29: 42584 | AW29: 43147 | AX29: 41100 | AY29: 41169 | AZ29: 38033 | BA29: 36878 | BB29: 37054 | BC29: 34994 | BD29: 35055 | BE29: 34392 | BF29: 27520 | BG29: 27683 | BH29: 27096 | BI29: 26662 | BJ29: 23714 | BK29: 22739 | BL29: 21742 | BM29: 20621 | BN29: 20164 | BO29: 18912 | BP29: 18320 | BQ29: 18199 | BR29: 16904 | BS29: 16645 | BT29: 16460 | BU29: 16460 | BV29: 15614 | BW29: 14769 | BX29: 14189 | BY29: 13334 | BZ29: 12939 | CA29: 12655 | CB29: 11854 | CC29: 10946 | CD29: 10861 | CE29: 9703 | CF29: 8743 | CG29: 7739 | CH29: 6939 | CI29: 6015 | CJ29: 5366 | CK29: 23100
A30: M | B30: 1998 | C30: Male 1998 | D30: 39833 | E30: 39915 | F30: 39869 | G30: 39773 | H30: 40455 | I30: 40857 | J30: 41364 | K30: 43028 | L30: 43209 | M30: 44171 | N30: 44359 | O30: 42534 | P30: 42187 | Q30: 41551 | R30: 42141 | S30: 42022 | T30: 41759 | U30: 42216 | V30: 41667 | W30: 41985 | X30: 41886 | Y30: 39856 | Z30: 38519 | AA30: 38440 | AB30: 38440 | AC30: 39957 | AD30: 38803 | AE30: 39929 | AF30: 42449 | AG30: 45957 | AH30: 47463 | AI30: 44676 | AJ30: 43781 | AK30: 42864 | AL30: 44354 | AM30: 47386 | AN30: 47114 | AO30: 47691 | AP30: 47327 | AQ30: 48100 | AR30: 49074 | AS30: 46249 | AT30: 48058 | AU30: 46820 | AV30: 44344 | AW30: 44959 | AX30: 42678 | AY30: 42729 | AZ30: 39880 | BA30: 38520 | BB30: 38986 | BC30: 36777 | BD30: 36988 | BE30: 36419 | BF30: 28563 | BG30: 28831 | BH30: 28339 | BI30: 27841 | BJ30: 24561 | BK30: 23222 | BL30: 22197 | BM30: 21002 | BN30: 20458 | BO30: 19101 | BP30: 18443 | BQ30: 18261 | BR30: 16850 | BS30: 16626 | BT30: 16373 | BU30: 16454 | BV30: 15714 | BW30: 14841 | BX30: 14309 | BY30: 13474 | BZ30: 13118 | CA30: 12875 | CB30: 12114 | CC30: 11193 | CD30: 11209 | CE30: 10019 | CF30: 9063 | CG30: 8010 | CH30: 7197 | CI30: 6237 | CJ30: 5600 | CK30: 24143
A31: M | B31: 1999 | C31: Male 1999 | D31: 39886 | E31: 40168 | F31: 40162 | G31: 40080 | H31: 40742 | I31: 41208 | J31: 41825 | K31: 43640 | L31: 44091 | M31: 44889 | N31: 45210 | O31: 43506 | P31: 43233 | Q31: 42609 | R31: 43386 | S31: 43254 | T31: 43085 | U31: 43489 | V31: 42784 | W31: 42505 | X31: 42392 | Y31: 40254 | Z31: 38939 | AA31: 38865 | AB31: 38612 | AC31: 40076 | AD31: 38574 | AE31: 39655 | AF31: 42638 | AG31: 46086 | AH31: 47883 | AI31: 44812 | AJ31: 43682 | AK31: 42754 | AL31: 44239 | AM31: 47748 | AN31: 47651 | AO31: 48292 | AP31: 48315 | AQ31: 48921 | AR31: 50246 | AS31: 47208 | AT31: 49136 | AU31: 47809 | AV31: 46108 | AW31: 46776 | AX31: 44262 | AY31: 44293 | AZ31: 41732 | BA31: 40166 | BB31: 40923 | BC31: 38565 | BD31: 38927 | BE31: 38451 | BF31: 29609 | BG31: 29981 | BH31: 29585 | BI31: 29024 | BJ31: 25411 | BK31: 23707 | BL31: 22654 | BM31: 21384 | BN31: 20755 | BO31: 19291 | BP31: 18566 | BQ31: 18323 | BR31: 16796 | BS31: 16609 | BT31: 16287 | BU31: 16449 | BV31: 15815 | BW31: 14914 | BX31: 14430 | BY31: 13616 | BZ31: 13298 | CA31: 13096 | CB31: 12374 | CC31: 11441 | CD31: 11559 | CE31: 10335 | CF31: 9383 | CG31: 8281 | CH31: 7456 | CI31: 6460 | CJ31: 5834 | CK31: 25190
A32: M | B32: 2000 | C32: Male 2000 | D32: 39905 | E32: 40387 | F32: 40422 | G32: 40353 | H32: 40995 | I32: 41526 | J32: 42252 | K32: 44216 | L32: 44937 | M32: 45569 | N32: 46025 | O32: 44442 | P32: 44244 | Q32: 43632 | R32: 44595 | S32: 44451 | T32: 44376 | U32: 44727 | V32: 43865 | W32: 42988 | X32: 42862 | Y32: 40618 | Z32: 39327 | AA32: 39257 | AB32: 38752 | AC32: 40162 | AD32: 38312 | AE32: 39348 | AF32: 42792 | AG32: 46175 | AH32: 48263 | AI32: 44909 | AJ32: 43546 | AK32: 42608 | AL32: 44087 | AM32: 48071 | AN32: 48148 | AO32: 48852 | AP32: 49262 | AQ32: 49701 | AR32: 51375 | AS32: 48127 | AT32: 50172 | AU32: 48758 | AV32: 47835 | AW32: 48554 | AX32: 45809 | AY32: 45821 | AZ32: 43549 | BA32: 41779 | BB32: 42826 | BC32: 40322 | BD32: 40833 | BE32: 40452 | BF32: 30631 | BG32: 31107 | BH32: 30807 | BI32: 30183 | BJ32: 26240 | BK32: 24172 | BL32: 23092 | BM32: 21749 | BN32: 21034 | BO32: 19465 | BP32: 18674 | BQ32: 18371 | BR32: 16729 | BS32: 16578 | BT32: 16187 | BU32: 16429 | BV32: 15902 | BW32: 14975 | BX32: 14539 | BY32: 13746 | BZ32: 13466 | CA32: 13305 | CB32: 12624 | CC32: 11680 | CD32: 11899 | CE32: 10643 | CF32: 9696 | CG32: 8546 | CH32: 7709 | CI32: 6678 | CJ32: 6063 | CK32: 26216
A33: M | B33: 2001 | C33: Male 2001 | D33: 40317 | E33: 40758 | F33: 40923 | G33: 40847 | H33: 41289 | I33: 41766 | J33: 42368 | K33: 44052 | L33: 44739 | M33: 45450 | N33: 45893 | O33: 44455 | P33: 44251 | Q33: 43692 | R33: 44573 | S33: 44515 | T33: 44539 | U33: 45060 | V33: 44307 | W33: 43452 | X33: 43427 | Y33: 41263 | Z33: 40018 | AA33: 39967 | AB33: 39642 | AC33: 40989 | AD33: 39277 | AE33: 40306 | AF33: 43414 | AG33: 46388 | AH33: 48376 | AI33: 44964 | AJ33: 43681 | AK33: 42764 | AL33: 44021 | AM33: 47719 | AN33: 47540 | AO33: 48250 | AP33: 48878 | AQ33: 49656 | AR33: 51227 | AS33: 47978 | AT33: 49643 | AU33: 48267 | AV33: 47510 | AW33: 48467 | AX33: 46046 | AY33: 46166 | AZ33: 44100 | BA33: 42577 | BB33: 43574 | BC33: 41137 | BD33: 41671 | BE33: 41232 | BF33: 32318 | BG33: 32724 | BH33: 32233 | BI33: 31641 | BJ33: 27831 | BK33: 25790 | BL33: 24800 | BM33: 23464 | BN33: 22834 | BO33: 21351 | BP33: 19675 | BQ33: 19437 | BR33: 17892 | BS33: 17669 | BT33: 16943 | BU33: 16930 | BV33: 16317 | BW33: 15353 | BX33: 14867 | BY33: 13983 | BZ33: 13637 | CA33: 13412 | CB33: 12670 | CC33: 11770 | CD33: 11894 | CE33: 10754 | CF33: 9795 | CG33: 8669 | CH33: 7847 | CI33: 6824 | CJ33: 6218 | CK33: 27572
A34: M | B34: 2002 | C34: Male 2002 | D34: 40820 | E34: 41216 | F34: 41513 | G34: 41429 | H34: 41673 | I34: 42096 | J34: 42575 | K34: 43983 | L34: 44638 | M34: 45429 | N34: 45860 | O34: 44564 | P34: 44353 | Q34: 43847 | R34: 44648 | S34: 44676 | T34: 44799 | U34: 45491 | V34: 44845 | W34: 44011 | X34: 44087 | Y34: 41998 | Z34: 40796 | AA34: 40763 | AB34: 40618 | AC34: 41905 | AD34: 40327 | AE34: 41352 | AF34: 44130 | AG34: 46702 | AH34: 48593 | AI34: 45117 | AJ34: 43910 | AK34: 43014 | AL34: 44050 | AM34: 47470 | AN34: 47034 | AO34: 47752 | AP34: 48601 | AQ34: 49720 | AR34: 51190 | AS34: 47932 | AT34: 49221 | AU34: 47880 | AV34: 47287 | AW34: 48484 | AX34: 46382 | AY34: 46611 | AZ34: 44747 | BA34: 43467 | BB34: 44416 | BC34: 42040 | BD34: 42599 | BE34: 42102 | BF34: 34074 | BG34: 34412 | BH34: 33730 | BI34: 33168 | BJ34: 29483 | BK34: 27463 | BL34: 26561 | BM34: 25230 | BN34: 24683 | BO34: 23284 | BP34: 20720 | BQ34: 20545 | BR34: 19094 | BS34: 18798 | BT34: 17737 | BU34: 17467 | BV34: 16767 | BW34: 15764 | BX34: 15227 | BY34: 14251 | BZ34: 13838 | CA34: 13548 | CB34: 12744 | CC34: 11885 | CD34: 11915 | CE34: 10889 | CF34: 9915 | CG34: 8812 | CH34: 8001 | CI34: 6985 | CJ34: 6386 | CK34: 28987
A35: M | B35: 2003 | C35: Male 2003 | D35: 41172 | E35: 41525 | F35: 41951 | G35: 41861 | H35: 41905 | I35: 42274 | J35: 42629 | K35: 43755 | L35: 44377 | M35: 45244 | N35: 45662 | O35: 44512 | P35: 44296 | Q35: 43844 | R35: 44562 | S35: 44675 | T35: 44897 | U35: 45758 | V35: 45220 | W35: 44409 | X35: 44586 | Y35: 42579 | Z35: 41425 | AA35: 41411 | AB35: 41446 | AC35: 42668 | AD35: 41230 | AE35: 42246 | AF35: 44686 | AG35: 46846 | AH35: 48634 | AI35: 45106 | AJ35: 43981 | AK35: 43107 | AL35: 43920 | AM35: 47050 | AN35: 46360 | AO35: 47082 | AP35: 48148 | AQ35: 49603 | AR35: 50969 | AS35: 47714 | AT35: 48622 | AU35: 47321 | AV35: 46894 | AW35: 48326 | AX35: 46551 | AY35: 46887 | AZ35: 45231 | BA35: 44199 | BB35: 45097 | BC35: 42791 | BD35: 43372 | BE35: 42818 | BF35: 35705 | BG35: 35974 | BH35: 35102 | BI35: 34573 | BJ35: 31026 | BK35: 29035 | BL35: 28223 | BM35: 26902 | BN35: 26440 | BO35: 25129 | BP35: 21687 | BQ35: 21577 | BR35: 20224 | BS35: 19857 | BT35: 18465 | BU35: 17940 | BV35: 17156 | BW35: 16117 | BX35: 15532 | BY35: 14467 | BZ35: 13989 | CA35: 13635 | CB35: 12771 | CC35: 11958 | CD35: 11892 | CE35: 10984 | CF35: 9999 | CG35: 8922 | CH35: 8126 | CI35: 7121 | CJ35: 6530 | CK35: 30295
A36: M | B36: 2004 | C36: Male 2004 | D36: 41624 | E36: 41932 | F36: 42489 | G36: 42391 | H36: 42237 | I36: 42551 | J36: 42784 | K36: 43632 | L36: 44222 | M36: 45167 | N36: 45574 | O36: 44567 | P36: 44344 | Q36: 43944 | R36: 44582 | S36: 44780 | T36: 45101 | U36: 46132 | V36: 45701 | W36: 44912 | X36: 45190 | Y36: 43261 | Z36: 42150 | AA36: 42155 | AB36: 42370 | AC36: 43530 | AD36: 42228 | AE36: 43238 | AF36: 45346 | AG36: 47102 | AH36: 48791 | AI36: 45203 | AJ36: 44156 | AK36: 43303 | AL36: 43894 | AM36: 46743 | AN36: 45798 | AO36: 46527 | AP36: 47810 | AQ36: 49605 | AR36: 50869 | AS36: 47610 | AT36: 48140 | AU36: 46876 | AV36: 46613 | AW36: 48283 | AX36: 46830 | AY36: 47274 | AZ36: 45821 | BA36: 45034 | BB36: 45883 | BC36: 43641 | BD36: 44245 | BE36: 43635 | BF36: 37417 | BG36: 37617 | BH36: 36554 | BI36: 36056 | BJ36: 32638 | BK36: 30672 | BL36: 29948 | BM36: 28633 | BN36: 28255 | BO36: 27029 | BP36: 22704 | BQ36: 22658 | BR36: 21400 | BS36: 20961 | BT36: 19234 | BU36: 18454 | BV36: 17585 | BW36: 16508 | BX36: 15873 | BY36: 14717 | BZ36: 14172 | CA36: 13755 | CB36: 12829 | CC36: 12058 | CD36: 11898 | CE36: 11105 | CF36: 10107 | CG36: 9053 | CH36: 8271 | CI36: 7273 | CJ36: 6690 | CK36: 31672
A37: M | B37: 2005 | C37: Male 2005 | D37: 42130 | E37: 42397 | F37: 43085 | G37: 42980 | H37: 42627 | I37: 42888 | J37: 42999 | K37: 43569 | L37: 44127 | M37: 45152 | N37: 45548 | O37: 44683 | P37: 44453 | Q37: 44106 | R37: 44664 | S37: 44947 | T37: 45368 | U37: 46570 | V37: 46246 | W37: 45477 | X37: 45857 | Y37: 44003 | Z37: 42935 | AA37: 42959 | AB37: 43354 | AC37: 44454 | AD37: 43286 | AE37: 44291 | AF37: 46070 | AG37: 47423 | AH37: 49015 | AI37: 45362 | AJ37: 44393 | AK37: 43559 | AL37: 43930 | AM37: 46501 | AN37: 45299 | AO37: 46035 | AP37: 47539 | AQ37: 49675 | AR37: 50839 | AS37: 47572 | AT37: 47724 | AU37: 46496 | AV37: 46397 | AW37: 48307 | AX37: 47174 | AY37: 47726 | AZ37: 46475 | BA37: 45932 | BB37: 46734 | BC37: 44553 | BD37: 45181 | BE37: 44512 | BF37: 39182 | BG37: 39313 | BH37: 38058 | BI37: 37591 | BJ37: 34297 | BK37: 32352 | BL37: 31716 | BM37: 30405 | BN37: 30111 | BO37: 28968 | BP37: 23753 | BQ37: 23771 | BR37: 22607 | BS37: 22095 | BT37: 20032 | BU37: 18995 | BV37: 18038 | BW37: 16922 | BX37: 16236 | BY37: 14987 | BZ37: 14375 | CA37: 13893 | CB37: 12905 | CC37: 12175 | CD37: 11920 | CE37: 11241 | CF37: 10228 | CG37: 9197 | CH37: 8427 | CI37: 7436 | CJ37: 6859 | CK37: 33094
A38: M | B38: 2006 | C38: Male 2006 | D38: 42844 | E38: 43071 | F38: 43895 | G38: 43782 | H38: 43226 | I38: 43435 | J38: 43423 | K38: 43717 | L38: 44246 | M38: 45356 | N38: 45742 | O38: 45016 | P38: 44778 | Q38: 44482 | R38: 44962 | S38: 45333 | T38: 45856 | U38: 47237 | V38: 47019 | W38: 46267 | X38: 46750 | Y38: 44963 | Z38: 43933 | AA38: 43976 | AB38: 44554 | AC38: 45599 | AD38: 44561 | AE38: 45567 | AF38: 47022 | AG38: 47975 | AH38: 49479 | AI38: 45742 | AJ38: 44846 | AK38: 44028 | AL38: 44178 | AM38: 46482 | AN38: 45015 | AO38: 45763 | AP38: 47496 | AQ38: 49986 | AR38: 51055 | AS38: 47763 | AT38: 47537 | AU38: 46338 | AV38: 46403 | AW38: 48566 | AX38: 47749 | AY38: 48413 | AZ38: 47359 | BA38: 47059 | BB38: 47817 | BC38: 45686 | BD38: 46342 | BE38: 45611 | BF38: 41149 | BG38: 41212 | BH38: 39757 | BI38: 39318 | BJ38: 36134 | BK38: 34201 | BL38: 33651 | BM38: 32338 | BN38: 32126 | BO38: 31062 | BP38: 24924 | BQ38: 25007 | BR38: 23932 | BS38: 23344 | BT38: 20931 | BU38: 19631 | BV38: 18582 | BW38: 17421 | BX38: 16681 | BY38: 15332 | BZ38: 14649 | CA38: 14099 | CB38: 13043 | CC38: 12352 | CD38: 12000 | CE38: 11433 | CF38: 10400 | CG38: 9386 | CH38: 8625 | CI38: 7636 | CJ38: 7062 | CK38: 34687
A39: M | B39: 2007 | C39: Male 2007 | D39: 43447 | E39: 43633 | F39: 44592 | G39: 44471 | H39: 43713 | I39: 43868 | J39: 43731 | K39: 43745 | L39: 44244 | M39: 45437 | N39: 45813 | O39: 45228 | P39: 44983 | Q39: 44740 | R39: 45140 | S39: 45599 | T39: 46223 | U39: 47781 | V39: 47670 | W39: 46937 | X39: 47524 | Y39: 45809 | Z39: 44820 | AA39: 44882 | AB39: 45644 | AC39: 46630 | AD39: 45726 | AE39: 46729 | AF39: 47854 | AG39: 48401 | AH39: 49810 | AI39: 46000 | AJ39: 45180 | AK39: 44380 | AL39: 44307 | AM39: 46334 | AN39: 44605 | AO39: 45362 | AP39: 47322 | AQ39: 50163 | AR39: 51133 | AS39: 47825 | AT39: 47217 | AU39: 46050 | AV39: 46283 | AW39: 48693 | AX39: 48198 | AY39: 48973 | AZ39: 48121 | BA39: 48067 | BB39: 48778 | BC39: 46705 | BD39: 47387 | BE39: 46596 | BF39: 43022 | BG39: 43015 | BH39: 41363 | BI39: 40954 | BJ39: 37888 | BK39: 35974 | BL39: 35511 | BM39: 34199 | BN39: 34072 | BO39: 33089 | BP39: 26038 | BQ39: 26186 | BR39: 25203 | BS39: 24540 | BT39: 21782 | BU39: 20220 | BV39: 19080 | BW39: 17877 | BX39: 17084 | BY39: 15638 | BZ39: 14885 | CA39: 14269 | CB39: 13147 | CC39: 12497 | CD39: 12048 | CE39: 11595 | CF39: 10545 | CG39: 9552 | CH39: 8801 | CI39: 7816 | CJ39: 7248 | CK39: 36199
A40: M | B40: 2008 | C40: Male 2008 | D40: 43907 | E40: 44048 | F40: 45139 | G40: 45011 | H40: 44052 | I40: 44153 | J40: 43892 | K40: 43626 | L40: 44092 | M40: 45364 | N40: 45728 | O40: 45288 | P40: 45036 | Q40: 44846 | R40: 45165 | S40: 45710 | T40: 46435 | U40: 48164 | V40: 48162 | W40: 47450 | X40: 48139 | Y40: 46502 | Z40: 45558 | AA40: 45638 | AB40: 46582 | AC40: 47506 | AD40: 46739 | AE40: 47736 | AF40: 48526 | AG40: 48664 | AH40: 49974 | AI40: 46103 | AJ40: 45361 | AK40: 44583 | AL40: 44286 | AM40: 46030 | AN40: 44042 | AO40: 44806 | AP40: 46986 | AQ40: 50170 | AR40: 51037 | AS40: 47725 | AT40: 46736 | AU40: 45606 | AV40: 46004 | AW40: 48655 | AX40: 48485 | AY40: 49368 | AZ40: 48723 | BA40: 48915 | BB40: 49577 | BC40: 47569 | BD40: 48275 | BE40: 47425 | BF40: 44755 | BG40: 44678 | BH40: 42834 | BI40: 42456 | BJ40: 39520 | BK40: 37630 | BL40: 37256 | BM40: 35951 | BN40: 35908 | BO40: 35011 | BP40: 27068 | BQ40: 27280 | BR40: 26393 | BS40: 25658 | BT40: 22562 | BU40: 20741 | BV40: 19515 | BW40: 18274 | BX40: 17430 | BY40: 15892 | BZ40: 15072 | CA40: 14391 | CB40: 13207 | CC40: 12600 | CD40: 12056 | CE40: 11718 | CF40: 10655 | CG40: 9685 | CH40: 8947 | CI40: 7971 | CJ40: 7410 | CK40: 37593
A41: M | B41: 2009 | C41: Male 2009 | D41: 44237 | E41: 44337 | F41: 45556 | G41: 45421 | H41: 44265 | I41: 44312 | J41: 43928 | K41: 43382 | L41: 43815 | M41: 45162 | N41: 45514 | O41: 45219 | P41: 44961 | Q41: 44825 | R41: 45061 | S41: 45691 | T41: 46513 | U41: 48408 | V41: 48514 | W41: 47826 | X41: 48615 | Y41: 47060 | Z41: 46164 | AA41: 46263 | AB41: 47384 | AC41: 48244 | AD41: 47616 | AE41: 48604 | AF41: 49057 | AG41: 48788 | AH41: 49995 | AI41: 46074 | AJ41: 45413 | AK41: 44658 | AL41: 44139 | AM41: 45595 | AN41: 43356 | AO41: 44124 | AP41: 46518 | AQ41: 50035 | AR41: 50797 | AS41: 47490 | AT41: 46123 | AU41: 45034 | AV41: 45596 | AW41: 48479 | AX41: 48633 | AY41: 49622 | AZ41: 49183 | BA41: 49622 | BB41: 50233 | BC41: 48294 | BD41: 49022 | BE41: 48117 | BF41: 46355 | BG41: 46209 | BH41: 44178 | BI41: 43832 | BJ41: 41035 | BK41: 39174 | BL41: 38890 | BM41: 37595 | BN41: 37637 | BO41: 36828 | BP41: 28017 | BQ41: 28293 | BR41: 27504 | BS41: 26698 | BT41: 23275 | BU41: 21202 | BV41: 19893 | BW41: 18617 | BX41: 17725 | BY41: 16100 | BZ41: 15215 | CA41: 14472 | CB41: 13229 | CC41: 12667 | CD41: 12028 | CE41: 11808 | CF41: 10734 | CG41: 9791 | CH41: 9068 | CI41: 8102 | CJ41: 7551 | CK41: 38876
A42: M | B42: 2010 | C42: Male2010 | D42: 44493 | E42: 44594 | F42: 45846 | G42: 45742 | H42: 44413 | I42: 44379 | J42: 43896 | K42: 43086 | L42: 43492 | M42: 44849 | N42: 45209 | O42: 45080 | P42: 44829 | Q42: 44721 | R42: 44878 | S42: 45607 | T42: 46516 | U42: 48572 | V42: 48726 | W42: 48156 | X42: 48909 | Y42: 47583 | Z42: 46693 | AA42: 46822 | AB42: 48124 | AC42: 48857 | AD42: 48426 | AE42: 49426 | AF42: 49471 | AG42: 48834 | AH42: 49874 | AI42: 45946 | AJ42: 45376 | AK42: 44702 | AL42: 43965 | AM42: 45111 | AN42: 42605 | AO42: 43380 | AP42: 45995 | AQ42: 49759 | AR42: 50462 | AS42: 47178 | AT42: 45419 | AU42: 44423 | AV42: 45105 | AW42: 48232 | AX42: 48738 | AY42: 49809 | AZ42: 49545 | BA42: 50183 | BB42: 50742 | BC42: 48933 | BD42: 49694 | BE42: 48735 | BF42: 47893 | BG42: 47632 | BH42: 45440 | BI42: 45135 | BJ42: 42472 | BK42: 40642 | BL42: 40433 | BM42: 39161 | BN42: 39293 | BO42: 38574 | BP42: 28917 | BQ42: 29227 | BR42: 28565 | BS42: 27696 | BT42: 23954 | BU42: 21622 | BV42: 20219 | BW42: 18930 | BX42: 17990 | BY42: 16286 | BZ42: 15335 | CA42: 14518 | CB42: 13229 | CC42: 12717 | CD42: 11983 | CE42: 11878 | CF42: 10784 | CG42: 9885 | CH42: 9177 | CI42: 8222 | CJ42: 7675 | CK42: 40083
A43: M | B43: 2011 | C43: Male2011 | D43: 43939 | E43: 44390 | F43: 44777 | G43: 46060 | H43: 45950 | I43: 44597 | J43: 44551 | K43: 44059 | L43: 43243 | M43: 43647 | N43: 45008 | O43: 45348 | P43: 45209 | Q43: 44945 | R43: 44834 | S43: 44985 | T43: 45719 | U43: 46628 | V43: 48713 | W43: 48942 | X43: 48379 | Y43: 49151 | Z43: 47804 | AA43: 46908 | AB43: 47043 | AC43: 48355 | AD43: 49095 | AE43: 48644 | AF43: 49639 | AG43: 49674 | AH43: 49015 | AI43: 50038 | AJ43: 46086 | AK43: 45502 | AL43: 44802 | AM43: 44038 | AN43: 45173 | AO43: 42656 | AP43: 43417 | AQ43: 46024 | AR43: 49777 | AS43: 50458 | AT43: 47171 | AU43: 45402 | AV43: 44394 | AW43: 45058 | AX43: 48166 | AY43: 48655 | AZ43: 49708 | BA43: 49425 | BB43: 50042 | BC43: 50578 | BD43: 48753 | BE43: 49489 | BF43: 48509 | BG43: 47647 | BH43: 47359 | BI43: 45153 | BJ43: 44821 | BK43: 42149 | BL43: 40307 | BM43: 40077 | BN43: 38792 | BO43: 38897 | BP43: 38156 | BQ43: 28580 | BR43: 28860 | BS43: 28169 | BT43: 27274 | BU43: 23551 | BV43: 21223 | BW43: 19808 | BX43: 18510 | BY43: 17554 | BZ43: 15852 | CA43: 14883 | CB43: 14046 | CC43: 12756 | CD43: 12217 | CE43: 11461 | CF43: 11308 | CG43: 10211 | CH43: 9303 | CI43: 8577 | CJ43: 7631 | CK43: 41393
A44: M | B44: 2012 | C44: Male2012 | D44: 44325 | E44: 43815 | F44: 44531 | G44: 44944 | H44: 46229 | I44: 46104 | J44: 44737 | K44: 44685 | L44: 44189 | M44: 43368 | N44: 43772 | O44: 45120 | P44: 45453 | Q44: 45304 | R44: 45036 | S44: 44919 | T44: 45073 | U44: 45805 | V44: 46733 | W44: 48883 | X44: 49119 | Y44: 48567 | Z44: 49328 | AA44: 47974 | AB44: 47079 | AC44: 47218 | AD44: 48536 | AE44: 49266 | AF44: 48805 | AG44: 49795 | AH44: 49814 | AI44: 49135 | AJ44: 50151 | AK44: 46180 | AL44: 45574 | AM44: 44851 | AN44: 44077 | AO44: 45205 | AP44: 42675 | AQ44: 43428 | AR44: 46023 | AS44: 49757 | AT44: 50435 | AU44: 47138 | AV44: 45358 | AW44: 44337 | AX44: 44985 | AY44: 48072 | AZ44: 48545 | BA44: 49577 | BB44: 49277 | BC44: 49870 | BD44: 50382 | BE44: 48543 | BF44: 49251 | BG44: 48252 | BH44: 47366 | BI44: 47053 | BJ44: 44834 | BK44: 44476 | BL44: 41798 | BM44: 39948 | BN44: 39695 | BO44: 38397 | BP44: 38473 | BQ44: 37709 | BR44: 28219 | BS44: 28458 | BT44: 27738 | BU44: 26814 | BV44: 23117 | BW44: 20794 | BX44: 19370 | BY44: 18065 | BZ44: 17090 | CA44: 15389 | CB44: 14403 | CC44: 13549 | CD44: 12261 | CE44: 11692 | CF44: 10917 | CG44: 10714 | CH44: 9617 | CI44: 8703 | CJ44: 7967 | CK44: 42564
A45: M | B45: 2013 | C45: Male2013 | D45: 44380 | E45: 44356 | F45: 44209 | G45: 44949 | H45: 45353 | I45: 46614 | J45: 46458 | K45: 45066 | L45: 45008 | M45: 44502 | N45: 43671 | O45: 44036 | P45: 45373 | Q45: 45687 | R45: 45533 | S45: 45256 | T45: 45152 | U45: 45305 | V45: 46088 | W45: 47168 | X45: 49361 | Y45: 49638 | Z45: 49058 | AA45: 49827 | AB45: 48473 | AC45: 47578 | AD45: 47723 | AE45: 49019 | AF45: 49740 | AG45: 49254 | AH45: 50215 | AI45: 50196 | AJ45: 49490 | AK45: 50490 | AL45: 46442 | AM45: 45783 | AN45: 45036 | AO45: 44242 | AP45: 45351 | AQ45: 42794 | AR45: 43531 | AS45: 46098 | AT45: 49838 | AU45: 50501 | AV45: 47184 | AW45: 45382 | AX45: 44344 | AY45: 44975 | AZ45: 48045 | BA45: 48497 | BB45: 49506 | BC45: 49186 | BD45: 49754 | BE45: 50241 | BF45: 48380 | BG45: 49061 | BH45: 48037 | BI45: 47125 | BJ45: 46785 | BK45: 44549 | BL45: 44165 | BM45: 41481 | BN45: 39621 | BO45: 39346 | BP45: 38034 | BQ45: 38083 | BR45: 37294 | BS45: 27873 | BT45: 28068 | BU45: 27311 | BV45: 26353 | BW45: 22673 | BX45: 20353 | BY45: 18919 | BZ45: 17600 | CA45: 16601 | CB45: 14901 | CC45: 13898 | CD45: 13026 | CE45: 11736 | CF45: 11138 | CG45: 10343 | CH45: 10090 | CI45: 8995 | CJ45: 8082 | CK45: 43803
A46: M | B46: 2014 | C46: Male2014 | D46: 44275 | E46: 44568 | F46: 45001 | G46: 44861 | H46: 45588 | I46: 45942 | J46: 47173 | K46: 46992 | L46: 45575 | M46: 45505 | N46: 44986 | O46: 44080 | P46: 44420 | Q46: 45738 | R46: 46049 | S46: 45884 | T46: 45629 | U46: 45524 | V46: 45754 | W46: 46773 | X46: 47906 | Y46: 50195 | Z46: 50448 | AA46: 49861 | AB46: 50666 | AC46: 49304 | AD46: 48401 | AE46: 48494 | AF46: 49787 | AG46: 50485 | AH46: 49936 | AI46: 50850 | AJ46: 50796 | AK46: 50048 | AL46: 50975 | AM46: 46811 | AN46: 46114 | AO46: 45339 | AP46: 44504 | AQ46: 45591 | AR46: 42994 | AS46: 43690 | AT46: 46268 | AU46: 50001 | AV46: 50646 | AW46: 47298 | AX46: 45472 | AY46: 44414 | AZ46: 45029 | BA46: 48080 | BB46: 48514 | BC46: 49498 | BD46: 49153 | BE46: 49697 | BF46: 50155 | BG46: 48274 | BH46: 48922 | BI46: 47872 | BJ46: 46935 | BK46: 46567 | BL46: 44313 | BM46: 43906 | BN46: 41215 | BO46: 39345 | BP46: 39049 | BQ46: 37726 | BR46: 37750 | BS46: 36923 | BT46: 27555 | BU46: 27697 | BV46: 26899 | BW46: 25898 | BX46: 22234 | BY46: 19918 | BZ46: 18468 | CA46: 17131 | CB46: 16108 | CC46: 14409 | CD46: 13391 | CE46: 12496 | CF46: 11206 | CG46: 10579 | CH46: 9765 | CI46: 9464 | CJ46: 8379 | CK46: 45202
A47: M | B47: 2015 | C47: Male2015 | D47: 45010 | E47: 44499 | F47: 45280 | G47: 45728 | H47: 45560 | I47: 46236 | J47: 46545 | K47: 47767 | L47: 47573 | M47: 46126 | N47: 46047 | O47: 45447 | P47: 44501 | Q47: 44811 | R47: 46135 | S47: 46437 | T47: 46298 | U47: 46041 | V47: 46020 | W47: 46499 | X47: 47576 | Y47: 48795 | Z47: 51094 | AA47: 51357 | AB47: 50784 | AC47: 51620 | AD47: 50242 | AE47: 49261 | AF47: 49329 | AG47: 50608 | AH47: 51254 | AI47: 50632 | AJ47: 51519 | AK47: 51427 | AL47: 50580 | AM47: 51425 | AN47: 47187 | AO47: 46458 | AP47: 45638 | AQ47: 44767 | AR47: 45830 | AS47: 43171 | AT47: 43873 | AU47: 46441 | AV47: 50167 | AW47: 50790 | AX47: 47412 | AY47: 45561 | AZ47: 44484 | BA47: 45080 | BB47: 48114 | BC47: 48522 | BD47: 49482 | BE47: 49111 | BF47: 49627 | BG47: 50058 | BH47: 48151 | BI47: 48766 | BJ47: 47690 | BK47: 46728 | BL47: 46331 | BM47: 44063 | BN47: 43634 | BO47: 40938 | BP47: 39057 | BQ47: 38743 | BR47: 37406 | BS47: 37384 | BT47: 36509 | BU47: 27196 | BV47: 27282 | BW47: 26435 | BX47: 25396 | BY47: 21757 | BZ47: 19440 | CA47: 17973 | CB47: 16617 | CC47: 15572 | CD47: 13877 | CE47: 12841 | CF47: 11926 | CG47: 10636 | CH47: 9981 | CI47: 9151 | CJ47: 8807 | CK47: 46583
A48: M | B48: 2016 | C48: Male2016 | D48: 45689 | E48: 45440 | F48: 45537 | G48: 46336 | H48: 46753 | I48: 46491 | J48: 47108 | K48: 47388 | L48: 48617 | M48: 48400 | N48: 46915 | O48: 46725 | P48: 46070 | Q48: 45064 | R48: 45369 | S48: 46698 | T48: 47045 | U48: 46907 | V48: 46772 | W48: 47109 | X48: 47660 | Y48: 48861 | Z48: 50071 | AA48: 52439 | AB48: 52746 | AC48: 52183 | AD48: 53055 | AE48: 51548 | AF48: 50504 | AG48: 50522 | AH48: 51739 | AI48: 52306 | AJ48: 51617 | AK48: 52467 | AL48: 52240 | AM48: 51250 | AN48: 52049 | AO48: 47724 | AP48: 46930 | AQ48: 46054 | AR48: 45137 | AS48: 46138 | AT48: 43468 | AU48: 44149 | AV48: 46710 | AW48: 50428 | AX48: 51028 | AY48: 47610 | AZ48: 45732 | BA48: 44628 | BB48: 45203 | BC48: 48220 | BD48: 48602 | BE48: 49537 | BF48: 49136 | BG48: 49625 | BH48: 50025 | BI48: 48087 | BJ48: 48669 | BK48: 47563 | BL48: 46574 | BM48: 46153 | BN48: 43870 | BO48: 43422 | BP48: 40719 | BQ48: 38834 | BR48: 38503 | BS48: 37131 | BT48: 37047 | BU48: 36107 | BV48: 26837 | BW48: 26854 | BX48: 25960 | BY48: 24884 | BZ48: 21262 | CA48: 18941 | CB48: 17453 | CC48: 16079 | CD48: 15010 | CE48: 13316 | CF48: 12264 | CG48: 11326 | CH48: 10040 | CI48: 9356 | CJ48: 8518 | CK48: 48137
A49: M | B49: 2017 | C49: Male2017 | D49: 45611 | E49: 45957 | F49: 46228 | G49: 46334 | H49: 47117 | I49: 47473 | J49: 47151 | K49: 47750 | L49: 48022 | M49: 49253 | N49: 49024 | O49: 47435 | P49: 47208 | Q49: 46509 | R49: 45485 | S49: 45784 | T49: 47155 | U49: 47507 | V49: 47463 | W49: 47598 | X49: 47986 | Y49: 48620 | Z49: 49812 | AA49: 51050 | AB49: 53494 | AC49: 53825 | AD49: 53261 | AE49: 54080 | AF49: 52514 | AG49: 51409 | AH49: 51358 | AI49: 52524 | AJ49: 53056 | AK49: 52316 | AL49: 53075 | AM49: 52744 | AN49: 51700 | AO49: 52476 | AP49: 48071 | AQ49: 47234 | AR49: 46322 | AS49: 45345 | AT49: 46354 | AU49: 43651 | AV49: 44316 | AW49: 46864 | AX49: 50570 | AY49: 51150 | AZ49: 47704 | BA49: 45801 | BB49: 44674 | BC49: 45227 | BD49: 48221 | BE49: 48577 | BF49: 49483 | BG49: 49057 | BH49: 49515 | BI49: 49882 | BJ49: 47920 | BK49: 48466 | BL49: 47335 | BM49: 46324 | BN49: 45880 | BO49: 43587 | BP49: 43118 | BQ49: 40414 | BR49: 38518 | BS49: 38145 | BT49: 36727 | BU49: 36575 | BV49: 35574 | BW49: 26379 | BX49: 26338 | BY49: 25407 | BZ49: 24290 | CA49: 20694 | CB49: 18375 | CC49: 16872 | CD49: 15486 | CE49: 14392 | CF49: 12707 | CG49: 11639 | CH49: 10684 | CI49: 9407 | CJ49: 8704 | CK49: 49198
A50: M | B50: 2018 | C50: Male2018 | D50: 44438 | E50: 45983 | F50: 46917 | G50: 47195 | H50: 47267 | I50: 47983 | J50: 48277 | K50: 47919 | L50: 48513 | M50: 48772 | N50: 50011 | O50: 49672 | P50: 48020 | Q50: 47745 | R50: 47031 | S50: 45984 | T50: 46321 | U50: 47711 | V50: 48184 | W50: 48470 | X50: 48663 | Y50: 49148 | Z50: 49759 | AA50: 50985 | AB50: 52287 | AC50: 54813 | AD50: 55165 | AE50: 54500 | AF50: 55301 | AG50: 53650 | AH50: 52438 | AI50: 52300 | AJ50: 53436 | AK50: 53927 | AL50: 53053 | AM50: 53701 | AN50: 53313 | AO50: 52222 | AP50: 52949 | AQ50: 48460 | AR50: 47579 | AS50: 46595 | AT50: 45618 | AU50: 46608 | AV50: 43870 | AW50: 44514 | AX50: 47051 | AY50: 50748 | AZ50: 51308 | BA50: 47829 | BB50: 45901 | BC50: 44747 | BD50: 45276 | BE50: 48248 | BF50: 48576 | BG50: 49456 | BH50: 49000 | BI50: 49426 | BJ50: 49760 | BK50: 47774 | BL50: 48287 | BM50: 47135 | BN50: 46102 | BO50: 45639 | BP50: 43336 | BQ50: 42852 | BR50: 40143 | BS50: 38216 | BT50: 37787 | BU50: 36311 | BV50: 36084 | BW50: 35012 | BX50: 25904 | BY50: 25808 | BZ50: 24832 | CA50: 23671 | CB50: 20101 | CC50: 17787 | CD50: 16272 | CE50: 14869 | CF50: 13755 | CG50: 12078 | CH50: 10998 | CI50: 10029 | CJ50: 8769 | CK50: 50449
A51: M | B51: 2019 | C51: Male2019 | D51: 43608 | E51: 44804 | F51: 46945 | G51: 47901 | H51: 48147 | I51: 48137 | J51: 48797 | K51: 49064 | L51: 48686 | M51: 49272 | N51: 49523 | O51: 50673 | P51: 50285 | Q51: 48567 | R51: 48281 | S51: 47547 | T51: 46526 | U51: 46869 | V51: 48392 | W51: 49208 | X51: 49557 | Y51: 49843 | Z51: 50301 | AA51: 50935 | AB51: 52223 | AC51: 53579 | AD51: 56181 | AE51: 56452 | AF51: 55734 | AG51: 56500 | AH51: 54727 | AI51: 53403 | AJ51: 53211 | AK51: 54316 | AL51: 54689 | AM51: 53681 | AN51: 54283 | AO51: 53852 | AP51: 52694 | AQ51: 53379 | AR51: 48816 | AS51: 47861 | AT51: 46877 | AU51: 45870 | AV51: 46843 | AW51: 44068 | AX51: 44694 | AY51: 47219 | AZ51: 50908 | BA51: 51446 | BB51: 47936 | BC51: 45979 | BD51: 44799 | BE51: 45305 | BF51: 48252 | BG51: 48555 | BH51: 49404 | BI51: 48917 | BJ51: 49311 | BK51: 49613 | BL51: 47603 | BM51: 48088 | BN51: 46917 | BO51: 45867 | BP51: 45383 | BQ51: 43076 | BR51: 42574 | BS51: 39837 | BT51: 37866 | BU51: 37368 | BV51: 35833 | BW51: 35524 | BX51: 34393 | BY51: 25392 | BZ51: 25233 | CA51: 24209 | CB51: 23003 | CC51: 19468 | CD51: 17164 | CE51: 15634 | CF51: 14219 | CG51: 13084 | CH51: 11422 | CI51: 10332 | CJ51: 9357 | CK51: 51686
A52: M | B52: 2020 | C52: Male2020 | D52: 43820 | E52: 44029 | F52: 44460 | G52: 45091 | H52: 45919 | I52: 46954 | J52: 47852 | K52: 48619 | L52: 49243 | M52: 49741 | N52: 50127 | O52: 50291 | P52: 50243 | Q52: 49951 | R52: 49441 | S52: 48746 | T52: 48135 | U52: 47614 | V52: 48481 | W52: 50419 | X52: 51114 | Y52: 51336 | Z52: 51381 | AA52: 51553 | AB52: 52218 | AC52: 54443 | AD52: 56283 | AE52: 57792 | AF52: 58871 | AG52: 59444 | AH52: 59481 | AI52: 59225 | AJ52: 59056 | AK52: 58928 | AL52: 58896 | AM52: 58931 | AN52: 58356 | AO52: 57415 | AP52: 56079 | AQ52: 54366 | AR52: 52373 | AS52: 50712 | AT52: 49517 | AU52: 48725 | AV52: 48311 | AW52: 48467 | AX52: 44324 | AY52: 44203 | AZ52: 46509 | BA52: 49521 | BB52: 51485 | BC52: 46838 | BD52: 44676 | BE52: 44233 | BF52: 44718 | BG52: 48127 | BH52: 48086 | BI52: 48017 | BJ52: 47920 | BK52: 47822 | BL52: 47715 | BM52: 47307 | BN52: 46656 | BO52: 45751 | BP52: 44622 | BQ52: 43276 | BR52: 41898 | BS52: 40492 | BT52: 39064 | BU52: 37630 | BV52: 36193 | BW52: 34366 | BX52: 32229 | BY52: 29867 | BZ52: 27370 | CA52: 24841 | CB52: 22492 | CC52: 20310 | CD52: 18292 | CE52: 16446 | CF52: 14755 | CG52: 13197 | CH52: 11754 | CI52: 10434 | CJ52: 9241 | CK52: 49160
A53: M | B53: 2021 | C53: Male2021 | D53: 41836 | E53: 44048 | F53: 44432 | G53: 44883 | H53: 45504 | I53: 46300 | J53: 47316 | K53: 48209 | L53: 48973 | M53: 49594 | N53: 50095 | O53: 50427 | P53: 50566 | Q53: 50501 | R53: 50208 | S53: 49683 | T53: 49002 | U53: 48384 | V53: 47907 | W53: 48928 | X53: 50903 | Y53: 51650 | Z53: 51844 | AA53: 51894 | AB53: 52091 | AC53: 52769 | AD53: 55019 | AE53: 56837 | AF53: 58332 | AG53: 59387 | AH53: 59922 | AI53: 59918 | AJ53: 59643 | AK53: 59456 | AL53: 59259 | AM53: 59154 | AN53: 59162 | AO53: 58564 | AP53: 57582 | AQ53: 56223 | AR53: 54495 | AS53: 52434 | AT53: 50770 | AU53: 49572 | AV53: 48766 | AW53: 48349 | AX53: 48486 | AY53: 44316 | AZ53: 44174 | BA53: 46465 | BB53: 49457 | BC53: 51393 | BD53: 46734 | BE53: 44545 | BF53: 44074 | BG53: 44541 | BH53: 47899 | BI53: 47834 | BJ53: 47737 | BK53: 47614 | BL53: 47502 | BM53: 47330 | BN53: 46859 | BO53: 46193 | BP53: 45270 | BQ53: 44074 | BR53: 42699 | BS53: 41312 | BT53: 39874 | BU53: 38459 | BV53: 36968 | BW53: 35469 | BX53: 33627 | BY53: 31421 | BZ53: 29039 | CA53: 26606 | CB53: 24084 | CC53: 21684 | CD53: 19478 | CE53: 17474 | CF53: 15669 | CG53: 13955 | CH53: 12389 | CI53: 10969 | CJ53: 9631 | CK53: 50253
A54: M | B54: 2022 | C54: Male2022 | D54: 43017 | E54: 42301 | F54: 44876 | G54: 45274 | H54: 45700 | I54: 46257 | J54: 47008 | K54: 48014 | L54: 48905 | M54: 49665 | N54: 50288 | O54: 50689 | P54: 50979 | Q54: 51082 | R54: 51014 | S54: 50703 | T54: 50209 | U54: 49521 | V54: 48997 | W54: 48812 | X54: 49897 | Y54: 52000 | Z54: 52717 | AA54: 52925 | AB54: 53018 | AC54: 53234 | AD54: 53934 | AE54: 56151 | AF54: 57961 | AG54: 59427 | AH54: 60417 | AI54: 60875 | AJ54: 60830 | AK54: 60510 | AL54: 60189 | AM54: 59858 | AN54: 59697 | AO54: 59670 | AP54: 59000 | AQ54: 57970 | AR54: 56574 | AS54: 54735 | AT54: 52669 | AU54: 50987 | AV54: 49765 | AW54: 48947 | AX54: 48505 | AY54: 48609 | AZ54: 44403 | BA54: 44245 | BB54: 46521 | BC54: 49485 | BD54: 51397 | BE54: 46699 | BF54: 44479 | BG54: 43989 | BH54: 44416 | BI54: 47738 | BJ54: 47642 | BK54: 47518 | BL54: 47379 | BM54: 47197 | BN54: 46956 | BO54: 46469 | BP54: 45783 | BQ54: 44792 | BR54: 43568 | BS54: 42181 | BT54: 40751 | BU54: 39312 | BV54: 37820 | BW54: 36247 | BX54: 34714 | BY54: 32777 | BZ54: 30536 | CA54: 28212 | CB54: 25773 | CC54: 23185 | CD54: 20754 | CE54: 18564 | CF54: 16605 | CG54: 14771 | CH54: 13048 | CI54: 11511 | CJ54: 10070 | CK54: 50922
A55: M | B55: 2023 | C55: Male2023 | D55: 42406 | E55: 43423 | F55: 42980 | G55: 45604 | H55: 45980 | I55: 46347 | J55: 46864 | K55: 47602 | L55: 48608 | M55: 49496 | N55: 50261 | O55: 50799 | P55: 51164 | Q55: 51425 | R55: 51526 | S55: 51444 | T55: 51162 | U55: 50662 | V55: 50056 | W55: 49786 | X55: 49636 | Y55: 50813 | Z55: 52914 | AA55: 53651 | AB55: 53900 | AC55: 54008 | AD55: 54235 | AE55: 54878 | AF55: 57094 | AG55: 58884 | AH55: 60300 | AI55: 61230 | AJ55: 61660 | AK55: 61580 | AL55: 61142 | AM55: 60699 | AN55: 60319 | AO55: 60125 | AP55: 60038 | AQ55: 59328 | AR55: 58271 | AS55: 56774 | AT55: 54931 | AU55: 52848 | AV55: 51144 | AW55: 49912 | AX55: 49070 | AY55: 48595 | AZ55: 48672 | BA55: 44447 | BB55: 44270 | BC55: 46522 | BD55: 49463 | BE55: 51334 | BF55: 46608 | BG55: 44375 | BH55: 43850 | BI55: 44253 | BJ55: 47533 | BK55: 47409 | BL55: 47272 | BM55: 47067 | BN55: 46819 | BO55: 46561 | BP55: 46053 | BQ55: 45297 | BR55: 44275 | BS55: 43038 | BT55: 41610 | BU55: 40182 | BV55: 38672 | BW55: 37101 | BX55: 35499 | BY55: 33866 | BZ55: 31887 | CA55: 29698 | CB55: 27362 | CC55: 24850 | CD55: 22233 | CE55: 19822 | CF55: 17680 | CG55: 15695 | CH55: 13855 | CI55: 12164 | CJ55: 10611 | CK55: 52315
A56: M | B56: 2024 | C56: Male2024 | D56: 43327 | E56: 42735 | F56: 43999 | G56: 43558 | H56: 46195 | I56: 46521 | J56: 46852 | K56: 47357 | L56: 48091 | M56: 49097 | N56: 49989 | O56: 50685 | P56: 51194 | Q56: 51535 | R56: 51797 | S56: 51885 | T56: 51830 | U56: 51544 | V56: 51114 | W56: 50723 | X56: 50480 | Y56: 50390 | Z56: 51550 | AA56: 53688 | AB56: 54468 | AC56: 54731 | AD56: 54845 | AE56: 55018 | AF56: 55636 | AG56: 57841 | AH56: 59594 | AI56: 60965 | AJ56: 61878 | AK56: 62285 | AL56: 62105 | AM56: 61564 | AN56: 61079 | AO56: 60669 | AP56: 60423 | AQ56: 60306 | AR56: 59575 | AS56: 58429 | AT56: 56930 | AU56: 55075 | AV56: 52972 | AW56: 51257 | AX56: 50003 | AY56: 49130 | AZ56: 48632 | BA56: 48694 | BB56: 44452 | BC56: 44252 | BD56: 46484 | BE56: 49387 | BF56: 51222 | BG56: 46489 | BH56: 44228 | BI56: 43685 | BJ56: 44061 | BK56: 47303 | BL56: 47165 | BM56: 46967 | BN56: 46701 | BO56: 46437 | BP56: 46157 | BQ56: 45581 | BR56: 44793 | BS56: 43757 | BT56: 42481 | BU56: 41056 | BV56: 39562 | BW56: 37980 | BX56: 36383 | BY56: 34689 | BZ56: 33008 | CA56: 31072 | CB56: 28866 | CC56: 26452 | CD56: 23904 | CE56: 21308 | CF56: 18948 | CG56: 16784 | CH56: 14794 | CI56: 12988 | CJ56: 11285 | CK56: 54679
A57: M | B57: 2025 | C57: Male2025 | D57: 43572 | E57: 43588 | F57: 43184 | G57: 44473 | H57: 44010 | I57: 46630 | J57: 46927 | K57: 47247 | L57: 47746 | M57: 48479 | N57: 49489 | O57: 50327 | P57: 51000 | Q57: 51491 | R57: 51834 | S57: 52085 | T57: 52194 | U57: 52136 | V57: 51907 | W57: 51653 | X57: 51282 | Y57: 51087 | Z57: 50965 | AA57: 52143 | AB57: 54333 | AC57: 55129 | AD57: 55399 | AE57: 55467 | AF57: 55613 | AG57: 56204 | AH57: 58384 | AI57: 60105 | AJ57: 61468 | AK57: 62366 | AL57: 62696 | AM57: 62431 | AN57: 61855 | AO57: 61345 | AP57: 60890 | AQ57: 60621 | AR57: 60489 | AS57: 59681 | AT57: 58533 | AU57: 57026 | AV57: 55155 | AW57: 53044 | AX57: 51308 | AY57: 50025 | AZ57: 49129 | BA57: 48617 | BB57: 48664 | BC57: 44401 | BD57: 44185 | BE57: 46382 | BF57: 49248 | BG57: 51060 | BH57: 46307 | BI57: 44035 | BJ57: 43470 | BK57: 43822 | BL57: 47033 | BM57: 46835 | BN57: 46578 | BO57: 46294 | BP57: 46009 | BQ57: 45657 | BR57: 45045 | BS57: 44239 | BT57: 43165 | BU57: 41893 | BV57: 40406 | BW57: 38844 | BX57: 37237 | BY57: 35548 | BZ57: 33809 | CA57: 32163 | CB57: 30203 | CC57: 27911 | CD57: 25452 | CE57: 22918 | CF57: 20377 | CG57: 17997 | CH57: 15832 | CI57: 13879 | CJ57: 12063 | CK57: 57464
A58: M | B58: 2026 | C58: Male2026 | D58: 43788 | E58: 43857 | F58: 44081 | G58: 43683 | H58: 44968 | I58: 44454 | J58: 47066 | K58: 47350 | L58: 47663 | M58: 48158 | N58: 48893 | O58: 49848 | P58: 50663 | Q58: 51317 | R58: 51810 | S58: 52143 | T58: 52418 | U58: 52527 | V58: 52532 | W58: 52496 | X58: 52267 | Y58: 51946 | Z58: 51716 | AA58: 51598 | AB58: 52819 | AC58: 55045 | AD58: 55855 | AE58: 56078 | AF58: 56116 | AG58: 56228 | AH58: 56776 | AI58: 58928 | AJ58: 60643 | AK58: 61994 | AL58: 62814 | AM58: 63057 | AN58: 62755 | AO58: 62153 | AP58: 61594 | AQ58: 61112 | AR58: 60826 | AS58: 60615 | AT58: 59806 | AU58: 58651 | AV58: 57125 | AW58: 55246 | AX58: 53112 | AY58: 51346 | AZ58: 50038 | BA58: 49128 | BB58: 48601 | BC58: 48624 | BD58: 44347 | BE58: 44101 | BF58: 46266 | BG58: 49107 | BH58: 50876 | BI58: 46120 | BJ58: 43833 | BK58: 43249 | BL58: 43587 | BM58: 46721 | BN58: 46465 | BO58: 46192 | BP58: 45886 | BQ58: 45532 | BR58: 45143 | BS58: 44513 | BT58: 43664 | BU58: 42590 | BV58: 41252 | BW58: 39694 | BX58: 38105 | BY58: 36404 | BZ58: 34667 | CA58: 32964 | CB58: 31283 | CC58: 29225 | CD58: 26878 | CE58: 24423 | CF58: 21936 | CG58: 19374 | CH58: 16995 | CI58: 14872 | CJ58: 12908 | CK58: 60732
A59: M | B59: 2027 | C59: Male2027 | D59: 44036 | E59: 44111 | F59: 44412 | G59: 44648 | H59: 44223 | I59: 45474 | J59: 44916 | K59: 47538 | L59: 47813 | M59: 48120 | N59: 48615 | O59: 49287 | P59: 50218 | Q59: 51014 | R59: 51671 | S59: 52155 | T59: 52517 | U59: 52792 | V59: 52974 | W59: 53200 | X59: 53195 | Y59: 53025 | Z59: 52664 | AA59: 52438 | AB59: 52348 | AC59: 53596 | AD59: 55860 | AE59: 56624 | AF59: 56817 | AG59: 56817 | AH59: 56875 | AI59: 57375 | AJ59: 59524 | AK59: 61229 | AL59: 62499 | AM59: 63228 | AN59: 63433 | AO59: 63103 | AP59: 62447 | AQ59: 61858 | AR59: 61355 | AS59: 60985 | AT59: 60774 | AU59: 59956 | AV59: 58782 | AW59: 57246 | AX59: 55343 | AY59: 53175 | AZ59: 51384 | BA59: 50060 | BB59: 49134 | BC59: 48582 | BD59: 48586 | BE59: 44283 | BF59: 44010 | BG59: 46155 | BH59: 48953 | BI59: 50694 | BJ59: 45930 | BK59: 43631 | BL59: 43038 | BM59: 43320 | BN59: 46377 | BO59: 46105 | BP59: 45812 | BQ59: 45440 | BR59: 45052 | BS59: 44642 | BT59: 43966 | BU59: 43112 | BV59: 41967 | BW59: 40552 | BX59: 38964 | BY59: 37279 | BZ59: 35529 | CA59: 33825 | CB59: 32087 | CC59: 30295 | CD59: 28169 | CE59: 25816 | CF59: 23399 | CG59: 20879 | CH59: 18317 | CI59: 15984 | CJ59: 13851 | CK59: 64496
A60: M | B60: 2028 | C60: Male2028 | D60: 44299 | E60: 44368 | F60: 44679 | G60: 44993 | H60: 45210 | I60: 44728 | J60: 45955 | K60: 45374 | L60: 48011 | M60: 48279 | N60: 48585 | O60: 49014 | P60: 49659 | Q60: 50572 | R60: 51372 | S60: 52021 | T60: 52535 | U60: 52898 | V60: 53250 | W60: 53660 | X60: 53922 | Y60: 53981 | Z60: 53773 | AA60: 53414 | AB60: 53215 | AC60: 53133 | AD60: 54405 | AE60: 56645 | AF60: 57386 | AG60: 57542 | AH60: 57485 | AI60: 57488 | AJ60: 57968 | AK60: 60112 | AL60: 61739 | AM60: 62921 | AN60: 63615 | AO60: 63794 | AP60: 63411 | AQ60: 62722 | AR60: 62111 | AS60: 61522 | AT60: 61153 | AU60: 60933 | AV60: 60097 | AW60: 58913 | AX60: 57352 | AY60: 55415 | AZ60: 53221 | BA60: 51413 | BB60: 50073 | BC60: 49122 | BD60: 48551 | BE60: 48523 | BF60: 44198 | BG60: 43912 | BH60: 46019 | BI60: 48787 | BJ60: 50495 | BK60: 45727 | BL60: 43426 | BM60: 42784 | BN60: 43011 | BO60: 46030 | BP60: 45738 | BQ60: 45380 | BR60: 44976 | BS60: 44567 | BT60: 44109 | BU60: 43426 | BV60: 42497 | BW60: 41271 | BX60: 39823 | BY60: 38137 | BZ60: 36401 | CA60: 34684 | CB60: 32942 | CC60: 31093 | CD60: 29220 | CE60: 27076 | CF60: 24753 | CG60: 22292 | CH60: 19760 | CI60: 17247 | CJ60: 14904 | CK60: 68789
A61: M | B61: 2029 | C61: Male2029 | D61: 44582 | E61: 44632 | F61: 44939 | G61: 45262 | H61: 45557 | I61: 45724 | J61: 45199 | K61: 46422 | L61: 45825 | M61: 48478 | N61: 48744 | O61: 48982 | P61: 49383 | Q61: 50008 | R61: 50925 | S61: 51719 | T61: 52399 | U61: 52916 | V61: 53356 | W61: 53937 | X61: 54387 | Y61: 54717 | Z61: 54741 | AA61: 54537 | AB61: 54203 | AC61: 54011 | AD61: 53932 | AE61: 55168 | AF61: 57405 | AG61: 58117 | AH61: 58217 | AI61: 58103 | AJ61: 58081 | AK61: 58539 | AL61: 60612 | AM61: 62156 | AN61: 63306 | AO61: 63977 | AP61: 64105 | AQ61: 63690 | AR61: 62978 | AS61: 62281 | AT61: 61693 | AU61: 61315 | AV61: 61077 | AW61: 60232 | AX61: 59024 | AY61: 57429 | AZ61: 55464 | BA61: 53254 | BB61: 51428 | BC61: 50063 | BD61: 49093 | BE61: 48491 | BF61: 48434 | BG61: 44103 | BH61: 43786 | BI61: 45867 | BJ61: 48601 | BK61: 50278 | BL61: 45519 | BM61: 43176 | BN61: 42486 | BO61: 42696 | BP61: 45672 | BQ61: 45317 | BR61: 44927 | BS61: 44503 | BT61: 44047 | BU61: 43579 | BV61: 42818 | BW61: 41806 | BX61: 40542 | BY61: 38993 | BZ61: 37255 | CA61: 35551 | CB61: 33795 | CC61: 31938 | CD61: 30008 | CE61: 28106 | CF61: 25981 | CG61: 23601 | CH61: 21118 | CI61: 18625 | CJ61: 16102 | CK61: 73659
A62: M | B62: 2030 | C62: Male2030 | D62: 44896 | E62: 44917 | F62: 45204 | G62: 45523 | H62: 45828 | I62: 46074 | J62: 46204 | K62: 45656 | L62: 46882 | M62: 46270 | N62: 48944 | O62: 49141 | P62: 49350 | Q62: 49729 | R62: 50356 | S62: 51268 | T62: 52094 | U62: 52777 | V62: 53373 | W62: 54043 | X62: 54665 | Y62: 55186 | Z62: 55485 | AA62: 55517 | AB62: 55341 | AC62: 55012 | AD62: 54821 | AE62: 54686 | AF62: 55908 | AG62: 58134 | AH62: 58798 | AI62: 58842 | AJ62: 58701 | AK62: 58652 | AL62: 59026 | AM62: 61021 | AN62: 62536 | AO62: 63667 | AP62: 64289 | AQ62: 64388 | AR62: 63951 | AS62: 63152 | AT62: 62455 | AU62: 61858 | AV62: 61462 | AW62: 61215 | AX62: 60347 | AY62: 59105 | AZ62: 57483 | BA62: 55500 | BB62: 53273 | BC62: 51421 | BD62: 50037 | BE62: 49036 | BF62: 48406 | BG62: 48333 | BH62: 43980 | BI62: 43646 | BJ62: 45697 | BK62: 48398 | BL62: 50055 | BM62: 45264 | BN62: 42882 | BO62: 42182 | BP62: 42372 | BQ62: 45261 | BR62: 44874 | BS62: 44464 | BT62: 43995 | BU62: 43528 | BV62: 42981 | BW62: 42135 | BX62: 41081 | BY62: 39713 | BZ62: 38107 | CA62: 36400 | CB62: 34657 | CC62: 32784 | CD62: 30844 | CE62: 28883 | CF62: 26988 | CG62: 24793 | CH62: 22379 | CI62: 19925 | CJ62: 17410 | CK62: 79185
A63: M | B63: 2031 | C63: Male2031 | D63: 45254 | E63: 45233 | F63: 45492 | G63: 45789 | H63: 46090 | I63: 46346 | J63: 46557 | K63: 46670 | L63: 46106 | M63: 47335 | N63: 46713 | O63: 49341 | P63: 49509 | Q63: 49694 | R63: 50075 | S63: 50694 | T63: 51638 | U63: 52469 | V63: 53231 | W63: 54059 | X63: 54771 | Y63: 55466 | Z63: 55959 | AA63: 56270 | AB63: 56333 | AC63: 56165 | AD63: 55835 | AE63: 55587 | AF63: 55418 | AG63: 56617 | AH63: 58814 | AI63: 59428 | AJ63: 59446 | AK63: 59277 | AL63: 59139 | AM63: 59424 | AN63: 61394 | AO63: 62892 | AP63: 63978 | AQ63: 64573 | AR63: 64652 | AS63: 64128 | AT63: 63330 | AU63: 62622 | AV63: 62008 | AW63: 61603 | AX63: 61333 | AY63: 60431 | AZ63: 59163 | BA63: 57523 | BB63: 55522 | BC63: 53268 | BD63: 51398 | BE63: 49982 | BF63: 48954 | BG63: 48310 | BH63: 48204 | BI63: 43844 | BJ63: 43489 | BK63: 45512 | BL63: 48189 | BM63: 49781 | BN63: 44963 | BO63: 42582 | BP63: 41868 | BQ63: 41999 | BR63: 44829 | BS63: 44422 | BT63: 43967 | BU63: 43488 | BV63: 42944 | BW63: 42308 | BX63: 41419 | BY63: 40256 | BZ63: 38827 | CA63: 37248 | CB63: 35500 | CC63: 33638 | CD63: 31679 | CE63: 29708 | CF63: 27755 | CG63: 25775 | CH63: 23531 | CI63: 21137 | CJ63: 18646 | CK63: 85406
A64: M | B64: 2032 | C64: Male2032 | D64: 45642 | E64: 45592 | F64: 45810 | G64: 46079 | H64: 46357 | I64: 46609 | J64: 46830 | K64: 47025 | L64: 47129 | M64: 46550 | N64: 47787 | O64: 47090 | P64: 49709 | Q64: 49853 | R64: 50038 | S64: 50410 | T64: 51059 | U64: 52009 | V64: 52919 | W64: 53912 | X64: 54785 | Y64: 55572 | Z64: 56241 | AA64: 56748 | AB64: 57094 | AC64: 57170 | AD64: 57004 | AE64: 56612 | AF64: 56329 | AG64: 56119 | AH64: 57278 | AI64: 59443 | AJ64: 60037 | AK64: 60029 | AL64: 59768 | AM64: 59537 | AN64: 59787 | AO64: 61744 | AP64: 63199 | AQ64: 64262 | AR64: 64838 | AS64: 64832 | AT64: 64309 | AU64: 63500 | AV64: 62774 | AW64: 62151 | AX64: 61723 | AY64: 61421 | AZ64: 60492 | BA64: 59206 | BB64: 57548 | BC64: 55520 | BD64: 53246 | BE64: 51345 | BF64: 49902 | BG64: 48860 | BH64: 48185 | BI64: 48059 | BJ64: 43690 | BK64: 43318 | BL64: 45320 | BM64: 47931 | BN64: 49457 | BO64: 44656 | BP64: 42273 | BQ64: 41508 | BR64: 41607 | BS64: 44387 | BT64: 43935 | BU64: 43470 | BV64: 42915 | BW64: 42284 | BX64: 41602 | BY64: 40602 | BZ64: 39373 | CA64: 37967 | CB64: 36343 | CC64: 34474 | CD64: 32524 | CE64: 30531 | CF64: 28566 | CG64: 26528 | CH64: 24484 | CI64: 22246 | CJ64: 19803 | CK64: 92186
A65: M | B65: 2033 | C65: Male2033 | D65: 46043 | E65: 45983 | F65: 46172 | G65: 46399 | H65: 46650 | I65: 46878 | J65: 47094 | K65: 47299 | L65: 47486 | M65: 47581 | N65: 46992 | O65: 48172 | P65: 47440 | Q65: 50053 | R65: 50197 | S65: 50372 | T65: 50772 | U65: 51425 | V65: 52455 | W65: 53594 | X65: 54633 | Y65: 55583 | Z65: 56346 | AA65: 57032 | AB65: 57578 | AC65: 57940 | AD65: 58022 | AE65: 57795 | AF65: 57366 | AG65: 57040 | AH65: 56773 | AI65: 57889 | AJ65: 60051 | AK65: 60624 | AL65: 60525 | AM65: 60170 | AN65: 59900 | AO65: 60127 | AP65: 62046 | AQ65: 63479 | AR65: 64526 | AS65: 65019 | AT65: 65017 | AU65: 64484 | AV65: 63655 | AW65: 62920 | AX65: 62275 | AY65: 61813 | AZ65: 61485 | BA65: 60539 | BB65: 59234 | BC65: 57549 | BD65: 55501 | BE65: 53194 | BF65: 51267 | BG65: 49810 | BH65: 48737 | BI65: 48045 | BJ65: 47896 | BK65: 43522 | BL65: 43140 | BM65: 45083 | BN65: 47627 | BO65: 49127 | BP65: 44340 | BQ65: 41918 | BR65: 41129 | BS65: 41206 | BT65: 43911 | BU65: 43448 | BV65: 42908 | BW65: 42268 | BX65: 41590 | BY65: 40796 | BZ65: 39728 | CA65: 38516 | CB65: 37060 | CC65: 35311 | CD65: 33351 | CE65: 31366 | CF65: 29377 | CG65: 27324 | CH65: 25222 | CI65: 23169 | CJ65: 20864 | CK65: 99415
A66: M | B66: 2034 | C66: Male2034 | D66: 46444 | E66: 46386 | F66: 46566 | G66: 46764 | H66: 46972 | I66: 47172 | J66: 47364 | K66: 47564 | L66: 47761 | M66: 47940 | N66: 48032 | O66: 47370 | P66: 48529 | Q66: 47768 | R66: 50398 | S66: 50531 | T66: 50733 | U66: 51134 | V66: 51864 | W66: 53123 | X66: 54309 | Y66: 55427 | Z66: 56355 | AA66: 57136 | AB66: 57864 | AC66: 58428 | AD66: 58801 | AE66: 58826 | AF66: 58562 | AG66: 58089 | AH66: 57703 | AI66: 57378 | AJ66: 58480 | AK66: 60637 | AL66: 61125 | AM66: 60932 | AN66: 60538 | AO66: 60241 | AP66: 60421 | AQ66: 62322 | AR66: 63740 | AS66: 64708 | AT66: 65204 | AU66: 65194 | AV66: 64643 | AW66: 63805 | AX66: 63046 | AY66: 62368 | AZ66: 61880 | BA66: 61535 | BB66: 60570 | BC66: 59237 | BD66: 57531 | BE66: 55450 | BF66: 53117 | BG66: 51176 | BH66: 49689 | BI66: 48600 | BJ66: 47886 | BK66: 47717 | BL66: 43348 | BM66: 42920 | BN66: 44803 | BO66: 47317 | BP66: 48787 | BQ66: 43975 | BR66: 41544 | BS66: 40741 | BT66: 40774 | BU66: 43435 | BV66: 42898 | BW66: 42274 | BX66: 41588 | BY66: 40799 | BZ66: 39933 | CA66: 38878 | CB66: 37612 | CC66: 36025 | CD66: 34181 | CE66: 32183 | CF66: 30201 | CG66: 28121 | CH66: 26002 | CI66: 23890 | CJ66: 21756 | CK66: 106973
A67: M | B67: 2035 | C67: Male2035 | D67: 46837 | E67: 46789 | F67: 46973 | G67: 47162 | H67: 47339 | I67: 47496 | J67: 47660 | K67: 47835 | L67: 48027 | M67: 48216 | N67: 48393 | O67: 48417 | P67: 47721 | Q67: 48864 | R67: 48096 | S67: 50732 | T67: 50891 | U67: 51094 | V67: 51569 | W67: 52522 | X67: 53831 | Y67: 55096 | Z67: 56196 | AA67: 57144 | AB67: 57967 | AC67: 58717 | AD67: 59295 | AE67: 59613 | AF67: 59606 | AG67: 59298 | AH67: 58763 | AI67: 58317 | AJ67: 57963 | AK67: 59049 | AL67: 61137 | AM67: 61535 | AN67: 61304 | AO67: 60882 | AP67: 60536 | AQ67: 60690 | AR67: 62579 | AS67: 63920 | AT67: 64894 | AU67: 65383 | AV67: 65356 | AW67: 64796 | AX67: 63934 | AY67: 63142 | AZ67: 62437 | BA67: 61932 | BB67: 61569 | BC67: 60577 | BD67: 59223 | BE67: 57482 | BF67: 55373 | BG67: 53027 | BH67: 51056 | BI67: 49554 | BJ67: 48445 | BK67: 47712 | BL67: 47531 | BM67: 43132 | BN67: 42660 | BO67: 44518 | BP67: 46996 | BQ67: 48395 | BR67: 43591 | BS67: 41161 | BT67: 40322 | BU67: 40341 | BV67: 42896 | BW67: 42275 | BX67: 41607 | BY67: 40812 | BZ67: 39952 | CA67: 39095 | CB67: 37982 | CC67: 36580 | CD67: 34892 | CE67: 33004 | CF67: 31008 | CG67: 28932 | CH67: 26782 | CI67: 24651 | CJ67: 22457 | CK67: 114693
A68: M | B68: 2036 | C68: Male2036 | D68: 47220 | E68: 47185 | F68: 47380 | G68: 47572 | H68: 47740 | I68: 47867 | J68: 47986 | K68: 48133 | L68: 48299 | M68: 48483 | N68: 48670 | O68: 48780 | P68: 48774 | Q68: 48049 | R68: 49198 | S68: 48414 | T68: 51093 | U68: 51252 | V68: 51528 | W68: 52222 | X68: 53220 | Y68: 54609 | Z68: 55859 | AA68: 56981 | AB68: 57974 | AC68: 58819 | AD68: 59585 | AE68: 60113 | AF68: 60401 | AG68: 60354 | AH68: 59985 | AI68: 59387 | AJ68: 58911 | AK68: 58527 | AL68: 59535 | AM68: 61547 | AN68: 61910 | AO68: 61652 | AP68: 61181 | AQ68: 60805 | AR68: 60941 | AS68: 62757 | AT68: 64105 | AU68: 65073 | AV68: 65547 | AW68: 65511 | AX68: 64929 | AY68: 64033 | AZ68: 63215 | BA68: 62492 | BB68: 61969 | BC68: 61579 | BD68: 60565 | BE68: 59176 | BF68: 57406 | BG68: 55283 | BH68: 52907 | BI68: 50921 | BJ68: 49401 | BK68: 48274 | BL68: 47532 | BM68: 47301 | BN68: 42877 | BO68: 42395 | BP68: 44223 | BQ68: 46627 | BR68: 47983 | BS68: 43198 | BT68: 40748 | BU68: 39904 | BV68: 39851 | BW68: 42285 | BX68: 41619 | BY68: 40844 | BZ68: 39979 | CA68: 39127 | CB68: 38209 | CC68: 36958 | CD68: 35449 | CE68: 33712 | CF68: 31819 | CG68: 29727 | CH68: 27577 | CI68: 25414 | CJ68: 23196 | CK68: 122403
A69: M | B69: 2037 | C69: Male2037 | D69: 47621 | E69: 47570 | F69: 47779 | G69: 47982 | H69: 48154 | I69: 48270 | J69: 48359 | K69: 48460 | L69: 48598 | M69: 48757 | N69: 48938 | O69: 49058 | P69: 49139 | Q69: 49108 | R69: 48376 | S69: 49522 | T69: 48758 | U69: 51455 | V69: 51687 | W69: 52179 | X69: 52915 | Y69: 53988 | Z69: 55363 | AA69: 56638 | AB69: 57806 | AC69: 58825 | AD69: 59687 | AE69: 60405 | AF69: 60907 | AG69: 61159 | AH69: 61052 | AI69: 60622 | AJ69: 59991 | AK69: 59483 | AL69: 59009 | AM69: 59935 | AN69: 61923 | AO69: 62262 | AP69: 61955 | AQ69: 61453 | AR69: 61056 | AS69: 61115 | AT69: 62939 | AU69: 64283 | AV69: 65237 | AW69: 65704 | AX69: 65646 | AY69: 65031 | AZ69: 64108 | BA69: 63273 | BB69: 62532 | BC69: 61982 | BD69: 61570 | BE69: 60521 | BF69: 59102 | BG69: 57317 | BH69: 55164 | BI69: 52772 | BJ69: 50768 | BK69: 49231 | BL69: 48096 | BM69: 47308 | BN69: 47028 | BO69: 42617 | BP69: 42121 | BQ69: 43883 | BR69: 46238 | BS69: 47561 | BT69: 42774 | BU69: 40334 | BV69: 39429 | BW69: 39294 | BX69: 41642 | BY69: 40869 | BZ69: 40025 | CA69: 39169 | CB69: 38256 | CC69: 37196 | CD69: 35835 | CE69: 34269 | CF69: 32521 | CG69: 30525 | CH69: 28358 | CI69: 26191 | CJ69: 23938 | CK69: 130163
A70: M | B70: 2038 | C70: Male2038 | D70: 48054 | E70: 47973 | F70: 48167 | G70: 48385 | H70: 48567 | I70: 48687 | J70: 48765 | K70: 48836 | L70: 48927 | M70: 49057 | N70: 49213 | O70: 49327 | P70: 49418 | Q70: 49475 | R70: 49442 | S70: 48694 | T70: 49873 | U70: 49103 | V70: 51890 | W70: 52339 | X70: 52869 | Y70: 53677 | Z70: 54732 | AA70: 56133 | AB70: 57457 | AC70: 58652 | AD70: 59692 | AE70: 60507 | AF70: 61202 | AG70: 61669 | AH70: 61866 | AI70: 61698 | AJ70: 61238 | AK70: 60572 | AL70: 59972 | AM70: 59405 | AN70: 60300 | AO70: 62275 | AP70: 62568 | AQ70: 62232 | AR70: 61707 | AS70: 61232 | AT70: 61294 | AU70: 63115 | AV70: 64446 | AW70: 65395 | AX70: 65841 | AY70: 65751 | AZ70: 65110 | BA70: 64169 | BB70: 63316 | BC70: 62547 | BD70: 61976 | BE70: 61529 | BF70: 60449 | BG70: 59014 | BH70: 57197 | BI70: 55028 | BJ70: 52617 | BK70: 50599 | BL70: 49055 | BM70: 47874 | BN70: 47041 | BO70: 46750 | BP70: 42349 | BQ70: 41805 | BR70: 43526 | BS70: 45840 | BT70: 47104 | BU70: 42348 | BV70: 39863 | BW70: 38888 | BX70: 38707 | BY70: 40905 | BZ70: 40064 | CA70: 39228 | CB70: 38312 | CC70: 37259 | CD70: 36084 | CE70: 34662 | CF70: 33079 | CG70: 31221 | CH70: 29142 | CI70: 26957 | CJ70: 24694 | CK70: 137996
A71: M | B71: 2039 | C71: Male2039 | D71: 48470 | E71: 48409 | F71: 48575 | G71: 48776 | H71: 48973 | I71: 49103 | J71: 49185 | K71: 49244 | L71: 49306 | M71: 49388 | N71: 49515 | O71: 49603 | P71: 49688 | Q71: 49755 | R71: 49810 | S71: 49766 | T71: 49038 | U71: 50225 | V71: 49518 | W71: 52543 | X71: 53030 | Y71: 53628 | Z71: 54416 | AA71: 55493 | AB71: 56944 | AC71: 58297 | AD71: 59515 | AE71: 60510 | AF71: 61304 | AG71: 61967 | AH71: 62381 | AI71: 62521 | AJ71: 62324 | AK71: 61831 | AL71: 61070 | AM71: 60374 | AN71: 59767 | AO71: 60643 | AP71: 62581 | AQ71: 62847 | AR71: 62490 | AS71: 61885 | AT71: 61412 | AU71: 61466 | AV71: 63276 | AW71: 64603 | AX71: 65533 | AY71: 65948 | AZ71: 65833 | BA71: 65174 | BB71: 64215 | BC71: 63334 | BD71: 62544 | BE71: 61937 | BF71: 61460 | BG71: 60363 | BH71: 58895 | BI71: 57060 | BJ71: 54872 | BK71: 52447 | BL71: 50423 | BM71: 48835 | BN71: 47611 | BO71: 46769 | BP71: 46462 | BQ71: 42039 | BR71: 41472 | BS71: 43160 | BT71: 45409 | BU71: 46645 | BV71: 41863 | BW71: 39327 | BX71: 38318 | BY71: 38035 | BZ71: 40114 | CA71: 39280 | CB71: 38385 | CC71: 37331 | CD71: 36164 | CE71: 34923 | CF71: 33478 | CG71: 31778 | CH71: 29829 | CI71: 27725 | CJ71: 25441 | CK71: 145932
A72: M | B72: 2040 | C72: Male2040 | D72: 48840 | E72: 48828 | F72: 49015 | G72: 49188 | H72: 49368 | I72: 49512 | J72: 49604 | K72: 49667 | L72: 49716 | M72: 49770 | N72: 49848 | O72: 49907 | P72: 49965 | Q72: 50026 | R72: 50092 | S72: 50136 | T72: 50117 | U72: 49383 | V72: 50648 | W72: 50140 | X72: 53235 | Y72: 53791 | Z72: 54365 | AA72: 55171 | AB72: 56292 | AC72: 57776 | AD72: 59154 | AE72: 60331 | AF72: 61306 | AG72: 62070 | AH72: 62682 | AI72: 63040 | AJ72: 63155 | AK72: 62927 | AL72: 62338 | AM72: 61480 | AN72: 60742 | AO72: 60108 | AP72: 60942 | AQ72: 62861 | AR72: 63108 | AS72: 62672 | AT72: 62068 | AU72: 61585 | AV72: 61624 | AW72: 63431 | AX72: 64740 | AY72: 65641 | AZ72: 66032 | BA72: 65900 | BB72: 65224 | BC72: 64236 | BD72: 63335 | BE72: 62509 | BF72: 61872 | BG72: 61377 | BH72: 60246 | BI72: 58760 | BJ72: 56904 | BK72: 54700 | BL72: 52270 | BM72: 50202 | BN72: 48573 | BO72: 47342 | BP72: 46488 | BQ72: 46129 | BR72: 41712 | BS72: 41131 | BT72: 42763 | BU72: 44976 | BV72: 46122 | BW72: 41310 | BX72: 38761 | BY72: 37665 | BZ72: 37312 | CA72: 39343 | CB72: 38450 | CC72: 37418 | CD72: 36252 | CE72: 35019 | CF72: 33750 | CG72: 32183 | CH72: 30385 | CI72: 28402 | CJ72: 26191 | CK72: 153975
A73: M | B73: 2041 | C73: Male2041 | D73: 49122 | E73: 49201 | F73: 49438 | G73: 49632 | H73: 49784 | I73: 49910 | J73: 50016 | K73: 50090 | L73: 50142 | M73: 50182 | N73: 50232 | O73: 50241 | P73: 50271 | Q73: 50304 | R73: 50364 | S73: 50420 | T73: 50489 | U73: 50469 | V73: 49798 | W73: 51283 | X73: 50800 | Y73: 53997 | Z73: 54530 | AA73: 55118 | AB73: 55965 | AC73: 57112 | AD73: 58623 | AE73: 59963 | AF73: 61123 | AG73: 62071 | AH73: 62785 | AI73: 63344 | AJ73: 63678 | AK73: 63765 | AL73: 63443 | AM73: 62756 | AN73: 61855 | AO73: 61089 | AP73: 60405 | AQ73: 61215 | AR73: 63122 | AS73: 63292 | AT73: 62859 | AU73: 62245 | AV73: 61745 | AW73: 61777 | AX73: 63568 | AY73: 64850 | AZ73: 65727 | BA73: 66103 | BB73: 65953 | BC73: 65248 | BD73: 64240 | BE73: 63303 | BF73: 62446 | BG73: 61793 | BH73: 61263 | BI73: 60113 | BJ73: 58604 | BK73: 56731 | BL73: 54521 | BM73: 52047 | BN73: 49939 | BO73: 48305 | BP73: 47064 | BQ73: 46163 | BR73: 45778 | BS73: 41376 | BT73: 40760 | BU73: 42363 | BV73: 44481 | BW73: 45525 | BX73: 40726 | BY73: 38112 | BZ73: 36961 | CA73: 36607 | CB73: 38526 | CC73: 37498 | CD73: 36355 | CE73: 35123 | CF73: 33862 | CG73: 32466 | CH73: 30795 | CI73: 28955 | CJ73: 26857 | CK73: 162138
A74: M | B74: 2042 | C74: Male2042 | D74: 49368 | E74: 49483 | F74: 49814 | G74: 50058 | H74: 50231 | I74: 50329 | J74: 50416 | K74: 50504 | L74: 50568 | M74: 50611 | N74: 50646 | O74: 50627 | P74: 50606 | Q74: 50611 | R74: 50642 | S74: 50693 | T74: 50773 | U74: 50843 | V74: 50892 | W74: 50420 | X74: 51956 | Y74: 51525 | Z74: 54736 | AA74: 55283 | AB74: 55908 | AC74: 56779 | AD74: 57947 | AE74: 59423 | AF74: 60749 | AG74: 61884 | AH74: 62784 | AI74: 63447 | AJ74: 63984 | AK74: 64292 | AL74: 64286 | AM74: 63868 | AN74: 63138 | AO74: 62207 | AP74: 61391 | AQ74: 60675 | AR74: 61470 | AS74: 63307 | AT74: 63481 | AU74: 63038 | AV74: 62407 | AW74: 61898 | AX74: 61911 | AY74: 63677 | AZ74: 64937 | BA74: 65798 | BB74: 66158 | BC74: 65980 | BD74: 65254 | BE74: 64211 | BF74: 63243 | BG74: 62370 | BH74: 61682 | BI74: 61131 | BJ74: 59958 | BK74: 58431 | BL74: 56550 | BM74: 54295 | BN74: 51781 | BO74: 49670 | BP74: 48028 | BQ74: 46742 | BR74: 45821 | BS74: 45418 | BT74: 41012 | BU74: 40387 | BV74: 41906 | BW74: 43916 | BX74: 44894 | BY74: 40055 | BZ74: 37412 | CA74: 36275 | CB74: 35859 | CC74: 37588 | CD74: 36450 | CE74: 35241 | CF74: 33981 | CG74: 32594 | CH74: 31088 | CI74: 29369 | CJ74: 27404 | CK74: 170351
A75: M | B75: 2043 | C75: Male2043 | D75: 49628 | E75: 49731 | F75: 50098 | G75: 50436 | H75: 50659 | I75: 50778 | J75: 50837 | K75: 50906 | L75: 50984 | M75: 51039 | N75: 51077 | O75: 51042 | P75: 50993 | Q75: 50947 | R75: 50950 | S75: 50971 | T75: 51047 | U75: 51127 | V75: 51268 | W75: 51526 | X75: 51080 | Y75: 52696 | Z75: 52227 | AA75: 55490 | AB75: 56073 | AC75: 56718 | AD75: 57607 | AE75: 58735 | AF75: 60199 | AG75: 61502 | AH75: 62593 | AI75: 63444 | AJ75: 64086 | AK75: 64599 | AL75: 64817 | AM75: 64715 | AN75: 64256 | AO75: 63497 | AP75: 62514 | AQ75: 61665 | AR75: 60927 | AS75: 61651 | AT75: 63497 | AU75: 63663 | AV75: 63203 | AW75: 62563 | AX75: 62034 | AY75: 62018 | AZ75: 63763 | BA75: 65009 | BB75: 65855 | BC75: 66188 | BD75: 65989 | BE75: 65227 | BF75: 64155 | BG75: 63170 | BH75: 62262 | BI75: 61554 | BJ75: 60979 | BK75: 59785 | BL75: 58250 | BM75: 56321 | BN75: 54024 | BO75: 51509 | BP75: 49392 | BQ75: 47706 | BR75: 46402 | BS75: 45469 | BT75: 45026 | BU75: 40644 | BV75: 39960 | BW75: 41383 | BX75: 43318 | BY75: 44167 | BZ75: 39333 | CA75: 36730 | CB75: 35546 | CC75: 35000 | CD75: 36555 | CE75: 35352 | CF75: 34114 | CG75: 32729 | CH75: 31233 | CI75: 29671 | CJ75: 27820 | CK75: 178520
A76: M | B76: 2044 | C76: Male2044 | D76: 49871 | E76: 49991 | F76: 50346 | G76: 50721 | H76: 51039 | I76: 51209 | J76: 51289 | K76: 51330 | L76: 51388 | M76: 51457 | N76: 51507 | O76: 51475 | P76: 51410 | Q76: 51335 | R76: 51287 | S76: 51280 | T76: 51326 | U76: 51403 | V76: 51553 | W76: 51904 | X76: 52198 | Y76: 51805 | Z76: 53412 | AA76: 52943 | AB76: 56280 | AC76: 56883 | AD76: 57542 | AE76: 58388 | AF76: 59499 | AG76: 60944 | AH76: 62204 | AI76: 63249 | AJ76: 64081 | AK76: 64700 | AL76: 65125 | AM76: 65250 | AN76: 65109 | AO76: 64621 | AP76: 63810 | AQ76: 62794 | AR76: 61921 | AS76: 61107 | AT76: 61837 | AU76: 63679 | AV76: 63830 | AW76: 63361 | AX76: 62700 | AY76: 62142 | AZ76: 62104 | BA76: 63836 | BB76: 65067 | BC76: 65887 | BD76: 66200 | BE76: 65965 | BF76: 65173 | BG76: 64085 | BH76: 63065 | BI76: 62137 | BJ76: 61405 | BK76: 60809 | BL76: 59604 | BM76: 58020 | BN76: 56046 | BO76: 53746 | BP76: 51227 | BQ76: 49069 | BR76: 47368 | BS76: 46053 | BT76: 45086 | BU76: 44631 | BV76: 40223 | BW76: 39470 | BX76: 40829 | BY76: 42629 | BZ76: 43383 | CA76: 38627 | CB76: 36005 | CC76: 34709 | CD76: 34053 | CE76: 35471 | CF76: 34239 | CG76: 32877 | CH76: 31384 | CI76: 29831 | CJ76: 28131 | CK76: 186549
A77: M | B77: 2045 | C77: Male2045 | D77: 50085 | E77: 50234 | F77: 50607 | G77: 50970 | H77: 51325 | I77: 51591 | J77: 51722 | K77: 51784 | L77: 51814 | M77: 51862 | N77: 51927 | O77: 51907 | P77: 51844 | Q77: 51753 | R77: 51676 | S77: 51618 | T77: 51636 | U77: 51682 | V77: 51830 | W77: 52190 | X77: 52578 | Y77: 52936 | Z77: 52507 | AA77: 54143 | AB77: 53695 | AC77: 57090 | AD77: 57707 | AE77: 58319 | AF77: 59146 | AG77: 60233 | AH77: 61638 | AI77: 62854 | AJ77: 63882 | AK77: 64693 | AL77: 65226 | AM77: 65559 | AN77: 65646 | AO77: 65478 | AP77: 64939 | AQ77: 64096 | AR77: 63054 | AS77: 62104 | AT77: 61291 | AU77: 62014 | AV77: 63847 | AW77: 63990 | AX77: 63500 | AY77: 62811 | AZ77: 62230 | BA77: 62177 | BB77: 63894 | BC77: 65101 | BD77: 65901 | BE77: 66180 | BF77: 65914 | BG77: 65105 | BH77: 63983 | BI77: 62943 | BJ77: 61991 | BK77: 61238 | BL77: 60631 | BM77: 59375 | BN77: 57744 | BO77: 55764 | BP77: 53458 | BQ77: 50899 | BR77: 48729 | BS77: 47020 | BT77: 45672 | BU77: 44699 | BV77: 44177 | BW77: 39739 | BX77: 38951 | BY77: 40191 | BZ77: 41885 | CA77: 42618 | CB77: 37877 | CC77: 35170 | CD77: 33786 | CE77: 33059 | CF77: 34372 | CG77: 33017 | CH77: 31547 | CI77: 29998 | CJ77: 28309 | CK77: 194372
A78: M | B78: 2046 | C78: Male2046 | D78: 50242 | E78: 50450 | F78: 50852 | G78: 51231 | H78: 51575 | I78: 51878 | J78: 52106 | K78: 52219 | L78: 52270 | M78: 52290 | N78: 52334 | O78: 52329 | P78: 52278 | Q78: 52189 | R78: 52095 | S78: 52008 | T78: 51975 | U78: 51993 | V78: 52110 | W78: 52469 | X78: 52865 | Y78: 53319 | Z78: 53651 | AA78: 53223 | AB78: 54909 | AC78: 54465 | AD78: 57914 | AE78: 58484 | AF78: 59074 | AG78: 59874 | AH78: 60917 | AI78: 62281 | AJ78: 63482 | AK78: 64490 | AL78: 65217 | AM78: 65660 | AN78: 65956 | AO78: 66018 | AP78: 65800 | AQ78: 65228 | AR78: 64362 | AS78: 63240 | AT78: 62291 | AU78: 61468 | AV78: 62177 | AW78: 64008 | AX78: 64132 | AY78: 63613 | AZ78: 62901 | BA78: 62304 | BB78: 62236 | BC78: 63930 | BD78: 65117 | BE78: 65884 | BF78: 66132 | BG78: 65849 | BH78: 65005 | BI78: 63863 | BJ78: 62800 | BK78: 61828 | BL78: 61064 | BM78: 60403 | BN78: 59099 | BO78: 57460 | BP78: 55473 | BQ78: 53123 | BR78: 50553 | BS78: 48378 | BT78: 46639 | BU78: 45287 | BV78: 44253 | BW78: 43655 | BX78: 39225 | BY78: 38353 | BZ78: 39502 | CA78: 41158 | CB78: 41805 | CC78: 37013 | CD78: 34249 | CE78: 32817 | CF78: 32052 | CG78: 33165 | CH78: 31702 | CI78: 30175 | CJ78: 28490 | CK78: 201901
A79: M | B79: 2047 | C79: Male2047 | D79: 50364 | E79: 50606 | F79: 51068 | G79: 51478 | H79: 51837 | I79: 52129 | J79: 52393 | K79: 52605 | L79: 52707 | M79: 52749 | N79: 52764 | O79: 52737 | P79: 52701 | Q79: 52624 | R79: 52533 | S79: 52428 | T79: 52366 | U79: 52333 | V79: 52421 | W79: 52750 | X79: 53146 | Y79: 53607 | Z79: 54037 | AA79: 54380 | AB79: 53974 | AC79: 55694 | AD79: 55249 | AE79: 58692 | AF79: 59238 | AG79: 59799 | AH79: 60553 | AI79: 61550 | AJ79: 62901 | AK79: 64085 | AL79: 65011 | AM79: 65649 | AN79: 66057 | AO79: 66328 | AP79: 66342 | AQ79: 66093 | AR79: 65498 | AS79: 64553 | AT79: 63432 | AU79: 62471 | AV79: 61631 | AW79: 62334 | AX79: 64151 | AY79: 64247 | AZ79: 63705 | BA79: 62978 | BB79: 62365 | BC79: 62273 | BD79: 63948 | BE79: 65102 | BF79: 65839 | BG79: 66070 | BH79: 65753 | BI79: 64888 | BJ79: 63722 | BK79: 62639 | BL79: 61657 | BM79: 60841 | BN79: 60128 | BO79: 58816 | BP79: 57166 | BQ79: 55133 | BR79: 52770 | BS79: 50197 | BT79: 47994 | BU79: 46254 | BV79: 44844 | BW79: 43739 | BX79: 43101 | BY79: 38632 | BZ79: 37707 | CA79: 38828 | CB79: 40385 | CC79: 40867 | CD79: 36060 | CE79: 33281 | CF79: 31833 | CG79: 30944 | CH79: 31865 | CI79: 30346 | CJ79: 28682 | CK79: 209185
A80: M | B80: 2048 | C80: Male2048 | D80: 50487 | E80: 50728 | F80: 51223 | G80: 51694 | H80: 52085 | I80: 52392 | J80: 52645 | K80: 52893 | L80: 53095 | M80: 53188 | N80: 53225 | O80: 53169 | P80: 53111 | Q80: 53049 | R80: 52969 | S80: 52868 | T80: 52788 | U80: 52725 | V80: 52763 | W80: 53062 | X80: 53428 | Y80: 53889 | Z80: 54326 | AA80: 54769 | AB80: 55144 | AC80: 54743 | AD80: 56492 | AE80: 55988 | AF80: 59446 | AG80: 59962 | AH80: 60475 | AI80: 61180 | AJ80: 62161 | AK80: 63497 | AL80: 64601 | AM80: 65441 | AN80: 66045 | AO80: 66429 | AP80: 66654 | AQ80: 66637 | AR80: 66367 | AS80: 65693 | AT80: 64748 | AU80: 63615 | AV80: 62637 | AW80: 61787 | AX80: 62474 | AY80: 64267 | AZ80: 64342 | BA80: 63784 | BB80: 63041 | BC80: 62403 | BD80: 62293 | BE80: 63936 | BF80: 65061 | BG80: 65781 | BH80: 65976 | BI80: 65638 | BJ80: 64750 | BK80: 63564 | BL80: 62471 | BM80: 61437 | BN80: 60571 | BO80: 59846 | BP80: 58522 | BQ80: 56824 | BR80: 54775 | BS80: 52406 | BT80: 49807 | BU80: 47606 | BV80: 45810 | BW80: 44333 | BX80: 43193 | BY80: 42461 | BZ80: 37992 | CA80: 37075 | CB80: 38110 | CC80: 39494 | CD80: 39831 | CE80: 35057 | CF80: 32299 | CG80: 30750 | CH80: 29750 | CI80: 30522 | CJ80: 28866 | CK80: 216274
A81: M | B81: 2049 | C81: Male2049 | D81: 50607 | E81: 50851 | F81: 51345 | G81: 51848 | H81: 52301 | I81: 52640 | J81: 52908 | K81: 53145 | L81: 53383 | M81: 53577 | N81: 53666 | O81: 53632 | P81: 53544 | Q81: 53460 | R81: 53396 | S81: 53305 | T81: 53229 | U81: 53148 | V81: 53157 | W81: 53406 | X81: 53741 | Y81: 54172 | Z81: 54610 | AA81: 55059 | AB81: 55535 | AC81: 55927 | AD81: 55525 | AE81: 57246 | AF81: 56705 | AG81: 60170 | AH81: 60637 | AI81: 61099 | AJ81: 61785 | AK81: 62747 | AL81: 64007 | AM81: 65027 | AN81: 65834 | AO81: 66416 | AP81: 66754 | AQ81: 66951 | AR81: 66912 | AS81: 66565 | AT81: 65892 | AU81: 64936 | AV81: 63784 | AW81: 62796 | AX81: 61926 | AY81: 62589 | AZ81: 64363 | BA81: 64423 | BB81: 63849 | BC81: 63082 | BD81: 62425 | BE81: 62284 | BF81: 63898 | BG81: 65006 | BH81: 65692 | BI81: 65865 | BJ81: 65502 | BK81: 64594 | BL81: 63398 | BM81: 62254 | BN81: 61170 | BO81: 60294 | BP81: 59554 | BQ81: 58179 | BR81: 56463 | BS81: 54406 | BT81: 52007 | BU81: 49412 | BV81: 47158 | BW81: 45297 | BX81: 43789 | BY81: 42563 | BZ81: 41769 | CA81: 37365 | CB81: 36401 | CC81: 37282 | CD81: 38508 | CE81: 38741 | CF81: 34038 | CG81: 31217 | CH81: 29581 | CI81: 28515 | CJ81: 29056 | CK81: 223192
A82: M | B82: 2050 | C82: Male2050 | D82: 50742 | E82: 50970 | F82: 51467 | G82: 51969 | H82: 52454 | I82: 52856 | J82: 53156 | K82: 53408 | L82: 53636 | M82: 53866 | N82: 54057 | O82: 54074 | P82: 54009 | Q82: 53894 | R82: 53808 | S82: 53733 | T82: 53668 | U82: 53591 | V82: 53582 | W82: 53803 | X82: 54088 | Y82: 54486 | Z82: 54893 | AA82: 55345 | AB82: 55828 | AC82: 56320 | AD82: 56723 | AE82: 56263 | AF82: 57976 | AG82: 57393 | AH82: 60845 | AI82: 61261 | AJ82: 61701 | AK82: 62367 | AL82: 63249 | AM82: 64428 | AN82: 65417 | AO82: 66203 | AP82: 66741 | AQ82: 67051 | AR82: 67227 | AS82: 67111 | AT82: 66767 | AU82: 66083 | AV82: 65109 | AW82: 63946 | AX82: 62938 | AY82: 62040 | AZ82: 62683 | BA82: 64445 | BB82: 64491 | BC82: 63892 | BD82: 63106 | BE82: 62418 | BF82: 62250 | BG82: 63847 | BH82: 64921 | BI82: 65585 | BJ82: 65733 | BK82: 65349 | BL82: 64429 | BM82: 63183 | BN82: 61990 | BO82: 60897 | BP82: 60007 | BQ82: 59214 | BR82: 57817 | BS82: 56090 | BT82: 54000 | BU82: 51603 | BV82: 48955 | BW82: 46639 | BX82: 44751 | BY82: 43161 | BZ82: 41881 | CA82: 41091 | CB82: 36696 | CC82: 35623 | CD82: 36366 | CE82: 37470 | CF82: 37632 | CG82: 32915 | CH82: 30049 | CI82: 28372 | CJ82: 27167 | CK82: 229975

Sheet FemaleT (hidden)
A1: Sex | B1: Year | C1: Label | D1: Age_0 | E1: Age_1 | F1: Age_2 | G1: Age_3 | H1: Age_4 | I1: Age_5 | J1: Age_6 | K1: Age_7 | L1: Age_8 | M1: Age_9 | N1: Age_10 | O1: Age_11 | P1: Age_12 | Q1: Age_13 | R1: Age_14 | S1: Age_15 | T1: Age_16 | U1: Age_17 | V1: Age_18 | W1: Age_19 | X1: Age_20 | Y1: Age_21 | Z1: Age_22 | AA1: Age_23 | AB1: Age_24 | AC1: Age_25 | AD1: Age_26 | AE1: Age_27 | AF1: Age_28 | AG1: Age_29 | AH1: Age_30 | AI1: Age_31 | AJ1: Age_32 | AK1: Age_33 | AL1: Age_34 | AM1: Age_35 | AN1: Age_36 | AO1: Age_37 | AP1: Age_38 | AQ1: Age_39 | AR1: Age_40 | AS1: Age_41 | AT1: Age_42 | AU1: Age_43 | AV1: Age_44 | AW1: Age_45 | AX1: Age_46 | AY1: Age_47 | AZ1: Age_48 | BA1: Age_49 | BB1: Age_50 | BC1: Age_51 | BD1: Age_52 | BE1: Age_53 | BF1: Age_54 | BG1: Age_55 | BH1: Age_56 | BI1: Age_57 | BJ1: Age_58 | BK1: Age_59 | BL1: Age_60 | BM1: Age_61 | BN1: Age_62 | BO1: Age_63 | BP1: Age_64 | BQ1: Age_65 | BR1: Age_66 | BS1: Age_67 | BT1: Age_68 | BU1: Age_69 | BV1: Age_70 | BW1: Age_71 | BX1: Age_72 | BY1: Age_73 | BZ1: Age_74 | CA1: Age_75 | CB1: Age_76 | CC1: Age_77 | CD1: Age_78 | CE1: Age_79 | CF1: Age_80 | CG1: Age_81 | CH1: Age_82 | CI1: Age_83 | CJ1: Age_84 | CK1: Age_85
A2: F | B2: 1970 | C2: Female 1970 | D2: 28708 | E2: 27727 | F2: 26472 | G2: 26870 | H2: 27908 | I2: 29373 | J2: 31200 | K2: 32806 | L2: 33231 | M2: 34160 | N2: 34843 | O2: 33726 | P2: 34261 | Q2: 34064 | R2: 33956 | S2: 33513 | T2: 32785 | U2: 32627 | V2: 31795 | W2: 30637 | X2: 31246 | Y2: 30162 | Z2: 31265 | AA2: 30855 | AB2: 24036 | AC2: 24968 | AD2: 25455 | AE2: 25114 | AF2: 21915 | AG2: 20733 | AH2: 20503 | AI2: 19631 | AJ2: 19215 | AK2: 18536 | AL2: 18310 | AM2: 18227 | AN2: 17746 | AO2: 18017 | AP2: 18213 | AQ2: 18476 | AR2: 19529 | AS2: 19002 | AT2: 19414 | AU2: 19773 | AV2: 19957 | AW2: 20890 | AX2: 20700 | AY2: 20587 | AZ2: 21472 | BA2: 20363 | BB2: 20835 | BC2: 19366 | BD2: 18905 | BE2: 18170 | BF2: 17707 | BG2: 17945 | BH2: 17369 | BI2: 16887 | BJ2: 16459 | BK2: 15622 | BL2: 15803 | BM2: 14668 | BN2: 14240 | BO2: 13192 | BP2: 12863 | BQ2: 12602 | BR2: 11938 | BS2: 11266 | BT2: 10561 | BU2: 10655 | BV2: 10824 | BW2: 9786 | BX2: 9301 | BY2: 8917 | BZ2: 9059 | CA2: 8424 | CB2: 7804 | CC2: 7612 | CD2: 6817 | CE2: 6215 | CF2: 6352 | CG2: 5315 | CH2: 4636 | CI2: 4166 | CJ2: 3820 | CK2: 16391
A3: F | B3: 1971 | C3: Female 1971 | D3: 28796 | E3: 28670 | F3: 27687 | G3: 26430 | H3: 26825 | I3: 27860 | J3: 29320 | K3: 31146 | L3: 32750 | M3: 33174 | N3: 34103 | O3: 34785 | P3: 33667 | Q3: 34200 | R3: 34001 | S3: 33889 | T3: 33441 | U3: 32705 | V3: 32541 | W3: 31707 | X3: 30546 | Y3: 31154 | Z3: 30068 | AA3: 31169 | AB3: 30754 | AC3: 23932 | AD3: 24854 | AE3: 25336 | AF3: 24993 | AG3: 21798 | AH3: 20614 | AI3: 20379 | AJ3: 19506 | AK3: 19087 | AL3: 18408 | AM3: 18187 | AN3: 18103 | AO3: 17621 | AP3: 17891 | AQ3: 18085 | AR3: 18352 | AS3: 19410 | AT3: 18886 | AU3: 19298 | AV3: 19658 | AW3: 19842 | AX3: 20769 | AY3: 20578 | AZ3: 20462 | BA3: 21338 | BB3: 20232 | BC3: 20694 | BD3: 19234 | BE3: 18768 | BF3: 18031 | BG3: 17561 | BH3: 17787 | BI3: 17210 | BJ3: 16724 | BK3: 16291 | BL3: 15453 | BM3: 15628 | BN3: 14502 | BO3: 14068 | BP3: 13023 | BQ3: 12689 | BR3: 12414 | BS3: 11741 | BT3: 11063 | BU3: 10353 | BV3: 10423 | BW3: 10569 | BX3: 9534 | BY3: 9035 | BZ3: 8631 | CA3: 8762 | CB3: 8111 | CC3: 7478 | CD3: 7257 | CE3: 6463 | CF3: 5877 | CG3: 5970 | CH3: 4960 | CI3: 4293 | CJ3: 3823 | CK3: 17119
A4: F | B4: 1972 | C4: Female 1972 | D4: 25436 | E4: 28716 | F4: 28576 | G4: 27581 | H4: 26300 | I4: 26683 | J4: 27696 | K4: 29146 | L4: 30963 | M4: 32557 | N4: 32979 | O4: 33904 | P4: 34582 | Q4: 33460 | R4: 33989 | S4: 33777 | T4: 33642 | U4: 33172 | V4: 32414 | W4: 32243 | X4: 31405 | Y4: 30241 | Z4: 30845 | AA4: 29756 | AB4: 30836 | AC4: 30396 | AD4: 23542 | AE4: 24444 | AF4: 24919 | AG4: 24574 | AH4: 21377 | AI4: 20181 | AJ4: 19940 | AK4: 19056 | AL4: 18640 | AM4: 17986 | AN4: 17766 | AO4: 17681 | AP4: 17201 | AQ4: 17471 | AR4: 17697 | AS4: 18002 | AT4: 19077 | AU4: 18579 | AV4: 19013 | AW4: 19392 | AX4: 19581 | AY4: 20521 | AZ4: 20340 | BA4: 20230 | BB4: 21112 | BC4: 20008 | BD4: 20495 | BE4: 19036 | BF4: 18566 | BG4: 17824 | BH4: 17349 | BI4: 17568 | BJ4: 16989 | BK4: 16499 | BL4: 16068 | BM4: 15262 | BN4: 15458 | BO4: 14346 | BP4: 13916 | BQ4: 12889 | BR4: 12535 | BS4: 12242 | BT4: 11561 | BU4: 10878 | BV4: 10156 | BW4: 10211 | BX4: 10323 | BY4: 9284 | BZ4: 8762 | CA4: 8384 | CB4: 8434 | CC4: 7770 | CD4: 7126 | CE4: 6875 | CF4: 6138 | CG4: 5524 | CH4: 5569 | CI4: 4592 | CJ4: 3939 | CK4: 17684
A5: F | B5: 1973 | C5: Female 1973 | D5: 23044 | E5: 25409 | F5: 28687 | G5: 28546 | H5: 27550 | I5: 26269 | J5: 26653 | K5: 27665 | L5: 29115 | M5: 30933 | N5: 32526 | O5: 32948 | P5: 33872 | Q5: 34547 | R5: 33424 | S5: 33950 | T5: 33735 | U5: 33596 | V5: 33121 | W5: 32362 | X5: 32188 | Y5: 31350 | Z5: 30186 | AA5: 30789 | AB5: 29698 | AC5: 30772 | AD5: 30328 | AE5: 23478 | AF5: 24378 | AG5: 24853 | AH5: 24505 | AI5: 21309 | AJ5: 20112 | AK5: 19870 | AL5: 18986 | AM5: 18572 | AN5: 17916 | AO5: 17695 | AP5: 17608 | AQ5: 17127 | AR5: 17397 | AS5: 17625 | AT5: 17928 | AU5: 18999 | AV5: 18500 | AW5: 18931 | AX5: 19305 | AY5: 19488 | AZ5: 20419 | BA5: 20233 | BB5: 20117 | BC5: 20988 | BD5: 19885 | BE5: 20360 | BF5: 18901 | BG5: 18425 | BH5: 17678 | BI5: 17200 | BJ5: 17409 | BK5: 16825 | BL5: 16328 | BM5: 15891 | BN5: 15085 | BO5: 15265 | BP5: 14154 | BQ5: 13720 | BR5: 12685 | BS5: 12317 | BT5: 12010 | BU5: 11324 | BV5: 10628 | BW5: 9914 | BX5: 9945 | BY5: 10026 | BZ5: 8984 | CA5: 8510 | CB5: 8053 | CC5: 8063 | CD5: 7390 | CE5: 6742 | CF5: 6559 | CG5: 5769 | CH5: 5155 | CI5: 5156 | CJ5: 4214 | CK5: 18269
A6: F | B6: 1974 | C6: Female 1974 | D6: 23078 | E6: 23424 | F6: 25835 | G6: 29176 | H6: 29041 | I6: 28031 | J6: 26710 | K6: 27089 | L6: 28104 | M6: 29563 | N6: 31393 | O6: 32940 | P6: 33330 | Q6: 34227 | R6: 34907 | S6: 33771 | T6: 34303 | U6: 34082 | V6: 33940 | W6: 33494 | X6: 32760 | Y6: 32653 | Z6: 31835 | AA6: 30686 | AB6: 31332 | AC6: 30252 | AD6: 31380 | AE6: 31058 | AF6: 24093 | AG6: 24964 | AH6: 25421 | AI6: 24933 | AJ6: 21611 | AK6: 20374 | AL6: 20150 | AM6: 19253 | AN6: 18838 | AO6: 18144 | AP6: 17899 | AQ6: 17807 | AR6: 17318 | AS6: 17593 | AT6: 17821 | AU6: 18120 | AV6: 19186 | AW6: 18661 | AX6: 19070 | AY6: 19424 | AZ6: 19586 | BA6: 20501 | BB6: 20295 | BC6: 20166 | BD6: 21012 | BE6: 19897 | BF6: 20372 | BG6: 18902 | BH6: 18421 | BI6: 17668 | BJ6: 17189 | BK6: 17383 | BL6: 16779 | BM6: 16261 | BN6: 15811 | BO6: 14994 | BP6: 15156 | BQ6: 14063 | BR6: 13603 | BS6: 12555 | BT6: 12171 | BU6: 11847 | BV6: 11133 | BW6: 10437 | BX6: 9715 | BY6: 9718 | BZ6: 9763 | CA6: 8777 | CB6: 8210 | CC6: 7733 | CD6: 7708 | CE6: 7025 | CF6: 6486 | CG6: 6185 | CH6: 5401 | CI6: 4790 | CJ6: 4750 | CK6: 19234
A7: F | B7: 1975 | C7: Female 1975 | D7: 23880 | E7: 23388 | F7: 23745 | G7: 26194 | H7: 29590 | I7: 29459 | J7: 28419 | K7: 27070 | L7: 27445 | M7: 28462 | N7: 29927 | O7: 31724 | P7: 33256 | Q7: 33615 | R7: 34519 | S7: 35204 | T7: 34058 | U7: 34590 | V7: 34364 | W7: 34250 | X7: 33827 | Y7: 33146 | Z7: 33065 | AA7: 32265 | AB7: 31129 | AC7: 31810 | AD7: 30739 | AE7: 31998 | AF7: 31726 | AG7: 24567 | AH7: 25432 | AI7: 25781 | AJ7: 25218 | AK7: 21838 | AL7: 20604 | AM7: 20375 | AN7: 19472 | AO7: 19025 | AP7: 18306 | AQ7: 18055 | AR7: 17958 | AS7: 17465 | AT7: 17738 | AU7: 17962 | AV7: 18248 | AW7: 19300 | AX7: 18748 | AY7: 19137 | AZ7: 19471 | BA7: 19613 | BB7: 20509 | BC7: 20290 | BD7: 20136 | BE7: 20966 | BF7: 19850 | BG7: 20310 | BH7: 18835 | BI7: 18347 | BJ7: 17592 | BK7: 17097 | BL7: 17268 | BM7: 16641 | BN7: 16109 | BO7: 15644 | BP7: 14814 | BQ7: 14980 | BR7: 13849 | BS7: 13376 | BT7: 12324 | BU7: 11927 | BV7: 11544 | BW7: 10845 | BX7: 10146 | BY7: 9418 | BZ7: 9389 | CA7: 9405 | CB7: 8355 | CC7: 7779 | CD7: 7295 | CE7: 7232 | CF7: 6646 | CG7: 5991 | CH7: 5673 | CI7: 4918 | CJ7: 4324 | CK7: 19500
A8: F | B8: 1976 | C8: Female 1976 | D8: 24557 | E8: 24256 | F8: 23762 | G8: 24131 | H8: 26625 | I8: 30082 | J8: 29931 | K8: 28861 | L8: 27479 | M8: 27847 | N8: 28864 | O8: 30289 | P8: 32074 | Q8: 33587 | R8: 33948 | S8: 34860 | T8: 35550 | U8: 34390 | V8: 34926 | W8: 34731 | X8: 34650 | Y8: 34290 | Z8: 33633 | AA8: 33586 | AB8: 32806 | AC8: 31682 | AD8: 32405 | AE8: 31441 | AF8: 32794 | AG8: 32450 | AH8: 25102 | AI8: 25853 | AJ8: 26129 | AK8: 25531 | AL8: 22130 | AM8: 20878 | AN8: 20652 | AO8: 19706 | AP8: 19233 | AQ8: 18503 | AR8: 18246 | AS8: 18151 | AT8: 17651 | AU8: 17920 | AV8: 18132 | AW8: 18400 | AX8: 19437 | AY8: 18860 | AZ8: 19230 | BA8: 19545 | BB8: 19669 | BC8: 20557 | BD8: 20313 | BE8: 20145 | BF8: 20976 | BG8: 19849 | BH8: 20305 | BI8: 18824 | BJ8: 18332 | BK8: 17562 | BL8: 17049 | BM8: 17197 | BN8: 16558 | BO8: 16012 | BP8: 15534 | BQ8: 14729 | BR8: 14846 | BS8: 13703 | BT8: 13213 | BU8: 12154 | BV8: 11714 | BW8: 11362 | BX8: 10652 | BY8: 9938 | BZ8: 9195 | CA8: 9127 | CB8: 9092 | CC8: 8039 | CD8: 7451 | CE8: 6950 | CF8: 6978 | CG8: 6282 | CH8: 5626 | CI8: 5290 | CJ8: 4547 | CK8: 20450
A9: F | B9: 1977 | C9: Female 1977 | D9: 25986 | E9: 25021 | F9: 24720 | G9: 24222 | H9: 24606 | I9: 27153 | J9: 30656 | K9: 30487 | L9: 29380 | M9: 27958 | N9: 28318 | O9: 29280 | P9: 30688 | Q9: 32454 | R9: 33984 | S9: 34347 | T9: 35269 | U9: 35966 | V9: 34791 | W9: 35372 | X9: 35215 | Y9: 35218 | Z9: 34893 | AA9: 34266 | AB9: 34259 | AC9: 33502 | AD9: 32393 | AE9: 33290 | AF9: 32375 | AG9: 33689 | AH9: 33292 | AI9: 25600 | AJ9: 26272 | AK9: 26519 | AL9: 25942 | AM9: 22484 | AN9: 21221 | AO9: 20955 | AP9: 19968 | AQ9: 19485 | AR9: 18745 | AS9: 18486 | AT9: 18389 | AU9: 17876 | AV9: 18133 | AW9: 18325 | AX9: 18570 | AY9: 19590 | AZ9: 18986 | BA9: 19337 | BB9: 19635 | BC9: 19747 | BD9: 20611 | BE9: 20353 | BF9: 20188 | BG9: 21009 | BH9: 19877 | BI9: 20328 | BJ9: 18842 | BK9: 18333 | BL9: 17544 | BM9: 17006 | BN9: 17139 | BO9: 16487 | BP9: 15928 | BQ9: 15480 | BR9: 14624 | BS9: 14719 | BT9: 13564 | BU9: 13057 | BV9: 11979 | BW9: 11554 | BX9: 11185 | BY9: 10459 | BZ9: 9728 | CA9: 8952 | CB9: 8851 | CC9: 8780 | CD9: 7730 | CE9: 7127 | CF9: 6748 | CG9: 6617 | CH9: 5920 | CI9: 5266 | CJ9: 4912 | CK9: 21696
A10: F | B10: 1978 | C10: Female 1978 | D10: 27731 | E10: 26808 | F10: 25823 | G10: 25523 | H10: 25020 | I10: 25423 | J10: 28017 | K10: 31604 | L10: 31400 | M10: 30232 | N10: 28741 | O10: 28998 | P10: 29921 | Q10: 31297 | R10: 33094 | S10: 34656 | T10: 35024 | U10: 35962 | V10: 36668 | W10: 35538 | X10: 36202 | Y10: 36184 | Z10: 36258 | AA10: 35994 | AB10: 35416 | AC10: 35476 | AD10: 34760 | AE10: 33868 | AF10: 34943 | AG10: 33850 | AH10: 35155 | AI10: 34402 | AJ10: 26299 | AK10: 26936 | AL10: 27242 | AM10: 26646 | AN10: 23110 | AO10: 21753 | AP10: 21433 | AQ10: 20421 | AR10: 19924 | AS10: 19174 | AT10: 18910 | AU10: 18803 | AV10: 18252 | AW10: 18481 | AX10: 18638 | AY10: 18851 | AZ10: 19851 | BA10: 19206 | BB10: 19535 | BC10: 19822 | BD10: 19895 | BE10: 20748 | BF10: 20500 | BG10: 20321 | BH10: 21150 | BI10: 20005 | BJ10: 20460 | BK10: 18943 | BL10: 18404 | BM10: 17580 | BN10: 17026 | BO10: 17144 | BP10: 16475 | BQ10: 15968 | BR10: 15442 | BS10: 14567 | BT10: 14635 | BU10: 13464 | BV10: 12941 | BW10: 11863 | BX10: 11416 | BY10: 11024 | BZ10: 10275 | CA10: 9487 | CB10: 8706 | CC10: 8570 | CD10: 8465 | CE10: 7413 | CF10: 6937 | CG10: 6398 | CH10: 6235 | CI10: 5539 | CJ10: 4888 | CK10: 23161
A11: F | B11: 1979 | C11: Female 1979 | D11: 28932 | E11: 28750 | F11: 27807 | G11: 26797 | H11: 26498 | I11: 25985 | J11: 26364 | K11: 29022 | L11: 32704 | M11: 32457 | N11: 31215 | O11: 29542 | P11: 29735 | Q11: 30610 | R11: 32015 | S11: 33853 | T11: 35450 | U11: 35824 | V11: 36779 | W11: 37586 | X11: 36508 | Y11: 37358 | Z11: 37425 | AA11: 37588 | AB11: 37397 | AC11: 36879 | AD11: 37025 | AE11: 36601 | AF11: 35819 | AG11: 36792 | AH11: 35562 | AI11: 36521 | AJ11: 35497 | AK11: 27074 | AL11: 27792 | AM11: 28104 | AN11: 27512 | AO11: 23784 | AP11: 22336 | AQ11: 22005 | AR11: 20964 | AS11: 20462 | AT11: 19692 | AU11: 19409 | AV11: 19272 | AW11: 18668 | AX11: 18858 | AY11: 18978 | AZ11: 19156 | BA11: 20135 | BB11: 19451 | BC11: 19769 | BD11: 20013 | BE11: 20071 | BF11: 20946 | BG11: 20683 | BH11: 20506 | BI11: 21339 | BJ11: 20187 | BK11: 20621 | BL11: 19061 | BM11: 18483 | BN11: 17640 | BO11: 17069 | BP11: 17171 | BQ11: 16576 | BR11: 15968 | BS11: 15416 | BT11: 14520 | BU11: 14562 | BV11: 13395 | BW11: 12847 | BX11: 11753 | BY11: 11280 | BZ11: 10857 | CA11: 10035 | CB11: 9260 | CC11: 8458 | CD11: 8293 | CE11: 8149 | CF11: 7228 | CG11: 6594 | CH11: 6043 | CI11: 5850 | CJ11: 5155 | CK11: 24605
A12: F | B12: 1980 | C12: Female 1980 | D12: 32816 | E12: 30084 | F12: 29637 | G12: 28847 | H12: 28060 | I12: 27573 | J12: 26790 | K12: 27969 | L12: 29073 | M12: 33164 | N12: 32823 | O12: 31601 | P12: 30458 | Q12: 30602 | R12: 31351 | S12: 33498 | T12: 35176 | U12: 36259 | V12: 36100 | W12: 38658 | X12: 38227 | Y12: 38295 | Z12: 39008 | AA12: 39118 | AB12: 39636 | AC12: 39588 | AD12: 39426 | AE12: 39283 | AF12: 37016 | AG12: 37431 | AH12: 37127 | AI12: 36176 | AJ12: 37456 | AK12: 36664 | AL12: 28469 | AM12: 29172 | AN12: 29289 | AO12: 28420 | AP12: 24256 | AQ12: 23530 | AR12: 22571 | AS12: 21613 | AT12: 21027 | AU12: 20319 | AV12: 19852 | AW12: 19509 | AX12: 19082 | AY12: 18990 | AZ12: 18863 | BA12: 19624 | BB12: 20322 | BC12: 19861 | BD12: 19961 | BE12: 20161 | BF12: 20790 | BG12: 21354 | BH12: 20877 | BI12: 20983 | BJ12: 21613 | BK12: 20836 | BL12: 19743 | BM12: 19202 | BN12: 18385 | BO12: 17798 | BP12: 17369 | BQ12: 17663 | BR12: 16793 | BS12: 16059 | BT12: 15674 | BU12: 14840 | BV12: 13904 | BW12: 13359 | BX12: 12488 | BY12: 11647 | BZ12: 11150 | CA12: 10730 | CB12: 9803 | CC12: 9140 | CD12: 8389 | CE12: 8348 | CF12: 7482 | CG12: 7041 | CH12: 6202 | CI12: 5907 | CJ12: 5592 | CK12: 28807
A13: F | B13: 1981 | C13: Female 1981 | D13: 32893 | E13: 33485 | F13: 30747 | G13: 30273 | H13: 29451 | I13: 28599 | J13: 28061 | K13: 27238 | L13: 28441 | M13: 29554 | N13: 33699 | O13: 33327 | P13: 32063 | Q13: 30869 | R13: 31020 | S13: 31791 | T13: 33980 | U13: 35669 | V13: 36771 | W13: 36632 | X13: 39233 | Y13: 38811 | Z13: 38905 | AA13: 39703 | AB13: 39931 | AC13: 40587 | AD13: 40647 | AE13: 40539 | AF13: 40419 | AG13: 38075 | AH13: 38454 | AI13: 38085 | AJ13: 37061 | AK13: 38341 | AL13: 37465 | AM13: 28980 | AN13: 29578 | AO13: 29610 | AP13: 28697 | AQ13: 24471 | AR13: 23715 | AS13: 22723 | AT13: 21727 | AU13: 21116 | AV13: 20404 | AW13: 19967 | AX13: 19654 | AY13: 19238 | AZ13: 19131 | BA13: 18976 | BB13: 19708 | BC13: 20377 | BD13: 19896 | BE13: 19982 | BF13: 20185 | BG13: 20830 | BH13: 21415 | BI13: 20946 | BJ13: 21042 | BK13: 21645 | BL13: 20831 | BM13: 19699 | BN13: 19131 | BO13: 18295 | BP13: 17695 | BQ13: 17261 | BR13: 17547 | BS13: 16675 | BT13: 15922 | BU13: 15505 | BV13: 14632 | BW13: 13659 | BX13: 13079 | BY13: 12193 | BZ13: 11349 | CA13: 10844 | CB13: 10412 | CC13: 9485 | CD13: 8816 | CE13: 8058 | CF13: 7987 | CG13: 7122 | CH13: 6664 | CI13: 5829 | CJ13: 5508 | CK13: 29909
A14: F | B14: 1982 | C14: Female 1982 | D14: 33865 | E14: 32921 | F14: 33575 | G14: 30831 | H14: 30354 | I14: 29525 | J14: 28665 | K14: 28123 | L14: 27300 | M14: 28504 | N14: 29620 | O14: 33769 | P14: 33394 | Q14: 32120 | R14: 30923 | S14: 31074 | T14: 31845 | U14: 34035 | V14: 35727 | W14: 36832 | X14: 36692 | Y14: 39299 | Z14: 38882 | AA14: 38984 | AB14: 39802 | AC14: 40047 | AD14: 40722 | AE14: 40790 | AF14: 40685 | AG14: 40563 | AH14: 38202 | AI14: 38574 | AJ14: 38195 | AK14: 37162 | AL14: 38434 | AM14: 37533 | AN14: 29013 | AO14: 29599 | AP14: 29623 | AQ14: 28702 | AR14: 24470 | AS14: 23708 | AT14: 22708 | AU14: 21707 | AV14: 21095 | AW14: 20386 | AX14: 19953 | AY14: 19637 | AZ14: 19216 | BA14: 19101 | BB14: 18935 | BC14: 19651 | BD14: 20310 | BE14: 19821 | BF14: 19901 | BG14: 20101 | BH14: 20739 | BI14: 21316 | BJ14: 20839 | BK14: 20918 | BL14: 21499 | BM14: 20669 | BN14: 19527 | BO14: 18948 | BP14: 18105 | BQ14: 17502 | BR14: 17059 | BS14: 17328 | BT14: 16444 | BU14: 15672 | BV14: 15225 | BW14: 14331 | BX14: 13343 | BY14: 12745 | BZ14: 11857 | CA14: 11012 | CB14: 10497 | CC14: 10050 | CD14: 9127 | CE14: 8447 | CF14: 7688 | CG14: 7582 | CH14: 6724 | CI14: 6252 | CJ14: 5427 | CK14: 30820
A15: F | B15: 1983 | C15: Female 1983 | D15: 33676 | E15: 33708 | F15: 32832 | G15: 33491 | H15: 30756 | I15: 30282 | J15: 29459 | K15: 28616 | L15: 28086 | M15: 27273 | N15: 28483 | O15: 29603 | P15: 33749 | Q15: 33372 | R15: 32098 | S15: 30899 | T15: 31047 | U15: 31804 | V15: 33971 | W15: 35619 | X15: 36649 | Y15: 36389 | Z15: 38945 | AA15: 38503 | AB15: 38572 | AC15: 39347 | AD15: 39550 | AE15: 40278 | AF15: 40423 | AG15: 40387 | AH15: 40347 | AI15: 38061 | AJ15: 38466 | AK15: 38106 | AL15: 37092 | AM15: 38371 | AN15: 37486 | AO15: 28988 | AP15: 29578 | AQ15: 29606 | AR15: 28689 | AS15: 24463 | AT15: 23701 | AU15: 22698 | AV15: 21697 | AW15: 21084 | AX15: 20374 | AY15: 19939 | AZ15: 19619 | BA15: 19194 | BB15: 19074 | BC15: 18902 | BD15: 19611 | BE15: 20264 | BF15: 19768 | BG15: 19842 | BH15: 20036 | BI15: 20673 | BJ15: 21247 | BK15: 20769 | BL15: 20847 | BM15: 21423 | BN15: 20579 | BO15: 19430 | BP15: 18840 | BQ15: 17991 | BR15: 17380 | BS15: 16923 | BT15: 17163 | BU15: 16257 | BV15: 15456 | BW15: 14978 | BX15: 14056 | BY15: 13049 | BZ15: 12431 | CA15: 11533 | CB15: 10682 | CC15: 10155 | CD15: 9688 | CE15: 8762 | CF15: 8075 | CG15: 7312 | CH15: 7172 | CI15: 6320 | CJ15: 5830 | CK15: 31651
A16: F | B16: 1984 | C16: Female 1984 | D16: 32988 | E16: 33735 | F16: 33830 | G16: 32952 | H16: 33611 | I16: 30857 | J16: 30374 | K16: 29544 | L16: 28700 | M16: 28167 | N16: 27351 | O16: 28560 | P16: 29680 | Q16: 33827 | R16: 33449 | S16: 32172 | T16: 30970 | U16: 31116 | V16: 31874 | W16: 34049 | X16: 35700 | Y16: 36735 | Z16: 36479 | AA16: 39053 | AB16: 38631 | AC16: 38722 | AD16: 39521 | AE16: 39735 | AF16: 40471 | AG16: 40614 | AH16: 40567 | AI16: 40515 | AJ16: 38209 | AK16: 38608 | AL16: 38233 | AM16: 37187 | AN16: 38439 | AO16: 37530 | AP16: 29014 | AQ16: 29596 | AR16: 29616 | AS16: 28690 | AT16: 24454 | AU16: 23686 | AV16: 22681 | AW16: 21685 | AX16: 21077 | AY16: 20365 | AZ16: 19924 | BA16: 19595 | BB16: 19158 | BC16: 19025 | BD16: 18845 | BE16: 19542 | BF16: 20188 | BG16: 19691 | BH16: 19763 | BI16: 19951 | BJ16: 20576 | BK16: 21130 | BL16: 20635 | BM16: 20691 | BN16: 21241 | BO16: 20387 | BP16: 19234 | BQ16: 18638 | BR16: 17785 | BS16: 17168 | BT16: 16692 | BU16: 16898 | BV16: 15968 | BW16: 15140 | BX16: 14634 | BY16: 13700 | BZ16: 12691 | CA16: 12064 | CB16: 11165 | CC16: 10312 | CD16: 9773 | CE16: 9284 | CF16: 8362 | CG16: 7668 | CH16: 6905 | CI16: 6728 | CJ16: 5884 | CK16: 32618
A17: F | B17: 1985 | C17: Female 1985 | D17: 33373 | E17: 33225 | F17: 34037 | G17: 34128 | H17: 33236 | I17: 33877 | J17: 31082 | K17: 30583 | L17: 29751 | M17: 28896 | N17: 28356 | O17: 27525 | P17: 28733 | Q17: 29845 | R17: 34016 | S17: 33640 | T17: 32359 | U17: 31146 | V17: 31292 | W17: 32062 | X17: 34251 | Y17: 35918 | Z17: 36970 | AA17: 36740 | AB17: 39381 | AC17: 39007 | AD17: 39145 | AE17: 39976 | AF17: 40204 | AG17: 40942 | AH17: 41065 | AI17: 40991 | AJ17: 40914 | AK17: 38571 | AL17: 38943 | AM17: 38503 | AN17: 37384 | AO17: 38594 | AP17: 37659 | AQ17: 29101 | AR17: 29670 | AS17: 29675 | AT17: 28726 | AU17: 24472 | AV17: 23702 | AW17: 22710 | AX17: 21727 | AY17: 21121 | AZ17: 20398 | BA17: 19941 | BB17: 19593 | BC17: 19138 | BD17: 18994 | BE17: 18804 | BF17: 19497 | BG17: 20145 | BH17: 19653 | BI17: 19723 | BJ17: 19902 | BK17: 20505 | BL17: 21032 | BM17: 20513 | BN17: 20546 | BO17: 21072 | BP17: 20207 | BQ17: 19055 | BR17: 18452 | BS17: 17596 | BT17: 16961 | BU17: 16458 | BV17: 16618 | BW17: 15657 | BX17: 14803 | BY17: 14274 | BZ17: 13333 | CA17: 12326 | CB17: 11689 | CC17: 10788 | CD17: 9933 | CE17: 9375 | CF17: 8868 | CG17: 7949 | CH17: 7249 | CI17: 6485 | CJ17: 6270 | CK17: 33520
A18: F | B18: 1986 | C18: Female 1986 | D18: 34105 | E18: 33416 | F18: 33327 | G18: 34143 | H18: 34233 | I18: 33331 | J18: 33967 | K18: 31159 | L18: 30661 | M18: 29825 | N18: 28968 | O18: 28422 | P18: 27587 | Q18: 28790 | R18: 29905 | S18: 34084 | T18: 33705 | U18: 32420 | V18: 31204 | W18: 31352 | X18: 32123 | Y18: 34318 | Z18: 35992 | AA18: 37057 | AB18: 36844 | AC18: 39513 | AD18: 39156 | AE18: 39303 | AF18: 40141 | AG18: 40367 | AH18: 41098 | AI18: 41212 | AJ18: 41127 | AK18: 41043 | AL18: 38679 | AM18: 39026 | AN18: 38559 | AO18: 37419 | AP18: 38618 | AQ18: 37674 | AR18: 29106 | AS18: 29666 | AT18: 29661 | AU18: 28703 | AV18: 24450 | AW18: 23685 | AX18: 22698 | AY18: 21713 | AZ18: 21102 | BA18: 20370 | BB18: 19901 | BC18: 19541 | BD18: 19078 | BE18: 18927 | BF18: 18732 | BG18: 19419 | BH18: 20063 | BI18: 19568 | BJ18: 19628 | BK18: 19792 | BL18: 20372 | BM18: 20874 | BN18: 20340 | BO18: 20355 | BP18: 20862 | BQ18: 19993 | BR18: 18839 | BS18: 18229 | BT18: 17360 | BU18: 16703 | BV18: 16170 | BW18: 16286 | BX18: 15304 | BY18: 14435 | BZ18: 13890 | CA18: 12947 | CB18: 11940 | CC18: 11293 | CD18: 10389 | CE18: 9527 | CF18: 8954 | CG18: 8429 | CH18: 7514 | CI18: 6811 | CJ18: 6048 | CK18: 34743
A19: F | B19: 1987 | C19: Female 1987 | D19: 33575 | E19: 34388 | F19: 33750 | G19: 33653 | H19: 34470 | I19: 34535 | J19: 33603 | K19: 34229 | L19: 31401 | M19: 30893 | N19: 30047 | O19: 29173 | P19: 28613 | Q19: 27757 | R19: 28971 | S19: 30096 | T19: 34305 | U19: 33917 | V19: 32625 | W19: 31411 | X19: 31560 | Y19: 32342 | Z19: 34563 | AA19: 36280 | AB19: 37405 | AC19: 37244 | AD19: 39994 | AE19: 39660 | AF19: 39820 | AG19: 40663 | AH19: 40867 | AI19: 41578 | AJ19: 41667 | AK19: 41564 | AL19: 41444 | AM19: 38985 | AN19: 39260 | AO19: 38735 | AP19: 37568 | AQ19: 38753 | AR19: 37787 | AS19: 29175 | AT19: 29715 | AU19: 29694 | AV19: 28732 | AW19: 24492 | AX19: 23743 | AY19: 22758 | AZ19: 21761 | BA19: 21131 | BB19: 20378 | BC19: 19889 | BD19: 19518 | BE19: 19045 | BF19: 18891 | BG19: 18702 | BH19: 19393 | BI19: 20035 | BJ19: 19532 | BK19: 19573 | BL19: 19713 | BM19: 20264 | BN19: 20740 | BO19: 20191 | BP19: 20190 | BQ19: 20683 | BR19: 19809 | BS19: 18652 | BT19: 18025 | BU19: 17133 | BV19: 16442 | BW19: 15871 | BX19: 15941 | BY19: 14943 | BZ19: 14066 | CA19: 13508 | CB19: 12563 | CC19: 11554 | CD19: 10895 | CE19: 9983 | CF19: 9118 | CG19: 8530 | CH19: 7987 | CI19: 7076 | CJ19: 6366 | CK19: 35699
A20: F | B20: 1988 | C20: Female 1988 | D20: 34219 | E20: 34143 | F20: 35024 | G20: 34359 | H20: 34246 | I20: 35028 | J20: 35050 | K20: 34076 | L20: 34715 | M20: 31837 | N20: 31313 | O20: 30436 | P20: 29531 | Q20: 28937 | R20: 28076 | S20: 29312 | T20: 30460 | U20: 34710 | V20: 34320 | W20: 33029 | X20: 31803 | Y20: 31965 | Z20: 32775 | AA20: 35079 | AB20: 36913 | AC20: 38159 | AD20: 38082 | AE20: 40943 | AF20: 40624 | AG20: 40778 | AH20: 41597 | AI20: 41753 | AJ20: 42432 | AK20: 42493 | AL20: 42325 | AM20: 42066 | AN20: 39438 | AO20: 39616 | AP20: 39049 | AQ20: 37843 | AR20: 39002 | AS20: 37993 | AT20: 29298 | AU20: 29814 | AV20: 29791 | AW20: 28866 | AX20: 24639 | AY20: 23899 | AZ20: 22893 | BA20: 21864 | BB20: 21199 | BC20: 20416 | BD20: 19909 | BE20: 19525 | BF20: 19052 | BG20: 18911 | BH20: 18735 | BI20: 19433 | BJ20: 20068 | BK20: 19538 | BL20: 19550 | BM20: 19655 | BN20: 20178 | BO20: 20629 | BP20: 20066 | BQ20: 20057 | BR20: 20536 | BS20: 19658 | BT20: 18484 | BU20: 17825 | BV20: 16892 | BW20: 16156 | BX20: 15546 | BY20: 15575 | BZ20: 14571 | CA20: 13689 | CB20: 13117 | CC20: 12166 | CD20: 11154 | CE20: 10478 | CF20: 9564 | CG20: 8693 | CH20: 8087 | CI20: 7523 | CJ20: 6615 | CK20: 36754
A21: F | B21: 1989 | C21: Female 1989 | D21: 35350 | E21: 35020 | F21: 34994 | G21: 35872 | H21: 35171 | I21: 34989 | J21: 35728 | K21: 35712 | L21: 34725 | M21: 35362 | N21: 32416 | O21: 31855 | P21: 30936 | Q21: 29980 | R21: 29383 | S21: 28521 | T21: 29789 | U21: 30944 | V21: 35266 | W21: 34894 | X21: 33586 | Y21: 32354 | Z21: 32543 | AA21: 33436 | AB21: 35904 | AC21: 37914 | AD21: 39313 | AE21: 39297 | AF21: 42281 | AG21: 41937 | AH21: 42038 | AI21: 42809 | AJ21: 42909 | AK21: 43567 | AL21: 43543 | AM21: 43187 | AN21: 42733 | AO21: 39931 | AP21: 40060 | AQ21: 39447 | AR21: 38187 | AS21: 39309 | AT21: 38230 | AU21: 29446 | AV21: 29965 | AW21: 29996 | AX21: 29118 | AY21: 24877 | AZ21: 24110 | BA21: 23060 | BB21: 21984 | BC21: 21280 | BD21: 20474 | BE21: 19951 | BF21: 19569 | BG21: 19113 | BH21: 18994 | BI21: 18826 | BJ21: 19519 | BK21: 20128 | BL21: 19562 | BM21: 19535 | BN21: 19611 | BO21: 20107 | BP21: 20540 | BQ21: 19974 | BR21: 19957 | BS21: 20425 | BT21: 19526 | BU21: 18320 | BV21: 17610 | BW21: 16628 | BX21: 15849 | BY21: 15212 | BZ21: 15211 | CA21: 14205 | CB21: 13319 | CC21: 12729 | CD21: 11771 | CE21: 10751 | CF21: 10063 | CG21: 9144 | CH21: 8265 | CI21: 7639 | CJ21: 7053 | CK21: 38070
A22: F | B22: 1990 | C22: Female 1990 | D22: 37854 | E22: 36354 | F22: 35810 | G22: 35718 | H22: 36760 | I22: 36580 | J22: 35808 | K22: 36452 | L22: 34926 | M22: 36721 | N22: 35503 | O22: 33220 | P22: 32532 | Q22: 31690 | R22: 30399 | S22: 30400 | T22: 29320 | U22: 30576 | V22: 31578 | W22: 36162 | X22: 35638 | Y22: 34010 | Z22: 32829 | AA22: 33299 | AB22: 35091 | AC22: 37679 | AD22: 39435 | AE22: 40968 | AF22: 40081 | AG22: 44705 | AH22: 43788 | AI22: 43322 | AJ22: 44370 | AK22: 44457 | AL22: 45121 | AM22: 44820 | AN22: 43673 | AO22: 43172 | AP22: 39531 | AQ22: 41253 | AR22: 40074 | AS22: 38809 | AT22: 39632 | AU22: 38832 | AV22: 30168 | AW22: 30426 | AX22: 29836 | AY22: 29624 | AZ22: 24507 | BA22: 24869 | BB22: 23272 | BC22: 22141 | BD22: 21374 | BE22: 20268 | BF22: 20212 | BG22: 20051 | BH22: 18835 | BI22: 19190 | BJ22: 18583 | BK22: 19853 | BL22: 19688 | BM22: 19524 | BN22: 19800 | BO22: 19830 | BP22: 20267 | BQ22: 20590 | BR22: 20063 | BS22: 19996 | BT22: 20137 | BU22: 19379 | BV22: 17950 | BW22: 17474 | BX22: 16416 | BY22: 15559 | BZ22: 14887 | CA22: 14525 | CB22: 13738 | CC22: 13040 | CD22: 12405 | CE22: 11538 | CF22: 10317 | CG22: 9724 | CH22: 9021 | CI22: 8099 | CJ22: 7281 | CK22: 39542
A23: F | B23: 1991 | C23: Female 1991 | D23: 38089 | E23: 36800 | F23: 36293 | G23: 36224 | H23: 37207 | I23: 37112 | J23: 36468 | K23: 37201 | L23: 35926 | M23: 37613 | N23: 36509 | O23: 34318 | P23: 33700 | Q23: 32898 | R23: 31821 | S23: 31755 | T23: 30725 | U23: 31894 | V23: 32730 | W23: 36899 | X23: 36331 | Y23: 34607 | Z23: 33511 | AA23: 33878 | AB23: 35467 | AC23: 37931 | AD23: 39389 | AE23: 40911 | AF23: 40389 | AG23: 44907 | AH23: 44236 | AI23: 43496 | AJ23: 44392 | AK23: 44443 | AL23: 45164 | AM23: 45271 | AN23: 44287 | AO23: 43935 | AP23: 40698 | AQ23: 42345 | AR23: 41344 | AS23: 40000 | AT23: 40886 | AU23: 40063 | AV23: 32162 | AW23: 32452 | AX23: 31729 | AY23: 31511 | AZ23: 26603 | BA23: 26835 | BB23: 25415 | BC23: 24113 | BD23: 23525 | BE23: 22449 | BF23: 21432 | BG23: 21330 | BH23: 20180 | BI23: 20399 | BJ23: 19460 | BK23: 20422 | BL23: 20193 | BM23: 19894 | BN23: 20095 | BO23: 20003 | BP23: 20341 | BQ23: 20600 | BR23: 19993 | BS23: 19928 | BT23: 20056 | BU23: 19383 | BV23: 18089 | BW23: 17597 | BX23: 16631 | BY23: 15858 | BZ23: 15229 | CA23: 14931 | CB23: 14144 | CC23: 13444 | CD23: 12874 | CE23: 12000 | CF23: 10773 | CG23: 10110 | CH23: 9362 | CI23: 8419 | CJ23: 7569 | CK23: 41632
A24: F | B24: 1992 | C24: Female 1992 | D24: 37990 | E24: 36928 | F24: 36464 | G24: 36418 | H24: 37333 | I24: 37325 | J24: 36813 | K24: 37629 | L24: 36618 | M24: 38181 | N24: 37203 | O24: 35122 | P24: 34581 | Q24: 33826 | R24: 32972 | S24: 32840 | T24: 31869 | U24: 32939 | V24: 33602 | W24: 37319 | X24: 36711 | Y24: 34906 | Z24: 33905 | AA24: 34165 | AB24: 35536 | AC24: 37856 | AD24: 39002 | AE24: 40498 | AF24: 40347 | AG24: 44719 | AH24: 44302 | AI24: 43293 | AJ24: 44028 | AK24: 44043 | AL24: 44815 | AM24: 45331 | AN24: 44518 | AO24: 44320 | AP24: 41515 | AQ24: 43073 | AR24: 42260 | AS24: 40848 | AT24: 41790 | AU24: 40951 | AV24: 33884 | AW24: 34205 | AX24: 33354 | AY24: 33131 | AZ24: 28477 | BA24: 28575 | BB24: 27345 | BC24: 25883 | BD24: 25479 | BE24: 24443 | BF24: 22471 | BG24: 22429 | BH24: 21355 | BI24: 21435 | BJ24: 20171 | BK24: 20815 | BL24: 20524 | BM24: 20093 | BN24: 20218 | BO24: 20004 | BP24: 20238 | BQ24: 20430 | BR24: 19748 | BS24: 19688 | BT24: 19801 | BU24: 19219 | BV24: 18072 | BW24: 17569 | BX24: 16703 | BY24: 16020 | BZ24: 15440 | CA24: 15209 | CB24: 14429 | CC24: 13734 | CD24: 13233 | CE24: 12360 | CF24: 11138 | CG24: 10410 | CH24: 9623 | CI24: 8667 | CJ24: 7792 | CK24: 43369
A25: F | B25: 1993 | C25: Female 1993 | D25: 37942 | E25: 37102 | F25: 36679 | G25: 36657 | H25: 37505 | I25: 37583 | J25: 37204 | K25: 38104 | L25: 37354 | M25: 38796 | N25: 37940 | O25: 35967 | P25: 35501 | Q25: 34793 | R25: 34160 | S25: 33962 | T25: 33048 | U25: 34023 | V25: 34514 | W25: 37784 | X25: 37135 | Y25: 35248 | Z25: 34341 | AA25: 34493 | AB25: 35649 | AC25: 37828 | AD25: 38664 | AE25: 40139 | AF25: 40356 | AG25: 44589 | AH25: 44424 | AI25: 43145 | AJ25: 43721 | AK25: 43700 | AL25: 44524 | AM25: 45448 | AN25: 44805 | AO25: 44759 | AP25: 42383 | AQ25: 43853 | AR25: 43226 | AS25: 41744 | AT25: 42743 | AU25: 41887 | AV25: 35642 | AW25: 35994 | AX25: 35015 | AY25: 34787 | AZ25: 30379 | BA25: 30345 | BB25: 29303 | BC25: 27679 | BD25: 27459 | BE25: 26460 | BF25: 23534 | BG25: 23553 | BH25: 22553 | BI25: 22494 | BJ25: 20905 | BK25: 21234 | BL25: 20880 | BM25: 20317 | BN25: 20365 | BO25: 20029 | BP25: 20161 | BQ25: 20288 | BR25: 19530 | BS25: 19472 | BT25: 19572 | BU25: 19080 | BV25: 18078 | BW25: 17562 | BX25: 16796 | BY25: 16202 | BZ25: 15669 | CA25: 15505 | CB25: 14731 | CC25: 14039 | CD25: 13607 | CE25: 12734 | CF25: 11515 | CG25: 10721 | CH25: 9896 | CI25: 8925 | CJ25: 8025 | CK25: 45154
A26: F | B26: 1994 | C26: Female 1994 | D26: 37945 | E26: 37325 | F26: 36942 | G26: 36943 | H26: 37727 | I26: 37891 | J26: 37644 | K26: 38627 | L26: 38137 | M26: 39461 | N26: 38727 | O26: 36858 | P26: 36467 | Q26: 35804 | R26: 35392 | S26: 35127 | T26: 34270 | U26: 35149 | V26: 35470 | W26: 38298 | X26: 37608 | Y26: 35635 | Z26: 34821 | AA26: 34867 | AB26: 35810 | AC26: 37849 | AD26: 38378 | AE26: 39832 | AF26: 40418 | AG26: 44517 | AH26: 44603 | AI26: 43055 | AJ26: 43472 | AK26: 43415 | AL26: 44292 | AM26: 45625 | AN26: 45150 | AO26: 45256 | AP26: 43304 | AQ26: 44689 | AR26: 44248 | AS26: 42694 | AT26: 43751 | AU26: 42877 | AV26: 37446 | AW26: 37828 | AX26: 36720 | AY26: 36487 | AZ26: 32319 | BA26: 32153 | BB26: 31297 | BC26: 29509 | BD26: 29472 | BE26: 28510 | BF26: 24627 | BG26: 24706 | BH26: 23779 | BI26: 23581 | BJ26: 21666 | BK26: 21680 | BL26: 21263 | BM26: 20567 | BN26: 20538 | BO26: 20081 | BP26: 20111 | BQ26: 20172 | BR26: 19337 | BS26: 19283 | BT26: 19369 | BU26: 18966 | BV26: 18107 | BW26: 17579 | BX26: 16910 | BY26: 16405 | BZ26: 15919 | CA26: 15821 | CB26: 15052 | CC26: 14362 | CD26: 13999 | CE26: 13125 | CF26: 11907 | CG26: 11047 | CH26: 10181 | CI26: 9195 | CJ26: 8267 | CK26: 46996
A27: F | B27: 1995 | C27: Female 1995 | D27: 37960 | E27: 37557 | F27: 37215 | G27: 37240 | H27: 37958 | I27: 38208 | J27: 38093 | K27: 39162 | L27: 38931 | M27: 40136 | N27: 39524 | O27: 37760 | P27: 37443 | Q27: 36825 | R27: 36633 | S27: 36302 | T27: 35501 | U27: 36286 | V27: 36435 | W27: 38822 | X27: 38091 | Y27: 36032 | Z27: 35310 | AA27: 35250 | AB27: 35979 | AC27: 37881 | AD27: 38102 | AE27: 39535 | AF27: 40491 | AG27: 44457 | AH27: 44795 | AI27: 42975 | AJ27: 43235 | AK27: 43141 | AL27: 44071 | AM27: 45813 | AN27: 45507 | AO27: 45765 | AP27: 44238 | AQ27: 45538 | AR27: 45281 | AS27: 43656 | AT27: 44771 | AU27: 43878 | AV27: 39259 | AW27: 39673 | AX27: 38435 | AY27: 38197 | AZ27: 34268 | BA27: 33970 | BB27: 33300 | BC27: 31348 | BD27: 31494 | BE27: 30569 | BF27: 25727 | BG27: 25866 | BH27: 25011 | BI27: 24676 | BJ27: 22433 | BK27: 22132 | BL27: 21651 | BM27: 20822 | BN27: 20718 | BO27: 20139 | BP27: 20066 | BQ27: 20061 | BR27: 19149 | BS27: 19098 | BT27: 19171 | BU27: 18857 | BV27: 18141 | BW27: 17600 | BX27: 17029 | BY27: 16612 | BZ27: 16173 | CA27: 16141 | CB27: 15377 | CC27: 14690 | CD27: 14394 | CE27: 13519 | CF27: 12302 | CG27: 11375 | CH27: 10468 | CI27: 9467 | CJ27: 8512 | CK27: 48851
A28: F | B28: 1996 | C28: Female 1996 | D28: 37847 | E28: 37663 | F28: 37362 | G28: 37410 | H28: 38061 | I28: 38396 | J28: 38412 | K28: 39562 | L28: 39592 | M28: 40675 | N28: 40186 | O28: 38532 | P28: 38290 | Q28: 37719 | R28: 37748 | S28: 37351 | T28: 36610 | U28: 37297 | V28: 37275 | W28: 39214 | X28: 38445 | Y28: 36307 | Z28: 35679 | AA28: 35513 | AB28: 36027 | AC28: 37785 | AD28: 37698 | AE28: 39106 | AF28: 40427 | AG28: 44247 | AH28: 44834 | AI28: 42751 | AJ28: 42852 | AK28: 42722 | AL28: 43702 | AM28: 45847 | AN28: 45710 | AO28: 46119 | AP28: 45020 | AQ28: 46230 | AR28: 46160 | AS28: 44468 | AT28: 45637 | AU28: 44729 | AV28: 40936 | AW28: 41379 | AX28: 40017 | AY28: 39773 | AZ28: 36097 | BA28: 35668 | BB28: 35185 | BC28: 33076 | BD28: 33405 | BE28: 32519 | BF28: 26737 | BG28: 26935 | BH28: 26156 | BI28: 25684 | BJ28: 23122 | BK28: 22507 | BL28: 21966 | BM28: 21007 | BN28: 20826 | BO28: 20128 | BP28: 19953 | BQ28: 19883 | BR28: 18898 | BS28: 18850 | BT28: 18908 | BU28: 18685 | BV28: 18114 | BW28: 17561 | BX28: 17091 | BY28: 16763 | BZ28: 16372 | CA28: 16406 | CB28: 15650 | CC28: 14967 | CD28: 14740 | CE28: 13866 | CF28: 12655 | CG28: 11664 | CH28: 10720 | CI28: 9706 | CJ28: 8728 | CK28: 50537
A29: F | B29: 1997 | C29: Female 1997 | D29: 37796 | E29: 37835 | F29: 37576 | G29: 37647 | H29: 38232 | I29: 38653 | J29: 38800 | K29: 40033 | L29: 40321 | M29: 41284 | N29: 40917 | O29: 39370 | P29: 39203 | Q29: 38677 | R29: 38926 | S29: 38464 | T29: 37779 | U29: 38371 | V29: 38179 | W29: 39675 | X29: 38866 | Y29: 36646 | Z29: 36111 | AA29: 35839 | AB29: 36140 | AC29: 37757 | AD29: 37364 | AE29: 38749 | AF29: 40436 | AG29: 44117 | AH29: 44955 | AI29: 42604 | AJ29: 42548 | AK29: 42382 | AL29: 43414 | AM29: 45962 | AN29: 45995 | AO29: 46554 | AP29: 45879 | AQ29: 47004 | AR29: 47117 | AS29: 45357 | AT29: 46582 | AU29: 45657 | AV29: 42680 | AW29: 43153 | AX29: 41664 | AY29: 41415 | AZ29: 37983 | BA29: 37423 | BB29: 37126 | BC29: 34857 | BD29: 35367 | BE29: 34519 | BF29: 27791 | BG29: 28049 | BH29: 27344 | BI29: 26734 | BJ29: 23850 | BK29: 22922 | BL29: 22319 | BM29: 21228 | BN29: 20972 | BO29: 20153 | BP29: 19877 | BQ29: 19741 | BR29: 18681 | BS29: 18637 | BT29: 18681 | BU29: 18547 | BV29: 18120 | BW29: 17555 | BX29: 17182 | BY29: 16944 | BZ29: 16600 | CA29: 16700 | CB29: 15949 | CC29: 15270 | CD29: 15111 | CE29: 14237 | CF29: 13028 | CG29: 11973 | CH29: 10990 | CI29: 9962 | CJ29: 8958 | CK29: 52306
A30: F | B30: 1998 | C30: Female 1998 | D30: 37821 | E30: 38078 | F30: 37859 | G30: 37953 | H30: 38473 | I30: 38980 | J30: 39259 | K30: 40577 | L30: 41125 | M30: 41970 | N30: 41724 | O30: 40280 | P30: 40188 | Q30: 39707 | R30: 40176 | S30: 39647 | T30: 39018 | U30: 39515 | V30: 39153 | W30: 40209 | X30: 39359 | Y30: 37052 | Z30: 36609 | AA30: 36232 | AB30: 36320 | AC30: 37800 | AD30: 37099 | AE30: 38464 | AF30: 40520 | AG30: 44070 | AH30: 45159 | AI30: 42537 | AJ30: 42322 | AK30: 42121 | AL30: 43206 | AM30: 46163 | AN30: 46364 | AO30: 47075 | AP30: 46823 | AQ30: 47863 | AR30: 48162 | AS30: 46329 | AT30: 47612 | AU30: 46669 | AV30: 44501 | AW30: 45005 | AX30: 43387 | AY30: 43133 | AZ30: 39938 | BA30: 39246 | BB30: 39135 | BC30: 36701 | BD30: 37394 | BE30: 36582 | BF30: 28896 | BG30: 29214 | BH30: 28581 | BI30: 27833 | BJ30: 24621 | BK30: 23379 | BL30: 22712 | BM30: 21489 | BN30: 21157 | BO30: 20216 | BP30: 19837 | BQ30: 19636 | BR30: 18499 | BS30: 18458 | BT30: 18489 | BU30: 18443 | BV30: 18159 | BW30: 17581 | BX30: 17306 | BY30: 17155 | BZ30: 16858 | CA30: 17024 | CB30: 16278 | CC30: 15601 | CD30: 15510 | CE30: 14634 | CF30: 13426 | CG30: 12304 | CH30: 11280 | CI30: 10236 | CJ30: 9205 | CK30: 54172
A31: F | B31: 1999 | C31: Female 1999 | D31: 37845 | E31: 38323 | F31: 38145 | G31: 38262 | H31: 38717 | I31: 39311 | J31: 39721 | K31: 41124 | L31: 41932 | M31: 42658 | N31: 42534 | O31: 41194 | P31: 41176 | Q31: 40740 | R31: 41429 | S31: 40833 | T31: 40261 | U31: 40664 | V31: 40130 | W31: 40746 | X31: 39854 | Y31: 37461 | Z31: 37110 | AA31: 36626 | AB31: 36501 | AC31: 37844 | AD31: 36835 | AE31: 38181 | AF31: 40606 | AG31: 44025 | AH31: 45365 | AI31: 42472 | AJ31: 42099 | AK31: 41861 | AL31: 43000 | AM31: 46367 | AN31: 46736 | AO31: 47600 | AP31: 47771 | AQ31: 48727 | AR31: 49210 | AS31: 47305 | AT31: 48647 | AU31: 47685 | AV31: 46327 | AW31: 46863 | AX31: 45114 | AY31: 44855 | AZ31: 41898 | BA31: 41074 | BB31: 41148 | BC31: 38549 | BD31: 39426 | BE31: 38650 | BF31: 30004 | BG31: 30382 | BH31: 29822 | BI31: 28935 | BJ31: 25395 | BK31: 23838 | BL31: 23108 | BM31: 21751 | BN31: 21343 | BO31: 20280 | BP31: 19799 | BQ31: 19532 | BR31: 18318 | BS31: 18280 | BT31: 18297 | BU31: 18341 | BV31: 18199 | BW31: 17608 | BX31: 17431 | BY31: 17368 | BZ31: 17117 | CA31: 17350 | CB31: 16608 | CC31: 15933 | CD31: 15910 | CE31: 15033 | CF31: 13825 | CG31: 12636 | CH31: 11572 | CI31: 10512 | CJ31: 9453 | CK31: 56042
A32: F | B32: 2000 | C32: Female 2000 | D32: 37837 | E32: 38536 | F32: 38398 | G32: 38539 | H32: 38929 | I32: 39608 | J32: 40149 | K32: 41637 | L32: 42704 | M32: 43311 | N32: 43308 | O32: 42073 | P32: 42130 | Q32: 41739 | R32: 42648 | S32: 41986 | T32: 41470 | U32: 41778 | V32: 41074 | W32: 41249 | X32: 40317 | Y32: 37839 | Z32: 37579 | AA32: 36990 | AB32: 36652 | AC32: 37856 | AD32: 36541 | AE32: 37865 | AF32: 40659 | AG32: 43942 | AH32: 45533 | AI32: 42370 | AJ32: 41840 | AK32: 41566 | AL32: 42757 | AM32: 46532 | AN32: 47069 | AO32: 48084 | AP32: 48679 | AQ32: 49549 | AR32: 50218 | AS32: 48242 | AT32: 49641 | AU32: 48661 | AV32: 48116 | AW32: 48682 | AX32: 46805 | AY32: 46540 | AZ32: 43824 | BA32: 42868 | BB32: 43128 | BC32: 40366 | BD32: 41426 | BE32: 40687 | BF32: 31088 | BG32: 31525 | BH32: 31038 | BI32: 30014 | BJ32: 26148 | BK32: 24277 | BL32: 23484 | BM32: 21995 | BN32: 21511 | BO32: 20326 | BP32: 19744 | BQ32: 19411 | BR32: 18121 | BS32: 18087 | BT32: 18090 | BU32: 18222 | BV32: 18224 | BW32: 17620 | BX32: 17541 | BY32: 17566 | BZ32: 17363 | CA32: 17661 | CB32: 16925 | CC32: 16252 | CD32: 16297 | CE32: 15419 | CF32: 14213 | CG32: 12958 | CH32: 11853 | CI32: 10778 | CJ32: 9693 | CK32: 57867
A33: F | B33: 2001 | C33: Female 2001 | D33: 38264 | E33: 38940 | F33: 38871 | G33: 38974 | H33: 39202 | I33: 39820 | J33: 40288 | K33: 41607 | L33: 42542 | M33: 43195 | N33: 43224 | O33: 42073 | P33: 42135 | Q33: 41786 | R33: 42605 | S33: 42081 | T33: 41707 | U33: 42070 | V33: 41495 | W33: 41668 | X33: 40762 | Y33: 38439 | Z33: 38182 | AA33: 37649 | AB33: 37527 | AC33: 38696 | AD33: 37449 | AE33: 38772 | AF33: 41313 | AG33: 44259 | AH33: 45702 | AI33: 42527 | AJ33: 42086 | AK33: 41729 | AL33: 42726 | AM33: 46211 | AN33: 46489 | AO33: 47516 | AP33: 48245 | AQ33: 49369 | AR33: 50017 | AS33: 47934 | AT33: 49073 | AU33: 48121 | AV33: 47682 | AW33: 48526 | AX33: 46937 | AY33: 46810 | AZ33: 44335 | BA33: 43620 | BB33: 43856 | BC33: 41229 | BD33: 42256 | BE33: 41517 | BF33: 32869 | BG33: 33283 | BH33: 32689 | BI33: 31676 | BJ33: 27940 | BK33: 26118 | BL33: 25343 | BM33: 23821 | BN33: 23509 | BO33: 22313 | BP33: 20810 | BQ33: 20561 | BR33: 19336 | BS33: 19196 | BT33: 18784 | BU33: 18693 | BV33: 18553 | BW33: 17893 | BX33: 17745 | BY33: 17633 | BZ33: 17356 | CA33: 17581 | CB33: 16767 | CC33: 16135 | CD33: 16151 | CE33: 15346 | CF33: 14210 | CG33: 13001 | CH33: 11950 | CI33: 10952 | CJ33: 9903 | CK33: 59732
A34: F | B34: 2002 | C34: Female 2002 | D34: 38776 | E34: 39430 | F34: 39428 | G34: 39493 | H34: 39561 | I34: 40119 | J34: 40514 | K34: 41667 | L34: 42473 | M34: 43171 | N34: 43233 | O34: 42163 | P34: 42232 | Q34: 41923 | R34: 42653 | S34: 42268 | T34: 42034 | U34: 42454 | V34: 42006 | W34: 42177 | X34: 41297 | Y34: 39123 | Z34: 38868 | AA34: 38390 | AB34: 38484 | AC34: 39619 | AD34: 38438 | AE34: 39762 | AF34: 42058 | AG34: 44672 | AH34: 45970 | AI34: 42777 | AJ34: 42422 | AK34: 41983 | AL34: 42786 | AM34: 45991 | AN34: 46010 | AO34: 47050 | AP34: 47915 | AQ34: 49295 | AR34: 49924 | AS34: 47731 | AT34: 48611 | AU34: 47685 | AV34: 47352 | AW34: 48475 | AX34: 47170 | AY34: 47181 | AZ34: 44942 | BA34: 44467 | BB34: 44679 | BC34: 42182 | BD34: 43179 | BE34: 42436 | BF34: 34721 | BG34: 35113 | BH34: 34411 | BI34: 33407 | BJ34: 29792 | BK34: 28016 | BL34: 27256 | BM34: 25698 | BN34: 25557 | BO34: 24348 | BP34: 21921 | BQ34: 21756 | BR34: 20592 | BS34: 20347 | BT34: 19518 | BU34: 19205 | BV34: 18923 | BW34: 18205 | BX34: 17987 | BY34: 17737 | BZ34: 17388 | CA34: 17539 | CB34: 16645 | CC34: 16053 | CD34: 16039 | CE34: 15307 | CF34: 14237 | CG34: 13072 | CH34: 12072 | CI34: 11151 | CJ34: 10134 | CK34: 61726
A35: F | B35: 2003 | C35: Female 2003 | D35: 39146 | E35: 39776 | F35: 39842 | G35: 39869 | H35: 39776 | I35: 40272 | J35: 40593 | K35: 41577 | L35: 42251 | M35: 42992 | N35: 43086 | O35: 42101 | P35: 42176 | Q35: 41908 | R35: 42548 | S35: 42302 | T35: 42209 | U35: 42683 | V35: 42364 | W35: 42532 | X35: 41681 | Y35: 39664 | Z35: 39412 | AA35: 38991 | AB35: 39300 | AC35: 40398 | AD35: 39287 | AE35: 40608 | AF35: 42649 | AG35: 44924 | AH35: 46072 | AI35: 42871 | AJ35: 42605 | AK35: 42084 | AL35: 42693 | AM35: 45605 | AN35: 45366 | AO35: 46415 | AP35: 47413 | AQ35: 49043 | AR35: 49652 | AS35: 47356 | AT35: 47974 | AU35: 47077 | AV35: 46852 | AW35: 48250 | AX35: 47233 | AY35: 47381 | AZ35: 45386 | BA35: 45152 | BB35: 45340 | BC35: 42980 | BD35: 43943 | BE35: 43201 | BF35: 36445 | BG35: 36813 | BH35: 36006 | BI35: 35014 | BJ35: 31534 | BK35: 29809 | BL35: 29067 | BM35: 27480 | BN35: 27511 | BO35: 26291 | BP35: 22951 | BQ35: 22869 | BR35: 21772 | BS35: 21423 | BT35: 20181 | BU35: 19647 | BV35: 19224 | BW35: 18450 | BX35: 18164 | BY35: 17778 | BZ35: 17357 | CA35: 17434 | CB35: 16464 | CC35: 15913 | CD35: 15870 | CE35: 15212 | CF35: 14213 | CG35: 13096 | CH35: 12151 | CI35: 11308 | CJ35: 10328 | CK35: 63494
A36: F | B36: 2004 | C36: Female 2004 | D36: 39610 | E36: 40215 | F36: 40350 | G36: 40338 | H36: 40085 | I36: 40521 | J36: 40768 | K36: 41586 | L36: 42130 | M36: 42916 | N36: 43042 | O36: 42140 | P36: 42220 | Q36: 41993 | R36: 42544 | S36: 42436 | T36: 42484 | U36: 43014 | V36: 42822 | W36: 42988 | X36: 42163 | Y36: 40299 | Z36: 40048 | AA36: 39683 | AB36: 40207 | AC36: 41271 | AD36: 40227 | AE36: 41547 | AF36: 43340 | AG36: 45281 | AH36: 46283 | AI36: 43067 | AJ36: 42889 | AK36: 42285 | AL36: 42701 | AM36: 45329 | AN36: 44831 | AO36: 45893 | AP36: 47025 | AQ36: 48909 | AR36: 49498 | AS36: 47094 | AT36: 47453 | AU36: 46583 | AV36: 46464 | AW36: 48139 | AX36: 47408 | AY36: 47693 | AZ36: 45937 | BA36: 45942 | BB36: 46107 | BC36: 43878 | BD36: 44811 | BE36: 44067 | BF36: 38251 | BG36: 38597 | BH36: 37683 | BI36: 36701 | BJ36: 33346 | BK36: 31668 | BL36: 30943 | BM36: 29321 | BN36: 29524 | BO36: 28292 | BP36: 24033 | BQ36: 24035 | BR36: 23001 | BS36: 22546 | BT36: 20891 | BU36: 20134 | BV36: 19570 | BW36: 18739 | BX36: 18383 | BY36: 17860 | BZ36: 17367 | CA36: 17371 | CB36: 16322 | CC36: 15812 | CD36: 15740 | CE36: 15154 | CF36: 14223 | CG36: 13150 | CH36: 12258 | CI36: 11492 | CJ36: 10547 | CK36: 65408
A37: F | B37: 2005 | C37: Female 2005 | D37: 40126 | E37: 40711 | F37: 40914 | G37: 40864 | H37: 40449 | I37: 40825 | J37: 41000 | K37: 41652 | L37: 42067 | M37: 42899 | N37: 43057 | O37: 42236 | P37: 42323 | Q37: 42136 | R37: 42599 | S37: 42629 | T37: 42817 | U37: 43404 | V37: 43339 | W37: 43504 | X37: 42704 | Y37: 40989 | Z37: 40740 | AA37: 40430 | AB37: 41170 | AC37: 42201 | AD37: 41223 | AE37: 42545 | AF37: 44092 | AG37: 45701 | AH37: 46559 | AI37: 43323 | AJ37: 43232 | AK37: 42545 | AL37: 42768 | AM37: 45115 | AN37: 44358 | AO37: 45433 | AP37: 46701 | AQ37: 48842 | AR37: 49412 | AS37: 46897 | AT37: 46998 | AU37: 46152 | AV37: 46140 | AW37: 48095 | AX37: 47649 | AY37: 48071 | AZ37: 46551 | BA37: 46797 | BB37: 46938 | BC37: 44838 | BD37: 45741 | BE37: 44995 | BF37: 40112 | BG37: 40435 | BH37: 39413 | BI37: 38440 | BJ37: 35206 | BK37: 33573 | BL37: 32863 | BM37: 31206 | BN37: 31580 | BO37: 30334 | BP37: 25149 | BQ37: 25234 | BR37: 24263 | BS37: 23702 | BT37: 21629 | BU37: 20649 | BV37: 19943 | BW37: 19054 | BX37: 18629 | BY37: 17968 | BZ37: 17401 | CA37: 17332 | CB37: 16203 | CC37: 15732 | CD37: 15631 | CE37: 15117 | CF37: 14253 | CG37: 13223 | CH37: 12383 | CI37: 11692 | CJ37: 10780 | CK37: 67415
A38: F | B38: 2006 | C38: Female 2006 | D38: 40841 | E38: 41407 | F38: 41680 | G38: 41592 | H38: 41013 | I38: 41330 | J38: 41432 | K38: 41920 | L38: 42207 | M38: 43089 | N38: 43281 | O38: 42538 | P38: 42632 | Q38: 42485 | R38: 42861 | S38: 43030 | T38: 43361 | U38: 44007 | V38: 44070 | W38: 44234 | X38: 43456 | Y38: 41883 | Z38: 41635 | AA38: 41379 | AB38: 42340 | AC38: 43343 | AD38: 42426 | AE38: 43756 | AF38: 45063 | AG38: 46346 | AH38: 47062 | AI38: 43791 | AJ38: 43788 | AK38: 43013 | AL38: 43043 | AM38: 45118 | AN38: 44096 | AO38: 45190 | AP38: 46602 | AQ38: 49011 | AR38: 49566 | AS38: 46926 | AT38: 46766 | AU38: 45943 | AV38: 46037 | AW38: 48284 | AX38: 48122 | AY38: 48685 | AZ38: 47396 | BA38: 47884 | BB38: 48003 | BC38: 46022 | BD38: 46899 | BE38: 46147 | BF38: 42180 | BG38: 42482 | BH38: 41346 | BI38: 40377 | BJ38: 37250 | BK38: 35654 | BL38: 34957 | BM38: 33255 | BN38: 33804 | BO38: 32538 | BP38: 26395 | BQ38: 26565 | BR38: 25651 | BS38: 24982 | BT38: 22478 | BU38: 21268 | BV38: 20415 | BW38: 19464 | BX38: 18966 | BY38: 18163 | BZ38: 17519 | CA38: 17377 | CB38: 16161 | CC38: 15728 | CD38: 15596 | CE38: 15152 | CF38: 14352 | CG38: 13361 | CH38: 12568 | CI38: 11950 | CJ38: 11067 | CK38: 69762
A39: F | B39: 2007 | C39: Female 2007 | D39: 41450 | E39: 41996 | F39: 42338 | G39: 42212 | H39: 41468 | I39: 41726 | J39: 41754 | K39: 42076 | L39: 42232 | M39: 43163 | N39: 43388 | O39: 42726 | P39: 42826 | Q39: 42719 | R39: 43007 | S39: 43316 | T39: 43790 | U39: 44495 | V39: 44687 | W39: 44849 | X39: 44095 | Y39: 42671 | Z39: 42423 | AA39: 42223 | AB39: 43404 | AC39: 44376 | AD39: 43524 | AE39: 44858 | AF39: 45918 | AG39: 46869 | AH39: 47440 | AI39: 44142 | AJ39: 44227 | AK39: 43367 | AL39: 43202 | AM39: 44997 | AN39: 43710 | AO39: 44821 | AP39: 46373 | AQ39: 49047 | AR39: 49584 | AS39: 46826 | AT39: 46404 | AU39: 45605 | AV39: 45807 | AW39: 48342 | AX39: 48467 | AY39: 49170 | AZ39: 48118 | BA39: 48850 | BB39: 48945 | BC39: 47091 | BD39: 47939 | BE39: 47183 | BF39: 44152 | BG39: 44432 | BH39: 43184 | BI39: 42222 | BJ39: 39211 | BK39: 37656 | BL39: 36973 | BM39: 35231 | BN39: 35955 | BO39: 34673 | BP39: 27580 | BQ39: 27834 | BR39: 26982 | BS39: 26204 | BT39: 23273 | BU39: 21834 | BV39: 20836 | BW39: 19824 | BX39: 19254 | BY39: 18310 | BZ39: 17591 | CA39: 17374 | CB39: 16075 | CC39: 15680 | CD39: 15519 | CE39: 15147 | CF39: 14412 | CG39: 13463 | CH39: 12720 | CI39: 12178 | CJ39: 11326 | CK39: 71940
A40: F | B40: 2008 | C40: Female 2008 | D40: 41923 | E40: 42445 | F40: 42856 | G40: 42691 | H40: 41785 | I40: 41981 | J40: 41936 | K40: 42089 | L40: 42115 | M40: 43091 | N40: 43348 | O40: 42769 | P40: 42876 | Q40: 42810 | R40: 43008 | S40: 43457 | T40: 44072 | U40: 44834 | V40: 45154 | W40: 45314 | X40: 44587 | Y40: 43316 | Z40: 43070 | AA40: 42926 | AB40: 44325 | AC40: 45262 | AD40: 44477 | AE40: 45812 | AF40: 46621 | AG40: 47235 | AH40: 47658 | AI40: 44345 | AJ40: 44519 | AK40: 43575 | AL40: 43215 | AM40: 44723 | AN40: 43175 | AO40: 44298 | AP40: 45986 | AQ40: 48917 | AR40: 49434 | AS40: 46566 | AT40: 45883 | AU40: 45111 | AV40: 45421 | AW40: 48236 | AX40: 48649 | AY40: 49491 | AZ40: 48679 | BA40: 49654 | BB40: 49724 | BC40: 48003 | BD40: 48820 | BE40: 48062 | BF40: 45981 | BG40: 46237 | BH40: 44882 | BI40: 43929 | BJ40: 41045 | BK40: 39537 | BL40: 38871 | BM40: 37095 | BN40: 37992 | BO40: 36697 | BP40: 28675 | BQ40: 29014 | BR40: 28225 | BS40: 27341 | BT40: 23992 | BU40: 22328 | BV40: 21187 | BW40: 20118 | BX40: 19478 | BY40: 18395 | BZ40: 17603 | CA40: 17312 | CB40: 15933 | CC40: 15579 | CD40: 15388 | CE40: 15089 | CF40: 14423 | CG40: 13520 | CH40: 12830 | CI40: 12365 | CJ40: 11548 | CK40: 73880
A41: F | B41: 2009 | C41: Female 2009 | D41: 42271 | E41: 42771 | F41: 43249 | G41: 43046 | H41: 41981 | I41: 42117 | J41: 41998 | K41: 41983 | L41: 41877 | M41: 42896 | N41: 43185 | O41: 42691 | P41: 42803 | Q41: 42778 | R41: 42886 | S41: 43473 | T41: 44228 | U41: 45043 | V41: 45491 | W41: 45648 | X41: 44950 | Y41: 43835 | Z41: 43593 | AA41: 43505 | AB41: 45117 | AC41: 46017 | AD41: 45302 | AE41: 46632 | AF41: 47189 | AG41: 47465 | AH41: 47740 | AI41: 44421 | AJ41: 44682 | AK41: 43658 | AL41: 43104 | AM41: 44322 | AN41: 42518 | AO41: 43651 | AP41: 45469 | AQ41: 48648 | AR41: 49144 | AS41: 46175 | AT41: 45233 | AU41: 44490 | AV41: 44906 | AW41: 47993 | AX41: 48692 | AY41: 49669 | AZ41: 49100 | BA41: 50313 | BB41: 50360 | BC41: 48776 | BD41: 49559 | BE41: 48801 | BF41: 47672 | BG41: 47905 | BH41: 46446 | BI41: 45506 | BJ41: 42756 | BK41: 41300 | BL41: 40653 | BM41: 38847 | BN41: 39914 | BO41: 38610 | BP41: 29686 | BQ41: 30107 | BR41: 29384 | BS41: 28398 | BT41: 24640 | BU41: 22757 | BV41: 21477 | BW41: 20353 | BX41: 19646 | BY41: 18428 | BZ41: 17564 | CA41: 17201 | CB41: 15747 | CC41: 15434 | CD41: 15215 | CE41: 14989 | CF41: 14394 | CG41: 13538 | CH41: 12903 | CI41: 12517 | CJ41: 11736 | CK41: 75604
A42: F | B42: 2010 | C42: Female2010 | D42: 42523 | E42: 43013 | F42: 43553 | G42: 43355 | H42: 42125 | I42: 42171 | J42: 41994 | K42: 41830 | L42: 41566 | M42: 42614 | N42: 42920 | O42: 42546 | P42: 42668 | Q42: 42678 | R42: 42704 | S42: 43399 | T42: 44297 | U42: 45196 | V42: 45741 | W42: 45918 | X42: 45177 | Y42: 44300 | Z42: 44046 | AA42: 44015 | AB42: 45843 | AC42: 46690 | AD42: 46066 | AE42: 47363 | AF42: 47657 | AG42: 47608 | AH42: 47699 | AI42: 44409 | AJ42: 44734 | AK42: 43711 | AL42: 42967 | AM42: 43878 | AN42: 41813 | AO42: 42934 | AP42: 44884 | AQ42: 48248 | AR42: 48772 | AS42: 45717 | AT42: 44490 | AU42: 43804 | AV42: 44328 | AW42: 47681 | AX42: 48679 | AY42: 49750 | AZ42: 49448 | BA42: 50844 | BB42: 50889 | BC42: 49465 | BD42: 50206 | BE42: 49475 | BF42: 49264 | BG42: 49476 | BH42: 47923 | BI42: 46990 | BJ42: 44382 | BK42: 42986 | BL42: 42337 | BM42: 40523 | BN42: 41763 | BO42: 40447 | BP42: 30639 | BQ42: 31132 | BR42: 30493 | BS42: 29394 | BT42: 25248 | BU42: 23143 | BV42: 21712 | BW42: 20556 | BX42: 19781 | BY42: 18432 | BZ42: 17505 | CA42: 17045 | CB42: 15536 | CC42: 15268 | CD42: 15022 | CE42: 14872 | CF42: 14331 | CG42: 13536 | CH42: 12961 | CI42: 12645 | CJ42: 11902 | CK42: 77188
A43: F | B43: 2011 | C43: Female2011 | D43: 41928 | E43: 42455 | F43: 43198 | G43: 43757 | H43: 43554 | I43: 42303 | J43: 42335 | K43: 42151 | L43: 41985 | M43: 41715 | N43: 42765 | O43: 43036 | P43: 42661 | Q43: 42780 | R43: 42787 | S43: 42811 | T43: 43514 | U43: 44425 | V43: 45342 | W43: 45950 | X43: 46136 | Y43: 45442 | Z43: 44569 | AA43: 44313 | AB43: 44285 | AC43: 46118 | AD43: 46966 | AE43: 46329 | AF43: 47622 | AG43: 47880 | AH43: 47816 | AI43: 47894 | AJ43: 44569 | AK43: 44880 | AL43: 43839 | AM43: 43060 | AN43: 43961 | AO43: 41886 | AP43: 42994 | AQ43: 44933 | AR43: 48293 | AS43: 48805 | AT43: 45739 | AU43: 44502 | AV43: 43807 | AW43: 44320 | AX43: 47664 | AY43: 48650 | AZ43: 49710 | BA43: 49396 | BB43: 50777 | BC43: 50808 | BD43: 49372 | BE43: 50104 | BF43: 49354 | BG43: 49131 | BH43: 49331 | BI43: 47770 | BJ43: 46826 | BK43: 44210 | BL43: 42802 | BM43: 42137 | BN43: 40315 | BO43: 41528 | BP43: 40197 | BQ43: 30430 | BR43: 30890 | BS43: 30225 | BT43: 29100 | BU43: 24964 | BV43: 22853 | BW43: 21411 | BX43: 20241 | BY43: 19447 | BZ43: 18086 | CA43: 17141 | CB43: 16651 | CC43: 15138 | CD43: 14835 | CE43: 14546 | CF43: 14347 | CG43: 13770 | CH43: 12947 | CI43: 12333 | CJ43: 11960 | CK43: 78573
A44: F | B44: 2012 | C44: Female2012 | D44: 42296 | E44: 41840 | F44: 42597 | G44: 43361 | H44: 43919 | I44: 43704 | J44: 42436 | K44: 42463 | L44: 42278 | M44: 42107 | N44: 41835 | O44: 42859 | P44: 43130 | Q44: 42751 | R44: 42869 | S44: 42874 | T44: 42902 | U44: 43615 | V44: 44541 | W44: 45509 | X44: 46125 | Y44: 46354 | Z44: 45664 | AA44: 44786 | AB44: 44531 | AC44: 44498 | AD44: 46337 | AE44: 47180 | AF44: 46531 | AG44: 47799 | AH44: 48045 | AI44: 47971 | AJ44: 48028 | AK44: 44682 | AL44: 44982 | AM44: 43910 | AN44: 43120 | AO44: 44016 | AP44: 41927 | AQ44: 43025 | AR44: 44959 | AS44: 48309 | AT44: 48814 | AU44: 45738 | AV44: 44493 | AW44: 43788 | AX44: 44292 | AY44: 47623 | AZ44: 48598 | BA44: 49646 | BB44: 49320 | BC44: 50684 | BD44: 50702 | BE44: 49259 | BF44: 49970 | BG44: 49211 | BH44: 48978 | BI44: 49164 | BJ44: 47594 | BK44: 46636 | BL44: 44012 | BM44: 42592 | BN44: 41911 | BO44: 40079 | BP44: 41262 | BQ44: 39915 | BR44: 30187 | BS44: 30614 | BT44: 29920 | BU44: 28771 | BV44: 24651 | BW44: 22536 | BX44: 21084 | BY44: 19899 | BZ44: 19085 | CA44: 17712 | CB44: 16748 | CC44: 16229 | CD44: 14713 | CE44: 14370 | CF44: 14039 | CG44: 13791 | CH44: 13177 | CI44: 12328 | CJ44: 11673 | CK44: 79982
A45: F | B45: 2013 | C45: Female2013 | D45: 42349 | E45: 42355 | F45: 42224 | G45: 42998 | H45: 43757 | I45: 44286 | J45: 44040 | K45: 42750 | L45: 42773 | M45: 42578 | N45: 42402 | O45: 42061 | P45: 43087 | Q45: 43353 | R45: 42969 | S45: 43084 | T45: 43103 | U45: 43153 | V45: 43901 | W45: 44949 | X45: 45944 | Y45: 46669 | Z45: 46918 | AA45: 46224 | AB45: 45340 | AC45: 45073 | AD45: 45031 | AE45: 46874 | AF45: 47706 | AG45: 46979 | AH45: 48231 | AI45: 48456 | AJ45: 48336 | AK45: 48364 | AL45: 44967 | AM45: 45207 | AN45: 44107 | AO45: 43302 | AP45: 44176 | AQ45: 42058 | AR45: 43149 | AS45: 45069 | AT45: 48415 | AU45: 48906 | AV45: 45812 | AW45: 44552 | AX45: 43836 | AY45: 44329 | AZ45: 47652 | BA45: 48614 | BB45: 49648 | BC45: 49308 | BD45: 50656 | BE45: 50672 | BF45: 49200 | BG45: 49899 | BH45: 49130 | BI45: 48886 | BJ45: 49056 | BK45: 47474 | BL45: 46501 | BM45: 43868 | BN45: 42437 | BO45: 41742 | BP45: 39897 | BQ45: 41049 | BR45: 39668 | BS45: 29966 | BT45: 30348 | BU45: 29620 | BV45: 28441 | BW45: 24332 | BX45: 22211 | BY45: 20746 | BZ45: 19543 | CA45: 18704 | CB45: 17316 | CC45: 16331 | CD45: 15781 | CE45: 14257 | CF45: 13872 | CG45: 13498 | CH45: 13200 | CI45: 12548 | CJ45: 11669 | CK45: 80823
A46: F | B46: 2014 | C46: Female2014 | D46: 42247 | E46: 42560 | F46: 42978 | G46: 42848 | H46: 43611 | I46: 44327 | J46: 44816 | K46: 44548 | L46: 43235 | M46: 43246 | N46: 43042 | O46: 42758 | P46: 42409 | Q46: 43434 | R46: 43698 | S46: 43305 | T46: 43446 | U46: 43499 | V46: 43597 | W46: 44531 | X46: 45623 | Y46: 46793 | Z46: 47557 | AA46: 47820 | AB46: 47121 | AC46: 46208 | AD46: 45921 | AE46: 45852 | AF46: 47697 | AG46: 48432 | AH46: 47652 | AI46: 48887 | AJ46: 49046 | AK46: 48878 | AL46: 48861 | AM46: 45335 | AN46: 45542 | AO46: 44417 | AP46: 43571 | AQ46: 44418 | AR46: 42274 | AS46: 43344 | AT46: 45255 | AU46: 48596 | AV46: 49073 | AW46: 45952 | AX46: 44678 | AY46: 43947 | AZ46: 44429 | BA46: 47746 | BB46: 48695 | BC46: 49716 | BD46: 49359 | BE46: 50713 | BF46: 50689 | BG46: 49207 | BH46: 49896 | BI46: 49117 | BJ46: 48859 | BK46: 49014 | BL46: 47418 | BM46: 46432 | BN46: 43792 | BO46: 42352 | BP46: 41640 | BQ46: 39777 | BR46: 40881 | BS46: 39457 | BT46: 29762 | BU46: 30097 | BV46: 29329 | BW46: 28118 | BX46: 24019 | BY46: 21890 | BZ46: 20408 | CA46: 19184 | CB46: 18316 | CC46: 16914 | CD46: 15909 | CE46: 15321 | CF46: 13793 | CG46: 13366 | CH46: 12947 | CI46: 12599 | CJ46: 11907 | CK46: 81923
A47: F | B47: 2015 | C47: Female2015 | D47: 42949 | E47: 42492 | F47: 43247 | G47: 43674 | H47: 43517 | I47: 44234 | J47: 44908 | K47: 45382 | L47: 45102 | M47: 43758 | N47: 43762 | O47: 43438 | P47: 43145 | Q47: 42783 | R47: 43812 | S47: 44072 | T47: 43704 | U47: 43882 | V47: 43989 | W47: 44282 | X47: 45263 | Y47: 46547 | Z47: 47769 | AA47: 48559 | AB47: 48837 | AC47: 48110 | AD47: 47161 | AE47: 46839 | AF47: 46736 | AG47: 48493 | AH47: 49193 | AI47: 48362 | AJ47: 49540 | AK47: 49650 | AL47: 49430 | AM47: 49301 | AN47: 45705 | AO47: 45895 | AP47: 44722 | AQ47: 43836 | AR47: 44670 | AS47: 42485 | AT47: 43544 | AU47: 45445 | AV47: 48783 | AW47: 49243 | AX47: 46100 | AY47: 44808 | AZ47: 44062 | BA47: 44533 | BB47: 47843 | BC47: 48779 | BD47: 49785 | BE47: 49433 | BF47: 50747 | BG47: 50713 | BH47: 49220 | BI47: 49900 | BJ47: 49105 | BK47: 48833 | BL47: 48972 | BM47: 47363 | BN47: 46368 | BO47: 43720 | BP47: 42265 | BQ47: 41530 | BR47: 39627 | BS47: 40676 | BT47: 39198 | BU47: 29521 | BV47: 29804 | BW47: 28998 | BX47: 27758 | BY47: 23673 | BZ47: 21533 | CA47: 20032 | CB47: 18785 | CC47: 17889 | CD47: 16473 | CE47: 15442 | CF47: 14817 | CG47: 13285 | CH47: 12815 | CI47: 12351 | CJ47: 11948 | CK47: 82960
A48: F | B48: 2016 | C48: Female2016 | D48: 43598 | E48: 43390 | F48: 43491 | G48: 44257 | H48: 44655 | I48: 44410 | J48: 45068 | K48: 45724 | L48: 46192 | M48: 45886 | N48: 44507 | O48: 44341 | P48: 44002 | Q48: 43692 | R48: 43318 | S48: 44352 | T48: 44658 | U48: 44337 | V48: 44594 | W48: 44986 | X48: 45331 | Y48: 46583 | Z48: 47945 | AA48: 49221 | AB48: 50048 | AC48: 50315 | AD48: 49543 | AE48: 48522 | AF48: 48143 | AG48: 47865 | AH48: 49597 | AI48: 50256 | AJ48: 49301 | AK48: 50429 | AL48: 50468 | AM48: 50082 | AN48: 49896 | AO48: 46230 | AP48: 46364 | AQ48: 45130 | AR48: 44214 | AS48: 45013 | AT48: 42789 | AU48: 43833 | AV48: 45726 | AW48: 49063 | AX48: 49510 | AY48: 46333 | AZ48: 45021 | BA48: 44256 | BB48: 44715 | BC48: 48021 | BD48: 48941 | BE48: 49965 | BF48: 49559 | BG48: 50866 | BH48: 50823 | BI48: 49316 | BJ48: 49986 | BK48: 49177 | BL48: 48890 | BM48: 49019 | BN48: 47404 | BO48: 46402 | BP48: 43737 | BQ48: 42259 | BR48: 41471 | BS48: 39512 | BT48: 40487 | BU48: 38949 | BV48: 29279 | BW48: 29507 | BX48: 28663 | BY48: 27392 | BZ48: 23315 | CA48: 21160 | CB48: 19634 | CC48: 18365 | CD48: 17438 | CE48: 16003 | CF48: 14945 | CG48: 14281 | CH48: 12747 | CI48: 12233 | CJ48: 11719 | CK48: 83864
A49: F | B49: 2017 | C49: Female2017 | D49: 43524 | E49: 43886 | F49: 44151 | G49: 44254 | H49: 45005 | I49: 45344 | J49: 45040 | K49: 45684 | L49: 46338 | M49: 46797 | N49: 46478 | O49: 44950 | P49: 44775 | Q49: 44422 | R49: 44103 | S49: 43720 | T49: 44794 | U49: 45144 | V49: 44877 | W49: 45353 | X49: 45786 | Y49: 46324 | Z49: 47634 | AA49: 49039 | AB49: 50355 | AC49: 51184 | AD49: 51439 | AE49: 50616 | AF49: 49535 | AG49: 49014 | AH49: 48681 | AI49: 50399 | AJ49: 50984 | AK49: 49960 | AL49: 51047 | AM49: 50961 | AN49: 50528 | AO49: 50317 | AP49: 46575 | AQ49: 46672 | AR49: 45412 | AS49: 44459 | AT49: 45242 | AU49: 42988 | AV49: 44021 | AW49: 45904 | AX49: 49241 | AY49: 49674 | AZ49: 46474 | BA49: 45144 | BB49: 44363 | BC49: 44808 | BD49: 48105 | BE49: 49033 | BF49: 50016 | BG49: 49599 | BH49: 50897 | BI49: 50841 | BJ49: 49323 | BK49: 49976 | BL49: 49151 | BM49: 48851 | BN49: 48971 | BO49: 47346 | BP49: 46326 | BQ49: 43641 | BR49: 42117 | BS49: 41276 | BT49: 39264 | BU49: 40171 | BV49: 38580 | BW49: 28954 | BX49: 29134 | BY49: 28254 | BZ49: 26948 | CA49: 22887 | CB49: 20721 | CC49: 19177 | CD49: 17887 | CE49: 16926 | CF49: 15475 | CG49: 14393 | CH49: 13692 | CI49: 12158 | CJ49: 11600 | CK49: 84427
A50: F | B50: 2018 | C50: Female2018 | D50: 42402 | E50: 43911 | F50: 44811 | G50: 45077 | H50: 45147 | I50: 45834 | J50: 46112 | K50: 45775 | L50: 46416 | M50: 47062 | N50: 47518 | O50: 47031 | P50: 45475 | Q50: 45285 | R50: 44921 | S50: 44591 | T50: 44241 | U50: 45376 | V50: 45802 | W50: 45790 | X50: 46317 | Y50: 46985 | Z50: 47573 | AA50: 48934 | AB50: 50389 | AC50: 51723 | AD50: 52552 | AE50: 52772 | AF50: 51880 | AG50: 50609 | AH50: 50016 | AI50: 49626 | AJ50: 51277 | AK50: 51805 | AL50: 50698 | AM50: 51650 | AN50: 51510 | AO50: 51045 | AP50: 50776 | AQ50: 46953 | AR50: 47030 | AS50: 45721 | AT50: 44740 | AU50: 45506 | AV50: 43221 | AW50: 44241 | AX50: 46121 | AY50: 49457 | AZ50: 49877 | BA50: 46648 | BB50: 45299 | BC50: 44500 | BD50: 44931 | BE50: 48249 | BF50: 49131 | BG50: 50106 | BH50: 49680 | BI50: 50970 | BJ50: 50900 | BK50: 49368 | BL50: 50006 | BM50: 49169 | BN50: 48863 | BO50: 48975 | BP50: 47334 | BQ50: 46289 | BR50: 43553 | BS50: 41975 | BT50: 41066 | BU50: 39002 | BV50: 39834 | BW50: 38189 | BX50: 28617 | BY50: 28748 | BZ50: 27826 | CA50: 26481 | CB50: 22436 | CC50: 20262 | CD50: 18699 | CE50: 17382 | CF50: 16390 | CG50: 14923 | CH50: 13818 | CI50: 13081 | CJ50: 11547 | CK50: 85058
A51: F | B51: 2019 | C51: Female2019 | D51: 41610 | E51: 42782 | F51: 44838 | G51: 45751 | H51: 45987 | I51: 45980 | J51: 46612 | K51: 46866 | L51: 46510 | M51: 47143 | N51: 47788 | O51: 48084 | P51: 47581 | Q51: 45994 | R51: 45795 | S51: 45419 | T51: 45124 | U51: 44817 | V51: 46038 | W51: 46736 | X51: 46765 | Y51: 47533 | Z51: 48256 | AA51: 48874 | AB51: 50285 | AC51: 51761 | AD51: 53109 | AE51: 53916 | AF51: 54093 | AG51: 53008 | AH51: 51645 | AI51: 50988 | AJ51: 50491 | AK51: 52103 | AL51: 52572 | AM51: 51297 | AN51: 52208 | AO51: 52038 | AP51: 51512 | AQ51: 51191 | AR51: 47315 | AS51: 47353 | AT51: 46012 | AU51: 45003 | AV51: 45754 | AW51: 43438 | AX51: 44451 | AY51: 46325 | AZ51: 49660 | BA51: 50067 | BB51: 46811 | BC51: 45443 | BD51: 44624 | BE51: 45068 | BF51: 48349 | BG51: 49222 | BH51: 50191 | BI51: 49754 | BJ51: 51034 | BK51: 50950 | BL51: 49402 | BM51: 50029 | BN51: 49186 | BO51: 48872 | BP51: 48968 | BQ51: 47301 | BR51: 46202 | BS51: 43410 | BT51: 41769 | BU51: 40799 | BV51: 38680 | BW51: 39438 | BX51: 37753 | BY51: 28245 | BZ51: 28319 | CA51: 27352 | CB51: 25967 | CC51: 21946 | CD51: 19765 | CE51: 18178 | CF51: 16839 | CG51: 15814 | CH51: 14336 | CI51: 13209 | CJ51: 12433 | CK51: 85705
A52: F | B52: 2020 | C52: Female2020 | D52: 42039 | E52: 42221 | F52: 42590 | G52: 43133 | H52: 43840 | I52: 44726 | J52: 45517 | K52: 46223 | L52: 46813 | M52: 47317 | N52: 47744 | O52: 47928 | P52: 47895 | Q52: 47614 | R52: 47103 | S52: 46413 | T52: 45734 | U52: 45078 | V52: 46319 | W52: 48489 | X52: 47943 | Y52: 47159 | Z52: 46804 | AA52: 46864 | AB52: 47763 | AC52: 50231 | AD52: 52326 | AE52: 54102 | AF52: 55469 | AG52: 56356 | AH52: 56700 | AI52: 56751 | AJ52: 56803 | AK52: 56839 | AL52: 56889 | AM52: 56899 | AN52: 56413 | AO52: 55650 | AP52: 54527 | AQ52: 53059 | AR52: 51326 | AS52: 49863 | AT52: 48809 | AU52: 48092 | AV52: 47734 | AW52: 47404 | AX52: 44233 | AY52: 44572 | AZ52: 46195 | BA52: 48514 | BB52: 50445 | BC52: 46621 | BD52: 44961 | BE52: 44650 | BF52: 45811 | BG52: 49244 | BH52: 49279 | BI52: 49352 | BJ52: 49457 | BK52: 49644 | BL52: 49901 | BM52: 49872 | BN52: 49578 | BO52: 49016 | BP52: 48200 | BQ52: 47144 | BR52: 45965 | BS52: 44698 | BT52: 43350 | BU52: 41936 | BV52: 40486 | BW52: 38583 | BX52: 36322 | BY52: 33797 | BZ52: 31087 | CA52: 28342 | CB52: 25844 | CC52: 23573 | CD52: 21504 | CE52: 19628 | CF52: 17930 | CG52: 16343 | CH52: 14872 | CI52: 13504 | CJ52: 12245 | CK52: 81815
A53: F | B53: 2021 | C53: Female2021 | D53: 39899 | E53: 42267 | F53: 42615 | G53: 42995 | H53: 43530 | I53: 44210 | J53: 45071 | K53: 45854 | L53: 46563 | M53: 47150 | N53: 47650 | O53: 48002 | P53: 48187 | Q53: 48147 | R53: 47857 | S53: 47340 | T53: 46662 | U53: 46005 | V53: 45378 | W53: 46748 | X53: 48954 | Y53: 48508 | Z53: 47732 | AA53: 47381 | AB53: 47443 | AC53: 48344 | AD53: 50825 | AE53: 52932 | AF53: 54713 | AG53: 56005 | AH53: 56866 | AI53: 57178 | AJ53: 57171 | AK53: 57196 | AL53: 57189 | AM53: 57160 | AN53: 57157 | AO53: 56650 | AP53: 55841 | AQ53: 54680 | AR53: 53205 | AS53: 51454 | AT53: 49974 | AU53: 48895 | AV53: 48157 | AW53: 47800 | AX53: 47470 | AY53: 44276 | AZ53: 44591 | BA53: 46205 | BB53: 48523 | BC53: 50436 | BD53: 46603 | BE53: 44947 | BF53: 44604 | BG53: 45737 | BH53: 49145 | BI53: 49157 | BJ53: 49194 | BK53: 49279 | BL53: 49455 | BM53: 49693 | BN53: 49661 | BO53: 49367 | BP53: 48794 | BQ53: 47936 | BR53: 46817 | BS53: 45602 | BT53: 44320 | BU53: 42949 | BV53: 41472 | BW53: 39978 | BX53: 38041 | BY53: 35701 | BZ53: 33171 | CA53: 30523 | CB53: 27780 | CC53: 25221 | CD53: 22889 | CE53: 20824 | CF53: 18925 | CG53: 17212 | CH53: 15632 | CI53: 14133 | CJ53: 12741 | CK53: 82083
A54: F | B54: 2022 | C54: Female2022 | D54: 41029 | E54: 40352 | F54: 43069 | G54: 43422 | H54: 43779 | I54: 44256 | J54: 44887 | K54: 45733 | L54: 46519 | M54: 47222 | N54: 47807 | O54: 48161 | P54: 48510 | Q54: 48684 | R54: 48636 | S54: 48334 | T54: 47849 | U54: 47210 | V54: 46614 | W54: 46212 | X54: 47643 | Y54: 50105 | Z54: 49685 | AA54: 48905 | AB54: 48553 | AC54: 48599 | AD54: 49498 | AE54: 52008 | AF54: 54127 | AG54: 55778 | AH54: 57032 | AI54: 57846 | AJ54: 58056 | AK54: 57988 | AL54: 57937 | AM54: 57775 | AN54: 57709 | AO54: 57673 | AP54: 57092 | AQ54: 56217 | AR54: 55038 | AS54: 53522 | AT54: 51736 | AU54: 50214 | AV54: 49104 | AW54: 48361 | AX54: 48000 | AY54: 47644 | AZ54: 44411 | BA54: 44712 | BB54: 46330 | BC54: 48634 | BD54: 50536 | BE54: 46708 | BF54: 45001 | BG54: 44631 | BH54: 45745 | BI54: 49131 | BJ54: 49105 | BK54: 49124 | BL54: 49200 | BM54: 49361 | BN54: 49604 | BO54: 49577 | BP54: 49276 | BQ54: 48655 | BR54: 47717 | BS54: 46545 | BT54: 45299 | BU54: 43976 | BV54: 42522 | BW54: 40984 | BX54: 39441 | BY54: 37405 | BZ54: 35045 | CA54: 32572 | CB54: 29914 | CC54: 27097 | CD54: 24465 | CE54: 22138 | CF54: 20048 | CG54: 18133 | CH54: 16425 | CI54: 14813 | CJ54: 13288 | CK54: 81891
A55: F | B55: 2023 | C55: Female2023 | D55: 40444 | E55: 41425 | F55: 41006 | G55: 43767 | H55: 44101 | I55: 44404 | J55: 44836 | K55: 45452 | L55: 46301 | M55: 47084 | N55: 47785 | O55: 48246 | P55: 48599 | Q55: 48938 | R55: 49107 | S55: 49051 | T55: 48778 | U55: 48330 | V55: 47744 | W55: 47348 | X55: 46968 | Y55: 48602 | Z55: 51145 | AA55: 50729 | AB55: 49940 | AC55: 49566 | AD55: 49589 | AE55: 50484 | AF55: 53013 | AG55: 55027 | AH55: 56652 | AI55: 57871 | AJ55: 58601 | AK55: 58764 | AL55: 58626 | AM55: 58440 | AN55: 58246 | AO55: 58150 | AP55: 58052 | AQ55: 57414 | AR55: 56525 | AS55: 55312 | AT55: 53767 | AU55: 51942 | AV55: 50389 | AW55: 49272 | AX55: 48527 | AY55: 48141 | AZ55: 47756 | BA55: 44504 | BB55: 44803 | BC55: 46408 | BD55: 48703 | BE55: 50618 | BF55: 46738 | BG55: 45004 | BH55: 44616 | BI55: 45711 | BJ55: 49057 | BK55: 49013 | BL55: 49024 | BM55: 49084 | BN55: 49248 | BO55: 49495 | BP55: 49459 | BQ55: 49112 | BR55: 48414 | BS55: 47426 | BT55: 46226 | BU55: 44943 | BV55: 43542 | BW55: 42030 | BX55: 40445 | BY55: 38799 | BZ55: 36738 | CA55: 34433 | CB55: 31944 | CC55: 29206 | CD55: 26317 | CE55: 23694 | CF55: 21345 | CG55: 19244 | CH55: 17341 | CI55: 15602 | CJ55: 13966 | CK55: 82848
A56: F | B56: 2024 | C56: Female2024 | D56: 41320 | E56: 40766 | F56: 41981 | G56: 41557 | H56: 44336 | I56: 44625 | J56: 44887 | K56: 45304 | L56: 45922 | M56: 46769 | N56: 47551 | O56: 48150 | P56: 48611 | Q56: 48956 | R56: 49292 | S56: 49455 | T56: 49425 | U56: 49185 | V56: 48785 | W56: 48368 | X56: 47991 | Y56: 47752 | Z56: 49440 | AA56: 52038 | AB56: 51620 | AC56: 50803 | AD56: 50403 | AE56: 50408 | AF56: 51293 | AG56: 53744 | AH56: 55741 | AI56: 57342 | AJ56: 58495 | AK56: 59191 | AL56: 59298 | AM56: 59045 | AN56: 58833 | AO56: 58613 | AP56: 58462 | AQ56: 58317 | AR56: 57669 | AS56: 56754 | AT56: 55517 | AU56: 53938 | AV56: 52083 | AW56: 50526 | AX56: 49406 | AY56: 48637 | AZ56: 48225 | BA56: 47828 | BB56: 44570 | BC56: 44853 | BD56: 46450 | BE56: 48754 | BF56: 50628 | BG56: 46724 | BH56: 44973 | BI56: 44568 | BJ56: 45630 | BK56: 48954 | BL56: 48901 | BM56: 48897 | BN56: 48959 | BO56: 49125 | BP56: 49363 | BQ56: 49283 | BR56: 48866 | BS56: 48124 | BT56: 47109 | BU56: 45877 | BV56: 44522 | BW56: 43068 | BX56: 41512 | BY56: 39832 | BZ56: 38156 | CA56: 36141 | CB56: 33817 | CC56: 31244 | CD56: 28429 | CE56: 25553 | CF56: 22913 | CG56: 20556 | CH56: 18469 | CI56: 16541 | CJ56: 14782 | CK56: 85344
A57: F | B57: 2025 | C57: Female2025 | D57: 41555 | E57: 41578 | F57: 41200 | G57: 42432 | H57: 41989 | I57: 44758 | J57: 45014 | K57: 45262 | L57: 45680 | M57: 46294 | N57: 47141 | O57: 47842 | P57: 48442 | Q57: 48898 | R57: 49239 | S57: 49572 | T57: 49756 | U57: 49755 | V57: 49555 | W57: 49295 | X57: 48893 | Y57: 48631 | Z57: 48409 | AA57: 50130 | AB57: 52768 | AC57: 52332 | AD57: 51487 | AE57: 51067 | AF57: 51052 | AG57: 51856 | AH57: 54299 | AI57: 56279 | AJ57: 57830 | AK57: 58959 | AL57: 59613 | AM57: 59628 | AN57: 59355 | AO57: 59121 | AP57: 58854 | AQ57: 58663 | AR57: 58512 | AS57: 57845 | AT57: 56910 | AU57: 55643 | AV57: 54039 | AW57: 52181 | AX57: 50622 | AY57: 49479 | AZ57: 48684 | BA57: 48262 | BB57: 47863 | BC57: 44587 | BD57: 44862 | BE57: 46463 | BF57: 48731 | BG57: 50579 | BH57: 46660 | BI57: 44895 | BJ57: 44460 | BK57: 45503 | BL57: 48809 | BM57: 48740 | BN57: 48735 | BO57: 48797 | BP57: 48953 | BQ57: 49147 | BR57: 48998 | BS57: 48539 | BT57: 47773 | BU57: 46727 | BV57: 45428 | BW57: 44021 | BX57: 42523 | BY57: 40871 | BZ57: 39162 | CA57: 37527 | CB57: 35489 | CC57: 33072 | CD57: 30412 | CE57: 27603 | CF57: 24713 | CG57: 22069 | CH57: 19733 | CI57: 17623 | CJ57: 15679 | CK57: 88436
A58: F | B58: 2026 | C58: Female2026 | D58: 41759 | E58: 41835 | F58: 42054 | G58: 41674 | H58: 42905 | I58: 42417 | J58: 45175 | K58: 45417 | L58: 45664 | M58: 46076 | N58: 46688 | O58: 47450 | P58: 48153 | Q58: 48748 | R58: 49201 | S58: 49539 | T58: 49896 | U58: 50112 | V58: 50157 | W58: 50110 | X58: 49869 | Y58: 49592 | Z58: 49348 | AA58: 49132 | AB58: 50884 | AC58: 53549 | AD58: 53087 | AE58: 52214 | AF58: 51767 | AG58: 51654 | AH58: 52431 | AI58: 54863 | AJ58: 56795 | AK58: 58325 | AL58: 59413 | AM58: 59972 | AN58: 59967 | AO58: 59670 | AP58: 59387 | AQ58: 59076 | AR58: 58879 | AS58: 58709 | AT58: 58021 | AU58: 57055 | AV58: 55763 | AW58: 54155 | AX58: 52293 | AY58: 50710 | AZ58: 49540 | BA58: 48733 | BB58: 48310 | BC58: 47894 | BD58: 44607 | BE58: 44887 | BF58: 46453 | BG58: 48696 | BH58: 50524 | BI58: 46592 | BJ58: 44799 | BK58: 44350 | BL58: 45382 | BM58: 48664 | BN58: 48596 | BO58: 48591 | BP58: 48644 | BQ58: 48757 | BR58: 48882 | BS58: 48689 | BT58: 48203 | BU58: 47403 | BV58: 46285 | BW58: 44933 | BX58: 43480 | BY58: 41883 | BZ58: 40200 | CA58: 38532 | CB58: 36864 | CC58: 34724 | CD58: 32208 | CE58: 29545 | CF58: 26712 | CG58: 23819 | CH58: 21201 | CI58: 18844 | CJ58: 16720 | CK58: 92154
A59: F | B59: 2027 | C59: Female2027 | D59: 41995 | E59: 42076 | F59: 42371 | G59: 42593 | H59: 42190 | I59: 43391 | J59: 42857 | K59: 45626 | L59: 45865 | M59: 46104 | N59: 46511 | O59: 47028 | P59: 47792 | Q59: 48491 | R59: 49084 | S59: 49534 | T59: 49899 | U59: 50294 | V59: 50562 | W59: 50783 | X59: 50760 | Y59: 50663 | Z59: 50407 | AA59: 50170 | AB59: 49956 | AC59: 51724 | AD59: 54412 | AE59: 53923 | AF59: 53012 | AG59: 52448 | AH59: 52294 | AI59: 53040 | AJ59: 55427 | AK59: 57340 | AL59: 58830 | AM59: 59818 | AN59: 60356 | AO59: 60327 | AP59: 59976 | AQ59: 59646 | AR59: 59326 | AS59: 59106 | AT59: 58916 | AU59: 58196 | AV59: 57203 | AW59: 55907 | AX59: 54294 | AY59: 52406 | AZ59: 50794 | BA59: 49611 | BB59: 48801 | BC59: 48361 | BD59: 47935 | BE59: 44652 | BF59: 44896 | BG59: 46438 | BH59: 48663 | BI59: 50471 | BJ59: 46513 | BK59: 44708 | BL59: 44253 | BM59: 45268 | BN59: 48545 | BO59: 48479 | BP59: 48466 | BQ59: 48478 | BR59: 48522 | BS59: 48600 | BT59: 48376 | BU59: 47853 | BV59: 46977 | BW59: 45802 | BX59: 44402 | BY59: 42847 | BZ59: 41217 | CA59: 39573 | CB59: 37871 | CC59: 36088 | CD59: 33837 | CE59: 31310 | CF59: 28610 | CG59: 25765 | CH59: 22899 | CI59: 20263 | CJ59: 17895 | CK59: 96570
A60: F | B60: 2028 | C60: Female2028 | D60: 42246 | E60: 42320 | F60: 42625 | G60: 42924 | H60: 43130 | I60: 42676 | J60: 43849 | K60: 43292 | L60: 46084 | M60: 46314 | N60: 46547 | O60: 46856 | P60: 47373 | Q60: 48133 | R60: 48831 | S60: 49422 | T60: 49900 | U60: 50303 | V60: 50753 | W60: 51204 | X60: 51453 | Y60: 51583 | Z60: 51510 | AA60: 51261 | AB60: 51026 | AC60: 50795 | AD60: 52573 | AE60: 55285 | AF60: 54762 | AG60: 53721 | AH60: 53109 | AI60: 52913 | AJ60: 53596 | AK60: 55969 | AL60: 57847 | AM60: 59238 | AN60: 60209 | AO60: 60726 | AP60: 60643 | AQ60: 60244 | AR60: 59906 | AS60: 59561 | AT60: 59320 | AU60: 59099 | AV60: 58353 | AW60: 57356 | AX60: 56056 | AY60: 54416 | AZ60: 52497 | BA60: 50872 | BB60: 49685 | BC60: 48857 | BD60: 48407 | BE60: 47988 | BF60: 44665 | BG60: 44888 | BH60: 46412 | BI60: 48617 | BJ60: 50392 | BK60: 46425 | BL60: 44616 | BM60: 44149 | BN60: 45165 | BO60: 48437 | BP60: 48363 | BQ60: 48310 | BR60: 48255 | BS60: 48252 | BT60: 48298 | BU60: 48035 | BV60: 47433 | BW60: 46497 | BX60: 45272 | BY60: 43767 | BZ60: 42178 | CA60: 40585 | CB60: 38905 | CC60: 37088 | CD60: 35182 | CE60: 32908 | CF60: 30335 | CG60: 27611 | CH60: 24785 | CI60: 21901 | CJ60: 19257 | CK60: 101729
A61: F | B61: 2029 | C61: Female2029 | D61: 42514 | E61: 42572 | F61: 42870 | G61: 43179 | H61: 43463 | I61: 43625 | J61: 43124 | K61: 44292 | L61: 43725 | M61: 46534 | N61: 46758 | O61: 46891 | P61: 47199 | Q61: 47710 | R61: 48469 | S61: 49166 | T61: 49786 | U61: 50304 | V61: 50761 | W61: 51395 | X61: 51877 | Y61: 52284 | Z61: 52443 | AA61: 52380 | AB61: 52133 | AC61: 51881 | AD61: 51626 | AE61: 53413 | AF61: 56142 | AG61: 55493 | AH61: 54396 | AI61: 53735 | AJ61: 53466 | AK61: 54119 | AL61: 56462 | AM61: 58248 | AN61: 59624 | AO61: 60578 | AP61: 61043 | AQ61: 60913 | AR61: 60506 | AS61: 60143 | AT61: 59777 | AU61: 59504 | AV61: 59259 | AW61: 58509 | AX61: 57509 | AY61: 56183 | AZ61: 54513 | BA61: 52578 | BB61: 50948 | BC61: 49744 | BD61: 48905 | BE61: 48462 | BF61: 48004 | BG61: 44658 | BH61: 44865 | BI61: 46372 | BJ61: 48543 | BK61: 50300 | BL61: 46333 | BM61: 44515 | BN61: 44052 | BO61: 45068 | BP61: 48325 | BQ61: 48211 | BR61: 48092 | BS61: 47992 | BT61: 47958 | BU61: 47964 | BV61: 47621 | BW61: 46957 | BX61: 45967 | BY61: 44635 | BZ61: 43095 | CA61: 41542 | CB61: 39911 | CC61: 38112 | CD61: 36170 | CE61: 34231 | CF61: 31898 | CG61: 29291 | CH61: 26576 | CI61: 23720 | CJ61: 20830 | CK61: 107731
A62: F | B62: 2030 | C62: Female2030 | D62: 42813 | E62: 42841 | F62: 43123 | G62: 43426 | H62: 43719 | I62: 43960 | J62: 44082 | K62: 43558 | L62: 44733 | M62: 44151 | N62: 46978 | O62: 47102 | P62: 47233 | Q62: 47533 | R62: 48042 | S62: 48801 | T62: 49527 | U62: 50188 | V62: 50760 | W62: 51402 | X62: 52068 | Y62: 52712 | Z62: 53153 | AA62: 53326 | AB62: 53267 | AC62: 53003 | AD62: 52727 | AE62: 52449 | AF62: 54238 | AG62: 56889 | AH62: 56188 | AI62: 55036 | AJ62: 54295 | AK62: 53986 | AL62: 54595 | AM62: 56852 | AN62: 58626 | AO62: 59988 | AP62: 60895 | AQ62: 61316 | AR62: 61177 | AS62: 60745 | AT62: 60361 | AU62: 59963 | AV62: 59665 | AW62: 59418 | AX62: 58666 | AY62: 57640 | AZ62: 56283 | BA62: 54598 | BB62: 52658 | BC62: 51009 | BD62: 49793 | BE62: 48962 | BF62: 48479 | BG62: 47999 | BH62: 44637 | BI62: 44827 | BJ62: 46305 | BK62: 48457 | BL62: 50203 | BM62: 46231 | BN62: 44419 | BO62: 43960 | BP62: 44967 | BQ62: 48177 | BR62: 47999 | BS62: 47836 | BT62: 47706 | BU62: 47632 | BV62: 47557 | BW62: 47150 | BX62: 46430 | BY62: 45331 | BZ62: 43959 | CA62: 42455 | CB62: 40862 | CC62: 39110 | CD62: 37182 | CE62: 35206 | CF62: 33195 | CG62: 30816 | CH62: 28209 | CI62: 25450 | CJ62: 22576 | CK62: 114692
A63: F | B63: 2031 | C63: Female2031 | D63: 43153 | E63: 43142 | F63: 43395 | G63: 43681 | H63: 43968 | I63: 44217 | J63: 44419 | K63: 44524 | L63: 43990 | M63: 45167 | N63: 44572 | O63: 47322 | P63: 47444 | Q63: 47566 | R63: 47863 | S63: 48369 | T63: 49158 | U63: 49925 | V63: 50641 | W63: 51398 | X63: 52074 | Y63: 52904 | Z63: 53585 | AA63: 54045 | AB63: 54226 | AC63: 54153 | AD63: 53864 | AE63: 53565 | AF63: 53257 | AG63: 54958 | AH63: 57600 | AI63: 56847 | AJ63: 55609 | AK63: 54822 | AL63: 54460 | AM63: 54971 | AN63: 57221 | AO63: 58983 | AP63: 60301 | AQ63: 61166 | AR63: 61581 | AS63: 61418 | AT63: 60964 | AU63: 60549 | AV63: 60126 | AW63: 59826 | AX63: 59577 | AY63: 58800 | AZ63: 57744 | BA63: 56372 | BB63: 54682 | BC63: 52723 | BD63: 51060 | BE63: 49852 | BF63: 48981 | BG63: 48475 | BH63: 47978 | BI63: 44602 | BJ63: 44764 | BK63: 46226 | BL63: 48367 | BM63: 50097 | BN63: 46135 | BO63: 44330 | BP63: 43865 | BQ63: 44834 | BR63: 47970 | BS63: 47749 | BT63: 47555 | BU63: 47388 | BV63: 47234 | BW63: 47094 | BX63: 46629 | BY63: 45796 | BZ63: 44655 | CA63: 43315 | CB63: 41771 | CC63: 40053 | CD63: 38170 | CE63: 36206 | CF63: 34156 | CG63: 32085 | CH63: 29693 | CI63: 27030 | CJ63: 24239 | CK63: 122679
A64: F | B64: 2032 | C64: Female2032 | D64: 43523 | E64: 43484 | F64: 43698 | G64: 43954 | H64: 44224 | I64: 44467 | J64: 44678 | K64: 44863 | L64: 44964 | M64: 44416 | N64: 45596 | O64: 44898 | P64: 47665 | Q64: 47779 | R64: 47895 | S64: 48188 | T64: 48722 | U64: 49551 | V64: 50374 | W64: 51275 | X64: 52067 | Y64: 52907 | Z64: 53777 | AA64: 54481 | AB64: 54954 | AC64: 55125 | AD64: 55030 | AE64: 54716 | AF64: 54387 | AG64: 53961 | AH64: 55642 | AI64: 58274 | AJ64: 57436 | AK64: 56146 | AL64: 55301 | AM64: 54835 | AN64: 55327 | AO64: 57568 | AP64: 59290 | AQ64: 60570 | AR64: 61430 | AS64: 61824 | AT64: 61640 | AU64: 61154 | AV64: 60713 | AW64: 60288 | AX64: 59987 | AY64: 59713 | AZ64: 58906 | BA64: 57836 | BB64: 56460 | BC64: 54749 | BD64: 52778 | BE64: 51122 | BF64: 49873 | BG64: 48979 | BH64: 48456 | BI64: 47942 | BJ64: 44542 | BK64: 44690 | BL64: 46143 | BM64: 48268 | BN64: 49996 | BO64: 46046 | BP64: 44237 | BQ64: 43739 | BR64: 44646 | BS64: 47724 | BT64: 47474 | BU64: 47244 | BV64: 46999 | BW64: 46782 | BX64: 46583 | BY64: 46002 | BZ64: 45124 | CA64: 44012 | CB64: 42627 | CC64: 40956 | CD64: 39104 | CE64: 37181 | CF64: 35142 | CG64: 33030 | CH64: 30933 | CI64: 28470 | CJ64: 25762 | CK64: 131519
A65: F | B65: 2033 | C65: Female2033 | D65: 43904 | E65: 43856 | F65: 44042 | G65: 44259 | H65: 44498 | I65: 44724 | J65: 44929 | K65: 45123 | L65: 45305 | M65: 45397 | N65: 44836 | O65: 45929 | P65: 45222 | Q65: 48000 | R65: 48109 | S65: 48219 | T65: 48539 | U65: 49110 | V65: 49995 | W65: 51003 | X65: 51940 | Y65: 52897 | Z65: 53778 | AA65: 54673 | AB65: 55395 | AC65: 55862 | AD65: 56015 | AE65: 55898 | AF65: 55553 | AG65: 55103 | AH65: 54631 | AI65: 56290 | AJ65: 58876 | AK65: 57989 | AL65: 56635 | AM65: 55681 | AN65: 55189 | AO65: 55662 | AP65: 57867 | AQ65: 59554 | AR65: 60832 | AS65: 61671 | AT65: 62047 | AU65: 61832 | AV65: 61321 | AW65: 60877 | AX65: 60450 | AY65: 60125 | AZ65: 59822 | BA65: 59000 | BB65: 57927 | BC65: 56531 | BD65: 54807 | BE65: 52843 | BF65: 51144 | BG65: 49872 | BH65: 48962 | BI65: 48423 | BJ65: 47880 | BK65: 44472 | BL65: 44613 | BM65: 46051 | BN65: 48175 | BO65: 49902 | BP65: 45953 | BQ65: 44113 | BR65: 43560 | BS65: 44423 | BT65: 47456 | BU65: 47169 | BV65: 46863 | BW65: 46556 | BX65: 46281 | BY65: 45967 | BZ65: 45337 | CA65: 44483 | CB65: 43323 | CC65: 41807 | CD65: 39998 | CE65: 38105 | CF65: 36102 | CG65: 33999 | CH65: 31859 | CI65: 29676 | CJ65: 27152 | CK65: 141000
A66: F | B66: 2034 | C66: Female2034 | D66: 44286 | E66: 44239 | F66: 44417 | G66: 44606 | H66: 44805 | I66: 45000 | J66: 45187 | K66: 45375 | L66: 45566 | M66: 45740 | N66: 45825 | O66: 45162 | P66: 46260 | Q66: 45539 | R66: 48330 | S66: 48434 | T66: 48569 | U66: 48925 | V66: 49550 | W66: 50616 | X66: 51662 | Y66: 52765 | Z66: 53764 | AA66: 54671 | AB66: 55588 | AC66: 56307 | AD66: 56761 | AE66: 56895 | AF66: 56751 | AG66: 56282 | AH66: 55785 | AI66: 55266 | AJ66: 56870 | AK66: 59442 | AL66: 58493 | AM66: 57022 | AN66: 56039 | AO66: 55523 | AP66: 55951 | AQ66: 58124 | AR66: 59811 | AS66: 61071 | AT66: 61894 | AU66: 62241 | AV66: 62001 | AW66: 61487 | AX66: 61041 | AY66: 60590 | AZ66: 60236 | BA66: 59919 | BB66: 59093 | BC66: 58001 | BD66: 56592 | BE66: 54875 | BF66: 52868 | BG66: 51145 | BH66: 49857 | BI66: 48930 | BJ66: 48363 | BK66: 47806 | BL66: 44397 | BM66: 44527 | BN66: 45965 | BO66: 48088 | BP66: 49805 | BQ66: 45828 | BR66: 43936 | BS66: 43347 | BT66: 44178 | BU66: 47156 | BV66: 46796 | BW66: 46429 | BX66: 46065 | BY66: 45677 | BZ66: 45312 | CA66: 44702 | CB66: 43797 | CC66: 42502 | CD66: 40844 | CE66: 38990 | CF66: 37015 | CG66: 34944 | CH66: 32811 | CI66: 30581 | CJ66: 28321 | CK66: 150955
A67: F | B67: 2035 | C67: Female2035 | D67: 44661 | E67: 44622 | F67: 44803 | G67: 44984 | H67: 45154 | I67: 45310 | J67: 45464 | K67: 45634 | L67: 45819 | M67: 46002 | N67: 46170 | O67: 46157 | P67: 45486 | Q67: 46583 | R67: 45851 | S67: 48656 | T67: 48784 | U67: 48954 | V67: 49362 | W67: 50165 | X67: 51269 | Y67: 52480 | Z67: 53627 | AA67: 54655 | AB67: 55583 | AC67: 56500 | AD67: 57211 | AE67: 57651 | AF67: 57759 | AG67: 57494 | AH67: 56976 | AI67: 56431 | AJ67: 55834 | AK67: 57415 | AL67: 59958 | AM67: 58892 | AN67: 57388 | AO67: 56378 | AP67: 55810 | AQ67: 56199 | AR67: 58374 | AS67: 60046 | AT67: 61291 | AU67: 62087 | AV67: 62411 | AW67: 62169 | AX67: 61653 | AY67: 61183 | AZ67: 60702 | BA67: 60335 | BB67: 60015 | BC67: 59170 | BD67: 58065 | BE67: 56664 | BF67: 54902 | BG67: 52871 | BH67: 51131 | BI67: 49826 | BJ67: 48872 | BK67: 48292 | BL67: 47728 | BM67: 44314 | BN67: 44446 | BO67: 45885 | BP67: 47998 | BQ67: 49674 | BR67: 45649 | BS67: 43726 | BT67: 43112 | BU67: 43905 | BV67: 46788 | BW67: 46369 | BX67: 45948 | BY67: 45475 | BZ67: 45035 | CA67: 44687 | CB67: 44022 | CC67: 42978 | CD67: 41536 | CE67: 39830 | CF67: 37890 | CG67: 35844 | CH67: 33739 | CI67: 31514 | CJ67: 29203 | CK67: 161148
A68: F | B68: 2036 | C68: Female2036 | D68: 45025 | E68: 44999 | F68: 45190 | G68: 45373 | H68: 45536 | I68: 45661 | J68: 45776 | K68: 45913 | L68: 46079 | M68: 46256 | N68: 46433 | O68: 46504 | P68: 46487 | Q68: 45802 | R68: 46901 | S68: 46159 | T68: 49006 | U68: 49169 | V68: 49389 | W68: 49973 | X68: 50810 | Y68: 52078 | Z68: 53336 | AA68: 54512 | AB68: 55563 | AC68: 56493 | AD68: 57404 | AE68: 58105 | AF68: 58524 | AG68: 58513 | AH68: 58201 | AI68: 57634 | AJ68: 57009 | AK68: 56368 | AL68: 57912 | AM68: 60368 | AN68: 59269 | AO68: 57734 | AP68: 56669 | AQ68: 56057 | AR68: 56441 | AS68: 58603 | AT68: 60262 | AU68: 61483 | AV68: 62257 | AW68: 62581 | AX68: 62337 | AY68: 61796 | AZ68: 61297 | BA68: 60803 | BB68: 60433 | BC68: 60094 | BD68: 59237 | BE68: 58140 | BF68: 56694 | BG68: 54907 | BH68: 52859 | BI68: 51102 | BJ68: 49770 | BK68: 48803 | BL68: 48216 | BM68: 47642 | BN68: 44237 | BO68: 44372 | BP68: 45802 | BQ68: 47875 | BR68: 49485 | BS68: 45435 | BT68: 43494 | BU68: 42850 | BV68: 43569 | BW68: 46368 | BX68: 45896 | BY68: 45368 | BZ68: 44846 | CA68: 44423 | CB68: 44018 | CC68: 43212 | CD68: 42016 | CE68: 40519 | CF68: 38722 | CG68: 36708 | CH68: 34625 | CI68: 32423 | CJ68: 30114 | CK68: 171309
A69: F | B69: 2037 | C69: Female2037 | D69: 45406 | E69: 45365 | F69: 45570 | G69: 45763 | H69: 45929 | I69: 46046 | J69: 46129 | K69: 46226 | L69: 46360 | M69: 46518 | N69: 46688 | O69: 46767 | P69: 46836 | Q69: 46809 | R69: 46114 | S69: 47215 | T69: 46491 | U69: 49393 | V69: 49605 | W69: 49998 | X69: 50614 | Y69: 51611 | Z69: 52924 | AA69: 54214 | AB69: 55416 | AC69: 56470 | AD69: 57395 | AE69: 58299 | AF69: 58984 | AG69: 59286 | AH69: 59231 | AI69: 58872 | AJ69: 58224 | AK69: 57553 | AL69: 56855 | AM69: 58306 | AN69: 60754 | AO69: 59624 | AP69: 58033 | AQ69: 56920 | AR69: 56299 | AS69: 56662 | AT69: 58814 | AU69: 60450 | AV69: 61652 | AW69: 62427 | AX69: 62751 | AY69: 62483 | AZ69: 61912 | BA69: 61399 | BB69: 60902 | BC69: 60514 | BD69: 60163 | BE69: 59315 | BF69: 58173 | BG69: 56701 | BH69: 54896 | BI69: 52832 | BJ69: 51047 | BK69: 49703 | BL69: 48730 | BM69: 48132 | BN69: 47562 | BO69: 44166 | BP69: 44295 | BQ69: 45689 | BR69: 47698 | BS69: 49258 | BT69: 45199 | BU69: 43234 | BV69: 42528 | BW69: 43184 | BX69: 45902 | BY69: 45324 | BZ69: 44750 | CA69: 44245 | CB69: 43767 | CC69: 43219 | CD69: 42258 | CE69: 41002 | CF69: 39408 | CG69: 37531 | CH69: 35477 | CI69: 33293 | CJ69: 31001 | CK69: 181496
A70: F | B70: 2038 | C70: Female2038 | D70: 45818 | E70: 45749 | F70: 45940 | G70: 46146 | H70: 46322 | I70: 46442 | J70: 46517 | K70: 46581 | L70: 46674 | M70: 46800 | N70: 46951 | O70: 47023 | P70: 47100 | Q70: 47160 | R70: 47127 | S70: 46422 | T70: 47553 | U70: 46856 | V70: 49830 | W70: 50215 | X70: 50637 | Y70: 51409 | Z70: 52447 | AA70: 53793 | AB70: 55110 | AC70: 56319 | AD70: 57369 | AE70: 58287 | AF70: 59178 | AG70: 59750 | AH70: 60011 | AI70: 59913 | AJ70: 59473 | AK70: 58778 | AL70: 58049 | AM70: 57242 | AN70: 58678 | AO70: 61118 | AP70: 59932 | AQ70: 58290 | AR70: 57165 | AS70: 56520 | AT70: 56866 | AU70: 58998 | AV70: 60617 | AW70: 61820 | AX70: 62597 | AY70: 62898 | AZ70: 62601 | BA70: 62017 | BB70: 61501 | BC70: 60985 | BD70: 60584 | BE70: 60244 | BF70: 59350 | BG70: 58182 | BH70: 56692 | BI70: 54870 | BJ70: 52777 | BK70: 50981 | BL70: 49631 | BM70: 48649 | BN70: 48054 | BO70: 47488 | BP70: 44092 | BQ70: 44189 | BR70: 45524 | BS70: 47484 | BT70: 49008 | BU70: 44935 | BV70: 42914 | BW70: 42158 | BX70: 42756 | BY70: 45339 | BZ70: 44715 | CA70: 44160 | CB70: 43602 | CC70: 42984 | CD70: 42278 | CE70: 41252 | CF70: 39893 | CG70: 38212 | CH70: 36290 | CI70: 34130 | CJ70: 31853 | CK70: 191706
A71: F | B71: 2039 | C71: Female2039 | D71: 46214 | E71: 46164 | F71: 46328 | G71: 46519 | H71: 46708 | I71: 46838 | J71: 46915 | K71: 46972 | L71: 47032 | M71: 47116 | N71: 47235 | O71: 47287 | P71: 47357 | Q71: 47425 | R71: 47479 | S71: 47441 | T71: 46754 | U71: 47926 | V71: 47269 | W71: 50441 | X71: 50855 | Y71: 51430 | Z71: 52241 | AA71: 53306 | AB71: 54680 | AC71: 56005 | AD71: 57214 | AE71: 58259 | AF71: 59164 | AG71: 59945 | AH71: 60479 | AI71: 60700 | AJ71: 60523 | AK71: 60038 | AL71: 59283 | AM71: 58443 | AN71: 57607 | AO71: 59030 | AP71: 61433 | AQ71: 60197 | AR71: 58541 | AS71: 57389 | AT71: 56724 | AU71: 57044 | AV71: 59161 | AW71: 60782 | AX71: 61989 | AY71: 62745 | AZ71: 63018 | BA71: 62708 | BB71: 62120 | BC71: 61586 | BD71: 61057 | BE71: 60667 | BF71: 60281 | BG71: 59362 | BH71: 58176 | BI71: 56667 | BJ71: 54816 | BK71: 52711 | BL71: 50910 | BM71: 49551 | BN71: 48574 | BO71: 47983 | BP71: 47412 | BQ71: 43991 | BR71: 44033 | BS71: 45325 | BT71: 47247 | BU71: 48726 | BV71: 44608 | BW71: 42547 | BX71: 41747 | BY71: 42239 | BZ71: 44739 | CA71: 44134 | CB71: 43527 | CC71: 42833 | CD71: 42061 | CE71: 41286 | CF71: 40151 | CG71: 38699 | CH71: 36965 | CI71: 34932 | CJ71: 32673 | CK71: 201928
A72: F | B72: 2040 | C72: Female2040 | D72: 46566 | E72: 46562 | F72: 46747 | G72: 46911 | H72: 47084 | I72: 47227 | J72: 47314 | K72: 47373 | L72: 47425 | M72: 47476 | N72: 47553 | O72: 47573 | P72: 47622 | Q72: 47683 | R72: 47746 | S72: 47794 | T72: 47780 | U72: 47120 | V72: 48347 | W72: 47848 | X72: 51083 | Y72: 51650 | Z72: 52260 | AA72: 53094 | AB72: 54183 | AC72: 55567 | AD72: 56893 | AE72: 58100 | AF72: 59133 | AG72: 59930 | AH72: 60675 | AI72: 61172 | AJ72: 61317 | AK72: 61097 | AL72: 60554 | AM72: 59685 | AN72: 58815 | AO72: 57951 | AP72: 59335 | AQ72: 61705 | AR72: 60456 | AS72: 58770 | AT72: 57596 | AU72: 56902 | AV72: 57202 | AW72: 59323 | AX72: 60948 | AY72: 62136 | AZ72: 62866 | BA72: 63127 | BB72: 62814 | BC72: 62207 | BD72: 61661 | BE72: 61142 | BF72: 60706 | BG72: 60295 | BH72: 59357 | BI72: 58153 | BJ72: 56614 | BK72: 54751 | BL72: 52641 | BM72: 50831 | BN72: 49477 | BO72: 48506 | BP72: 47909 | BQ72: 47306 | BR72: 43839 | BS72: 43844 | BT72: 45104 | BU72: 46981 | BV72: 48378 | BW72: 44233 | BX72: 42139 | BY72: 41250 | BZ72: 41689 | CA72: 44166 | CB72: 43511 | CC72: 42770 | CD72: 41927 | CE72: 41087 | CF72: 40200 | CG72: 38965 | CH72: 37454 | CI72: 35600 | CJ72: 33461 | CK72: 212156
A73: F | B73: 2041 | C73: Female2041 | D73: 46834 | E73: 46916 | F73: 47148 | G73: 47334 | H73: 47480 | I73: 47606 | J73: 47706 | K73: 47775 | L73: 47829 | M73: 47872 | N73: 47915 | O73: 47892 | P73: 47909 | Q73: 47949 | R73: 48005 | S73: 48062 | T73: 48135 | U73: 48153 | V73: 47534 | W73: 48938 | X73: 48455 | Y73: 51880 | Z73: 52482 | AA73: 53113 | AB73: 53966 | AC73: 55060 | AD73: 56447 | AE73: 57772 | AF73: 58971 | AG73: 59896 | AH73: 60659 | AI73: 61369 | AJ73: 61794 | AK73: 61898 | AL73: 61621 | AM73: 60964 | AN73: 60064 | AO73: 59167 | AP73: 58249 | AQ73: 59599 | AR73: 61970 | AS73: 60693 | AT73: 58982 | AU73: 57777 | AV73: 57060 | AW73: 57360 | AX73: 59486 | AY73: 61093 | AZ73: 62257 | BA73: 62976 | BB73: 63234 | BC73: 62904 | BD73: 62284 | BE73: 61748 | BF73: 61183 | BG73: 60722 | BH73: 60293 | BI73: 59336 | BJ73: 58102 | BK73: 56550 | BL73: 54681 | BM73: 52562 | BN73: 50759 | BO73: 49410 | BP73: 48434 | BQ73: 47806 | BR73: 47147 | BS73: 43656 | BT73: 43634 | BU73: 44854 | BV73: 46650 | BW73: 47977 | BX73: 43815 | BY73: 41646 | BZ73: 40720 | CA73: 41163 | CB73: 43551 | CC73: 42765 | CD73: 41877 | CE73: 40970 | CF73: 40020 | CG73: 39029 | CH73: 37727 | CI73: 36088 | CJ73: 34120 | CK73: 222380
A74: F | B74: 2042 | C74: Female2042 | D74: 47070 | E74: 47185 | F74: 47505 | G74: 47738 | H74: 47906 | I74: 48004 | J74: 48087 | K74: 48169 | L74: 48233 | M74: 48278 | N74: 48313 | O74: 48255 | P74: 48229 | Q74: 48237 | R74: 48271 | S74: 48322 | T74: 48403 | U74: 48509 | V74: 48574 | W74: 48112 | X74: 49557 | Y74: 49209 | Z74: 52712 | AA74: 53335 | AB74: 53983 | AC74: 54836 | AD74: 55928 | AE74: 57315 | AF74: 58634 | AG74: 59729 | AH74: 60622 | AI74: 61351 | AJ74: 61990 | AK74: 62377 | AL74: 62427 | AM74: 62037 | AN74: 61351 | AO74: 60421 | AP74: 59471 | AQ74: 58506 | AR74: 59855 | AS74: 62213 | AT74: 60912 | AU74: 59167 | AV74: 57938 | AW74: 57217 | AX74: 57517 | AY74: 59628 | AZ74: 61212 | BA74: 62366 | BB74: 63084 | BC74: 63324 | BD74: 62982 | BE74: 62373 | BF74: 61791 | BG74: 61200 | BH74: 60722 | BI74: 60274 | BJ74: 59286 | BK74: 58038 | BL74: 56481 | BM74: 54602 | BN74: 52490 | BO74: 50694 | BP74: 49340 | BQ74: 48333 | BR74: 47650 | BS74: 46953 | BT74: 43451 | BU74: 43397 | BV74: 44544 | BW74: 46270 | BX74: 47531 | BY74: 43309 | BZ74: 41119 | CA74: 40214 | CB74: 40598 | CC74: 42814 | CD74: 41884 | CE74: 40933 | CF74: 39921 | CG74: 38869 | CH74: 37806 | CI74: 36370 | CJ74: 34608 | CK74: 232500
A75: F | B75: 2043 | C75: Female2043 | D75: 47315 | E75: 47421 | F75: 47775 | G75: 48097 | H75: 48312 | I75: 48433 | J75: 48487 | K75: 48552 | L75: 48629 | M75: 48684 | N75: 48721 | O75: 48655 | P75: 48593 | Q75: 48557 | R75: 48560 | S75: 48588 | T75: 48664 | U75: 48778 | V75: 48931 | W75: 49163 | X75: 48719 | Y75: 50324 | Z75: 49995 | AA75: 53565 | AB75: 54205 | AC75: 54850 | AD75: 55697 | AE75: 56785 | AF75: 58167 | AG75: 59386 | AH75: 60451 | AI75: 61310 | AJ75: 61970 | AK75: 62573 | AL75: 62908 | AM75: 62847 | AN75: 62428 | AO75: 61715 | AP75: 60730 | AQ75: 59734 | AR75: 58757 | AS75: 60088 | AT75: 62436 | AU75: 61103 | AV75: 59332 | AW75: 58098 | AX75: 57374 | AY75: 57654 | AZ75: 59745 | BA75: 61320 | BB75: 62474 | BC75: 63176 | BD75: 63404 | BE75: 63073 | BF75: 62417 | BG75: 61811 | BH75: 61201 | BI75: 60705 | BJ75: 60226 | BK75: 59224 | BL75: 57970 | BM75: 56402 | BN75: 54531 | BO75: 52425 | BP75: 50625 | BQ75: 49240 | BR75: 48179 | BS75: 47458 | BT75: 46737 | BU75: 43219 | BV75: 43102 | BW75: 44187 | BX75: 45846 | BY75: 46990 | BZ75: 42769 | CA75: 40615 | CB75: 39670 | CC75: 39921 | CD75: 41944 | CE75: 40953 | CF75: 39899 | CG75: 38789 | CH75: 37666 | CI75: 36464 | CJ75: 34898 | CK75: 242384
A76: F | B76: 2044 | C76: Female2044 | D76: 47546 | E76: 47668 | F76: 48011 | G76: 48368 | H76: 48673 | I76: 48841 | J76: 48919 | K76: 48954 | L76: 49014 | M76: 49082 | N76: 49129 | O76: 49064 | P76: 48994 | Q76: 48923 | R76: 48881 | S76: 48878 | T76: 48930 | U76: 49039 | V76: 49202 | W76: 49522 | X76: 49781 | Y76: 49471 | Z76: 51125 | AA76: 50801 | AB76: 54435 | AC76: 55072 | AD76: 55708 | AE76: 56547 | AF76: 57626 | AG76: 58909 | AH76: 60100 | AI76: 61134 | AJ76: 61926 | AK76: 62551 | AL76: 63105 | AM76: 63330 | AN76: 63242 | AO76: 62797 | AP76: 62031 | AQ76: 60997 | AR76: 59989 | AS76: 58986 | AT76: 60304 | AU76: 62632 | AV76: 61273 | AW76: 59495 | AX76: 58257 | AY76: 57511 | AZ76: 57767 | BA76: 59851 | BB76: 61426 | BC76: 62566 | BD76: 63256 | BE76: 63497 | BF76: 63119 | BG76: 62438 | BH76: 61814 | BI76: 61186 | BJ76: 60659 | BK76: 60165 | BL76: 59157 | BM76: 57892 | BN76: 56331 | BO76: 54466 | BP76: 52357 | BQ76: 50526 | BR76: 49087 | BS76: 47989 | BT76: 47244 | BU76: 46492 | BV76: 42930 | BW76: 42762 | BX76: 43789 | BY76: 45332 | BZ76: 46412 | CA76: 42253 | CB76: 40073 | CC76: 39017 | CD76: 39121 | CE76: 41024 | CF76: 39931 | CG76: 38783 | CH76: 37605 | CI76: 36346 | CJ76: 35007 | CK76: 251889
A77: F | B77: 2045 | C77: Female2045 | D77: 47749 | E77: 47899 | F77: 48260 | G77: 48604 | H77: 48945 | I77: 49204 | J77: 49329 | K77: 49388 | L77: 49418 | M77: 49468 | N77: 49529 | O77: 49474 | P77: 49405 | Q77: 49325 | R77: 49248 | S77: 49200 | T77: 49221 | U77: 49306 | V77: 49463 | W77: 49794 | X77: 50142 | Y77: 50546 | Z77: 50256 | AA77: 51946 | AB77: 51623 | AC77: 55302 | AD77: 55930 | AE77: 56556 | AF77: 57381 | AG77: 58359 | AH77: 59615 | AI77: 60777 | AJ77: 61747 | AK77: 62504 | AL77: 63080 | AM77: 63527 | AN77: 63728 | AO77: 63616 | AP77: 63118 | AQ77: 62304 | AR77: 61257 | AS77: 60222 | AT77: 59198 | AU77: 60494 | AV77: 62806 | AW77: 61441 | AX77: 59658 | AY77: 58396 | AZ77: 57625 | BA77: 57869 | BB77: 59956 | BC77: 61516 | BD77: 62646 | BE77: 63349 | BF77: 63544 | BG77: 63141 | BH77: 62443 | BI77: 61801 | BJ77: 61142 | BK77: 60601 | BL77: 60100 | BM77: 59081 | BN77: 57822 | BO77: 56267 | BP77: 54398 | BQ77: 52258 | BR77: 50373 | BS77: 48899 | BT77: 47777 | BU77: 47001 | BV77: 46186 | BW77: 42596 | BX77: 42382 | BY77: 43305 | BZ77: 44782 | CA77: 45859 | CB77: 41696 | CC77: 39423 | CD77: 38246 | CE77: 38274 | CF77: 40014 | CG77: 38827 | CH77: 37615 | CI77: 36305 | CJ77: 34913 | CK77: 260896
A78: F | B78: 2046 | C78: Female2046 | D78: 47898 | E78: 48102 | F78: 48492 | G78: 48854 | H78: 49182 | I78: 49477 | J78: 49693 | K78: 49800 | L78: 49854 | M78: 49874 | N78: 49916 | O78: 49875 | P78: 49816 | Q78: 49737 | R78: 49651 | S78: 49568 | T78: 49544 | U78: 49598 | V78: 49731 | W78: 50055 | X78: 50415 | Y78: 50910 | Z78: 51345 | AA78: 51060 | AB78: 52783 | AC78: 52442 | AD78: 56161 | AE78: 56778 | AF78: 57387 | AG78: 58108 | AH78: 59056 | AI78: 60285 | AJ78: 61383 | AK78: 62322 | AL78: 63032 | AM78: 63500 | AN78: 63924 | AO78: 64102 | AP78: 63940 | AQ78: 63395 | AR78: 62569 | AS78: 61495 | AT78: 60437 | AU78: 59384 | AV78: 60662 | AW78: 62978 | AX78: 61609 | AY78: 59801 | AZ78: 58511 | BA78: 57728 | BB78: 57971 | BC78: 60045 | BD78: 61596 | BE78: 62739 | BF78: 63398 | BG78: 63568 | BH78: 63147 | BI78: 62431 | BJ78: 61758 | BK78: 61086 | BL78: 60537 | BM78: 60025 | BN78: 59012 | BO78: 57759 | BP78: 56200 | BQ78: 54298 | BR78: 52103 | BS78: 50183 | BT78: 48687 | BU78: 47535 | BV78: 46697 | BW78: 45832 | BX78: 42223 | BY78: 41920 | BZ78: 42787 | CA78: 44256 | CB78: 45263 | CC78: 41028 | CD78: 38654 | CE78: 37429 | CF78: 37345 | CG78: 38923 | CH78: 37672 | CI78: 36331 | CJ78: 34892 | CK78: 269275
A79: F | B79: 2047 | C79: Female2047 | D79: 48014 | E79: 48251 | F79: 48695 | G79: 49087 | H79: 49432 | I79: 49714 | J79: 49967 | K79: 50167 | L79: 50268 | M79: 50312 | N79: 50324 | O79: 50263 | P79: 50219 | Q79: 50150 | R79: 50064 | S79: 49972 | T79: 49913 | U79: 49921 | V79: 50024 | W79: 50324 | X79: 50676 | Y79: 51184 | Z79: 51711 | AA79: 52163 | AB79: 51880 | AC79: 53617 | AD79: 53253 | AE79: 57009 | AF79: 57609 | AG79: 58112 | AH79: 58799 | AI79: 59716 | AJ79: 60884 | AK79: 61952 | AL79: 62846 | AM79: 63451 | AN79: 63895 | AO79: 64299 | AP79: 64427 | AQ79: 64220 | AR79: 63664 | AS79: 62811 | AT79: 61715 | AU79: 60626 | AV79: 59549 | AW79: 60829 | AX79: 63150 | AY79: 61756 | AZ79: 59920 | BA79: 58616 | BB79: 57829 | BC79: 58058 | BD79: 60124 | BE79: 61688 | BF79: 62788 | BG79: 63424 | BH79: 63576 | BI79: 63138 | BJ79: 62391 | BK79: 61704 | BL79: 61025 | BM79: 60464 | BN79: 59958 | BO79: 58951 | BP79: 57693 | BQ79: 56100 | BR79: 54141 | BS79: 51911 | BT79: 49969 | BU79: 48446 | BV79: 47232 | BW79: 46344 | BX79: 45437 | BY79: 41770 | BZ79: 41425 | CA79: 42292 | CB79: 43689 | CC79: 44548 | CD79: 40238 | CE79: 37839 | CF79: 36532 | CG79: 36340 | CH79: 37780 | CI79: 36402 | CJ79: 34934 | CK79: 277171
A80: F | B80: 2048 | C80: Female2048 | D80: 48132 | E80: 48367 | F80: 48843 | G80: 49290 | H80: 49665 | I80: 49964 | J80: 50205 | K80: 50441 | L80: 50637 | M80: 50728 | N80: 50764 | O80: 50673 | P80: 50608 | Q80: 50554 | R80: 50479 | S80: 50386 | T80: 50318 | U80: 50292 | V80: 50348 | W80: 50618 | X80: 50946 | Y80: 51445 | Z80: 51986 | AA80: 52532 | AB80: 52997 | AC80: 52697 | AD80: 54443 | AE80: 54053 | AF80: 57840 | AG80: 58334 | AH80: 58801 | AI80: 59455 | AJ80: 60308 | AK80: 61446 | AL80: 62471 | AM80: 63263 | AN80: 63845 | AO80: 64268 | AP80: 64624 | AQ80: 64709 | AR80: 64492 | AS80: 63910 | AT80: 63034 | AU80: 61907 | AV80: 60795 | AW80: 59712 | AX80: 60995 | AY80: 63301 | AZ80: 61879 | BA80: 60028 | BB80: 58720 | BC80: 57916 | BD80: 58135 | BE80: 60214 | BF80: 61738 | BG80: 62815 | BH80: 63434 | BI80: 63569 | BJ80: 63099 | BK80: 62338 | BL80: 61645 | BM80: 60955 | BN80: 60400 | BO80: 59898 | BP80: 58887 | BQ80: 57594 | BR80: 55941 | BS80: 53945 | BT80: 51694 | BU80: 49725 | BV80: 48142 | BW80: 46881 | BX80: 45950 | BY80: 44955 | BZ80: 41285 | CA80: 40952 | CB80: 41757 | CC80: 43008 | CD80: 43701 | CE80: 39400 | CF80: 36943 | CG80: 35561 | CH80: 35286 | CI80: 36522 | CJ80: 35020 | CK80: 284702
A81: F | B81: 2049 | C81: Female2049 | D81: 48244 | E81: 48484 | F81: 48959 | G81: 49438 | H81: 49868 | I81: 50198 | J81: 50455 | K81: 50679 | L81: 50911 | M81: 51099 | N81: 51182 | O81: 51114 | P81: 51019 | Q81: 50944 | R81: 50884 | S81: 50803 | T81: 50734 | U81: 50698 | V81: 50720 | W81: 50944 | X81: 51241 | Y81: 51716 | Z81: 52248 | AA81: 52807 | AB81: 53368 | AC81: 53829 | AD81: 53506 | AE81: 55258 | AF81: 54838 | AG81: 58564 | AH81: 59022 | AI81: 59454 | AJ81: 60042 | AK81: 60863 | AL81: 61959 | AM81: 62884 | AN81: 63654 | AO81: 64217 | AP81: 64592 | AQ81: 64905 | AR81: 64982 | AS81: 64740 | AT81: 64137 | AU81: 63231 | AV81: 62079 | AW81: 60961 | AX81: 59875 | AY81: 61141 | AZ81: 63428 | BA81: 61991 | BB81: 60135 | BC81: 58809 | BD81: 57994 | BE81: 58223 | BF81: 60263 | BG81: 61766 | BH81: 62827 | BI81: 63428 | BJ81: 63533 | BK81: 63048 | BL81: 62281 | BM81: 61577 | BN81: 60893 | BO81: 60343 | BP81: 59836 | BQ81: 58789 | BR81: 57436 | BS81: 55743 | BT81: 53724 | BU81: 51446 | BV81: 49418 | BW81: 47789 | BX81: 46488 | BY81: 45470 | BZ81: 44440 | CA81: 40820 | CB81: 40441 | CC81: 41115 | CD81: 42201 | CE81: 42804 | CF81: 38480 | CG81: 35974 | CH81: 34543 | CI81: 34127 | CJ81: 35153 | CK81: 291956
A82: F | B82: 2050 | C82: Female2050 | D82: 48374 | E82: 48595 | F82: 49075 | G82: 49553 | H82: 50016 | I82: 50401 | J82: 50689 | K82: 50930 | L82: 51149 | M82: 51373 | N82: 51554 | O82: 51534 | P82: 51462 | Q82: 51357 | R82: 51275 | S82: 51209 | T82: 51152 | U82: 51116 | V82: 51128 | W82: 51317 | X82: 51569 | Y82: 52012 | Z82: 52520 | AA82: 53070 | AB82: 53645 | AC82: 54202 | AD82: 54652 | AE82: 54304 | AF82: 56057 | AG82: 55522 | AH82: 59252 | AI82: 59675 | AJ82: 60039 | AK82: 60592 | AL82: 61369 | AM82: 62366 | AN82: 63272 | AO82: 64024 | AP82: 64540 | AQ82: 64873 | AR82: 65179 | AS82: 65231 | AT82: 64969 | AU82: 64337 | AV82: 63406 | AW82: 62249 | AX82: 61127 | AY82: 60019 | AZ82: 61264 | BA82: 63543 | BB82: 62102 | BC82: 60227 | BD82: 58888 | BE82: 58083 | BF82: 58272 | BG82: 60292 | BH82: 61779 | BI82: 62823 | BJ82: 63393 | BK82: 63484 | BL82: 62992 | BM82: 62215 | BN82: 61517 | BO82: 60838 | BP82: 60282 | BQ82: 59740 | BR82: 58631 | BS82: 57238 | BT82: 55519 | BU82: 53471 | BV82: 51133 | BW82: 49062 | BX82: 47394 | BY82: 46010 | BZ82: 44955 | CA82: 43946 | CB82: 40318 | CC82: 39827 | CD82: 40353 | CE82: 41346 | CF82: 41817 | CG82: 37483 | CH82: 34957 | CI82: 33422 | CJ82: 32864 | CK82: 299014
